﻿Department Family,Entity,Date,Expense Type,Expense Area,Supplier,Transaction Number,Amount,Item Description
BEIS,UKRI - UKRI,01/09/2022,T&S UK - Vehicle Hire,UKRI - Funding Assurance,Enterprise Rent-A-Car UK Ltd,99759158,64.00,T&S UK - Vehicle Hire
BEIS,UKRI - UKRI,01/09/2022,T&S UK - Vehicle Hire,UKRI - Funding Assurance,Enterprise Rent-A-Car UK Ltd,99759158,12.80,T&S UK - Vehicle Hire
BEIS,UKRI - UKRI,01/09/2022,T&S UK - Vehicle Hire,"UKRI People, Policies and Management",Enterprise Rent-A-Car UK Ltd,99759158,69.58,T&S UK - Vehicle Hire
BEIS,UKRI - UKRI,01/09/2022,T&S UK - Vehicle Hire,"UKRI People, Policies and Management",Enterprise Rent-A-Car UK Ltd,99759158,13.92,T&S UK - Vehicle Hire
BEIS,UKRI - UKRI,01/09/2022,T&S UK - Vehicle Hire,UKRI Strategic HR Business Partners,Enterprise Rent-A-Car UK Ltd,99759158,120.05,T&S UK - Vehicle Hire
BEIS,UKRI - UKRI,01/09/2022,T&S UK - Vehicle Hire,UKRI Strategic HR Business Partners,Enterprise Rent-A-Car UK Ltd,99759158,24.01,T&S UK - Vehicle Hire
BEIS,UKRI - UKRI,01/09/2022,T&S UK - Vehicle Hire,UKRI - Communication and Engagement,Enterprise Rent-A-Car UK Ltd,99764321,54.76,T&S UK - Vehicle Hire
BEIS,UKRI - UKRI,01/09/2022,T&S UK - Vehicle Hire,UKRI - Communication and Engagement,Enterprise Rent-A-Car UK Ltd,99764321,10.95,T&S UK - Vehicle Hire
BEIS,UKRI - UKRI,01/09/2022,T&S UK - Vehicle Hire,UKRI - Communications Projects and Services,Enterprise Rent-A-Car UK Ltd,99764321,111.39,T&S UK - Vehicle Hire
BEIS,UKRI - UKRI,01/09/2022,T&S UK - Vehicle Hire,UKRI - Communications Projects and Services,Enterprise Rent-A-Car UK Ltd,99764321,556.99,T&S UK - Vehicle Hire
BEIS,UKRI - UKRI,01/09/2022,T&S UK - Vehicle Hire,UKRI - Counter Fraud,Enterprise Rent-A-Car UK Ltd,99764321,12.86,T&S UK - Vehicle Hire
BEIS,UKRI - UKRI,01/09/2022,T&S UK - Vehicle Hire,UKRI - Counter Fraud,Enterprise Rent-A-Car UK Ltd,99764321,64.29,T&S UK - Vehicle Hire
BEIS,UKRI - UKRI,01/09/2022,T&S UK - Vehicle Hire,UKRI - Culture Leadership and Learning,Enterprise Rent-A-Car UK Ltd,99764321,100.88,T&S UK - Vehicle Hire
BEIS,UKRI - UKRI,01/09/2022,T&S UK - Vehicle Hire,UKRI - Culture Leadership and Learning,Enterprise Rent-A-Car UK Ltd,99764321,20.18,T&S UK - Vehicle Hire
BEIS,UKRI - UKRI,01/09/2022,T&S UK - Vehicle Hire,UKRI Strategic HR Business Partners,Enterprise Rent-A-Car UK Ltd,99764321,138.99,T&S UK - Vehicle Hire
BEIS,UKRI - UKRI,01/09/2022,T&S UK - Vehicle Hire,UKRI Strategic HR Business Partners,Enterprise Rent-A-Car UK Ltd,99764321,27.80,T&S UK - Vehicle Hire
BEIS,UKRI - UKRI,01/09/2022,Unspecified,UKRI - Funding Service,Alexander Mann Solutions Ltd,99767108,4619.45,Contract Staff
BEIS,UKRI - UKRI,01/09/2022,T&S UK - Vehicle Hire,UKRI - Strategic Finance Business Partners,Enterprise Rent-A-Car UK Ltd,99768406,62.93,T&S UK - Vehicle Hire
BEIS,UKRI - UKRI,01/09/2022,T&S UK - Vehicle Hire,UKRI - Strategic Finance Business Partners,Enterprise Rent-A-Car UK Ltd,99768406,95.34,T&S UK - Vehicle Hire
BEIS,UKRI - UKRI,01/09/2022,T&S UK - Vehicle Hire,UKRI - Strategic Finance Business Partners,Enterprise Rent-A-Car UK Ltd,99768406,31.65,T&S UK - Vehicle Hire
BEIS,UKRI - UKRI,01/09/2022,T&S UK - Vehicle Hire,"UKRI People, Policies and Management",Enterprise Rent-A-Car UK Ltd,99768406,61.58,T&S UK - Vehicle Hire
BEIS,UKRI - UKRI,01/09/2022,T&S UK - Vehicle Hire,"UKRI People, Policies and Management",Enterprise Rent-A-Car UK Ltd,99768406,12.32,T&S UK - Vehicle Hire
BEIS,UKRI - UKRI,01/09/2022,Unspecified,UKRI - Funding Service,Alexander Mann Solutions Ltd,99770622,3849.54,Contract Staff
BEIS,UKRI - UKRI,01/09/2022,Unspecified,UKRI - Funding Service,Alexander Mann Solutions Ltd,99780087,6159.26,Contract Staff
BEIS,UKRI - UKRI,01/09/2022,Unspecified,UKRI - Digital Data and Technology Project Costs,Alexander Mann Solutions Ltd,99783954,7021.68,Contract Staff
BEIS,UKRI - UKRI,01/09/2022,Unspecified,UKRI - Funding Service,Alexander Mann Solutions Ltd,99784011,3849.54,Contract Staff
BEIS,UKRI - UKRI,01/09/2022,Unspecified,UKRI - Funding Service,Alexander Mann Solutions Ltd,99786576,3849.54,Contract Staff
BEIS,UKRI - UKRI,01/09/2022,Unspecified,Public Engagement Programmes,The Young Foundation,99787969,29760.00,Legal & Professional Services
BEIS,UKRI - UKRI,01/09/2022,Unspecified,Horizon Europe Scoping Phase OPEX,Alexander Mann Solutions Ltd,99789294,7483.51,Agency Staff
BEIS,UKRI - UKRI,01/09/2022,Recruitment Costs,UKRI People and Organisation Development,Onefix Recruitment Ltd,99789301,690.00,Recruitment Costs
BEIS,UKRI - UKRI,01/09/2022,Recruitment Costs,UKRI People and Organisation Development,Onefix Recruitment Ltd,99789303,270.00,Recruitment Costs
BEIS,UKRI - UKRI,01/09/2022,Recruitment Costs,UKRI People and Organisation Development,Onefix Recruitment Ltd,99789304,270.00,Recruitment Costs
BEIS,UKRI - UKRI,01/09/2022,Unspecified,Public Engagement Programmes,The Young Foundation,99789539,-29760.00,Legal & Professional Services
BEIS,UKRI - UKRI,01/09/2022,Unspecified,Public Engagement Programmes,The Young Foundation,99789540,17856.00,Legal & Professional Services
BEIS,UKRI - UKRI,01/09/2022,Consumables,UKRI - JRS,Banner Group Ltd,99789733,11.66,Consumables
BEIS,UKRI - UKRI,01/09/2022,Unspecified,UKRI-SHARP,LA International Computer Consultants Ltd,99789791,3593.40,Contract Staff
BEIS,UKRI - UKRI,01/09/2022,Unspecified,UKRI - Funding Service,Alexander Mann Solutions Ltd,99790203,3849.54,Contract Staff
BEIS,UKRI - UKRI,01/09/2022,Unspecified,UKRI - Digital Data and Technology Project Costs,Alexander Mann Solutions Ltd,99790209,3695.58,Contract Staff
BEIS,UKRI - UKRI,01/09/2022,Recruitment Costs,UKRI People and Organisation Development,Onefix Recruitment Ltd,99790248,270.00,Recruitment Costs
BEIS,UKRI - UKRI,01/09/2022,Recruitment Costs,UKRI People and Organisation Development,Onefix Recruitment Ltd,99790251,714.00,Recruitment Costs
BEIS,UKRI - UKRI,01/09/2022,Printing & Stationery,UKRI Strategic HR Business Partners,Banner Group Ltd,99790467,124.02,Printing & Stationery
BEIS,UKRI - UKRI,01/09/2022,Computer Software Licences,UKRI - Digital Data and Technology BAU Costs,Phoenix Software Ltd,99790680,36.96,Computer Software Licences
BEIS,UKRI - UKRI,01/09/2022,Computer Software Licences,UKRI - Digital Data and Technology BAU Costs,Phoenix Software Ltd,99790681,7.08,Computer Software Licences
BEIS,UKRI - UKRI,01/09/2022,Computer Software,UKRI - Digital Data and Technology BAU Costs,Phoenix Software Ltd,99790683,312.84,Computer Software
BEIS,UKRI - UKRI,01/09/2022,Health & Safety (inc. Medicals & Opticians),UKRI - Health and Safety,AM Health & Safety Ltd,99790705,993.00,Health & Safety (inc. Medicals & Opticians)
BEIS,UKRI - UKRI,01/09/2022,Staff Training,UKRI - Executive Group,QA Ltd,99790707,1018.80,Staff Training
BEIS,UKRI - UKRI,01/09/2022,T&S UK - Vehicle Hire,UKRI - Counter Fraud,Enterprise Rent-A-Car UK Ltd,99790745,12.26,T&S UK - Vehicle Hire
BEIS,UKRI - UKRI,01/09/2022,T&S UK - Vehicle Hire,UKRI - Counter Fraud,Enterprise Rent-A-Car UK Ltd,99790745,61.29,T&S UK - Vehicle Hire
BEIS,UKRI - UKRI,01/09/2022,T&S UK - Vehicle Hire,UKRI - JBOS,Enterprise Rent-A-Car UK Ltd,99790745,86.98,T&S UK - Vehicle Hire
BEIS,UKRI - UKRI,01/09/2022,T&S UK - Vehicle Hire,UKRI - JBOS,Enterprise Rent-A-Car UK Ltd,99790745,17.40,T&S UK - Vehicle Hire
BEIS,UKRI - UKRI,01/09/2022,Advertising & Promotion,UKRI - Communications Content,Impact Media Specialists Ltd,99790748,1212.00,Advertising & Promotion
BEIS,UKRI - UKRI,01/09/2022,Marketing & PR,UKRI - External Communications,Cision Group Ltd,99790801,6164.00,Marketing & PR
BEIS,UKRI - UKRI,01/09/2022,T&S UK - Accommodation,UKRI - Strategic Finance Business Partners,Unspecified,99790884,205.49,T&S UK - Accommodation
BEIS,UKRI - UKRI,01/09/2022,T&S UK - Public Transport,UKRI - Strategic Finance Business Partners,Unspecified,99790884,13.03,T&S UK - Public Transport
BEIS,UKRI - UKRI,01/09/2022,T&S UK - Subsistence,UKRI - Strategic Finance Business Partners,Unspecified,99790884,54.55,T&S UK - Subsistence
BEIS,UKRI - UKRI,01/09/2022,T&S UK - Subsistence,UKRI - Strategic Finance Business Partners,Unspecified,99790884,7.07,T&S UK - Subsistence
BEIS,UKRI - UKRI,01/09/2022,T&S UK - Subsistence,UKRI - Strategic Finance Business Partners,Unspecified,99790884,7.71,T&S UK - Subsistence
BEIS,UKRI - UKRI,01/09/2022,T&S UK - Other Charges,UKRI - Information Governance,Unspecified,99790885,25.00,T&S UK - Other Charges
BEIS,UKRI - UKRI,01/09/2022,UK - Professional Memberships & Subscriptions,UKRI - Project Management Office,Unspecified,99790887,167.00,UK - Professional Memberships & Subscriptions
BEIS,UKRI - UKRI,01/09/2022,T&S UK - Vehicle Hire,UKRI - Communications Themes and Partnerships,Unspecified,99790888,72.00,T&S UK - Vehicle Hire
BEIS,UKRI - UKRI,01/09/2022,UK - Professional Memberships & Subscriptions,UKRI - Health and Safety,Unspecified,99790890,176.00,UK - Professional Memberships & Subscriptions
BEIS,UKRI - UKRI,01/09/2022,T&S UK - Parking Tolls Congestion Charges,UKRI - Digital Data and Technology BAU Costs,Unspecified,99790891,60.00,T&S UK - Parking Tolls Congestion Charges
BEIS,UKRI - UKRI,01/09/2022,Unspecified,UKRI - Digital Data and Technology Project Costs,Unspecified,99791837,65280.00,Legal & Professional Services
BEIS,UKRI - UKRI,01/09/2022,Building Rents,UKRI - Estates,NESTA,99791885,-258222.76,Building Rents
BEIS,UKRI - UKRI,01/09/2022,Building Rents,UKRI - Estates,NESTA,99791886,258222.76,Building Rents
BEIS,UKRI - UKRI,02/09/2022,T&S UK - Vehicle Hire,UKRI - Communications Projects and Services,Enterprise Rent-A-Car UK Ltd,99777977,449.81,T&S UK - Vehicle Hire
BEIS,UKRI - UKRI,02/09/2022,T&S UK - Vehicle Hire,UKRI - Communications Projects and Services,Enterprise Rent-A-Car UK Ltd,99777977,89.96,T&S UK - Vehicle Hire
BEIS,UKRI - UKRI,02/09/2022,T&S UK - Vehicle Hire,UKRI - Procurement and Commercial,Enterprise Rent-A-Car UK Ltd,99777977,64.29,T&S UK - Vehicle Hire
BEIS,UKRI - UKRI,02/09/2022,T&S UK - Vehicle Hire,UKRI - Procurement and Commercial,Enterprise Rent-A-Car UK Ltd,99777977,12.86,T&S UK - Vehicle Hire
BEIS,UKRI - UKRI,02/09/2022,T&S UK - Vehicle Hire,UKRI Strategic HR Business Partners,Enterprise Rent-A-Car UK Ltd,99777977,87.74,T&S UK - Vehicle Hire
BEIS,UKRI - UKRI,02/09/2022,T&S UK - Vehicle Hire,UKRI Strategic HR Business Partners,Enterprise Rent-A-Car UK Ltd,99777977,17.55,T&S UK - Vehicle Hire
BEIS,UKRI - UKRI,02/09/2022,Unspecified,UKRI - HR Corporate Projects,Alexander Mann Solutions Ltd,99789281,617.22,Contract Staff
BEIS,UKRI - UKRI,02/09/2022,Recruitment Costs,UKRI People and Organisation Development,Onefix Recruitment Ltd,99790247,450.00,Recruitment Costs
BEIS,UKRI - UKRI,02/09/2022,Recruitment Costs,UKRI People and Organisation Development,Onefix Recruitment Ltd,99790249,270.00,Recruitment Costs
BEIS,UKRI - UKRI,02/09/2022,Recruitment Costs,UKRI People and Organisation Development,Onefix Recruitment Ltd,99790250,270.00,Recruitment Costs
BEIS,UKRI - UKRI,02/09/2022,T&S UK - Subsistence,UKRI - Council Partnership and Performance,Unspecified,99790886,2.85,T&S UK - Subsistence
BEIS,UKRI - UKRI,02/09/2022,T&S UK - Subsistence,UKRI - Council Partnership and Performance,Unspecified,99790886,14.99,T&S UK - Subsistence
BEIS,UKRI - UKRI,02/09/2022,Waste Management Services,UKRI - Estates,Restore Datashred Ltd T/A Restore DataShred,99790949,85.22,Waste Management Services
BEIS,UKRI - UKRI,02/09/2022,Consumables,UKRI - JRS,Kennedy Grinding Ltd,99790971,43.80,Consumables
BEIS,UKRI - UKRI,02/09/2022,Other Staff Benefits,UKRI - Culture Leadership and Learning,Health Assured Ltd,99791166,132.00,Other Staff Benefits
BEIS,UKRI - UKRI,02/09/2022,Other Staff Benefits,UKRI - Culture Leadership and Learning,Health Assured Ltd,99791168,56.40,Other Staff Benefits
BEIS,UKRI - UKRI,02/09/2022,Other Staff Benefits,UKRI - Culture Leadership and Learning,Health Assured Ltd,99791171,507.60,Other Staff Benefits
BEIS,UKRI - UKRI,02/09/2022,Other Staff Benefits,UKRI - Culture Leadership and Learning,Health Assured Ltd,99791173,507.60,Other Staff Benefits
BEIS,UKRI - UKRI,02/09/2022,Consumables,UKRI - JRS,Originzone,99791186,1836.00,Consumables
BEIS,UKRI - UKRI,02/09/2022,Books Professional Journals & Guides,UKRI - Digital Data and Technology Library Services,OK Bargains Ltd T/A Shauns News,99791205,50.80,Books Professional Journals & Guides
BEIS,UKRI - UKRI,02/09/2022,Unspecified,UKRI - Digital Data and Technology BAU Costs,Jisc Services Ltd,99791221,2400.00,Networking Maintenance
BEIS,UKRI - UKRI,02/09/2022,Printing & Stationery,UKRI - Procurement and Commercial,Baker Bond and Green Ltd,99791890,633.76,Printing & Stationery
BEIS,UKRI - UKRI,02/09/2022,Health & Safety (inc. Medicals & Opticians),UKRI Strategic HR Business Partners,Cordell Health Ltd,99792055,3530.00,Health & Safety (inc. Medicals & Opticians)
BEIS,UKRI - UKRI,02/09/2022,Health & Safety (inc. Medicals & Opticians),UKRI Strategic HR Business Partners,Cordell Health Ltd,99792068,279.00,Health & Safety (inc. Medicals & Opticians)
BEIS,UKRI - UKRI,02/09/2022,UK - Professional Memberships & Subscriptions,UKRI - Strategic Finance Business Partners,Unspecified,99792198,110.00,UK - Professional Memberships & Subscriptions
BEIS,UKRI - UKRI,02/09/2022,T&S UK - Other Charges,UKRI - Culture Leadership and Learning,Unspecified,99792199,10.43,T&S UK - Other Charges
BEIS,UKRI - UKRI,02/09/2022,T&S UK - Subsistence,UKRI - Culture Leadership and Learning,Unspecified,99792199,165.30,T&S UK - Subsistence
BEIS,UKRI - UKRI,02/09/2022,T&S UK - Subsistence,UKRI - Culture Leadership and Learning,Unspecified,99792199,20.10,T&S UK - Subsistence
BEIS,UKRI - UKRI,02/09/2022,T&S UK - Mileage,UKRI - Funding Assurance,Unspecified,99792202,331.20,T&S UK - Mileage
BEIS,UKRI - UKRI,02/09/2022,T&S UK - Subsistence,UKRI - Funding Assurance,Unspecified,99792202,30.00,T&S UK - Subsistence
BEIS,UKRI - UKRI,02/09/2022,Unspecified,UKRI - Digital Data and Technology Project Costs,Precision Resource Group Ltd T/A iO,99792299,3120.00,Contract Staff
BEIS,UKRI - UKRI,02/09/2022,Unspecified,UKRI - Digital Data and Technology Project Costs,Precision Resource Group Ltd T/A iO,99792300,1854.00,Contract Staff
BEIS,UKRI - UKRI,05/09/2022,Computer Software,UKRI - Risk and Counter Fraud,Corporate Governance Risk Ltd,99736514,6800.40,Computer Software
BEIS,UKRI - UKRI,05/09/2022,Computer Software,UKRI - Risk and Counter Fraud,Corporate Governance Risk Ltd,99757397,6800.40,Computer Software
BEIS,UKRI - UKRI,05/09/2022,Unspecified,UKRI - Digital Data and Technology BAU Costs,Chakray UK Ltd,99764822,726.00,Legal & Professional Services
BEIS,UKRI - UKRI,05/09/2022,Unspecified,UKRI - Digital Data and Technology BAU Costs,Chakray UK Ltd,99764822,7014.00,Legal & Professional Services
BEIS,UKRI - UKRI,05/09/2022,Computer Software,UKRI - Risk and Counter Fraud,Corporate Governance Risk Ltd,99775999,6800.40,Computer Software
BEIS,UKRI - UKRI,05/09/2022,Computer Software Licences,UKRI - Digital Data and Technology Project Costs,BYTES SOFTWARE SERVICES LTD,99777540,34591.72,Computer Software Licences
BEIS,UKRI - UKRI,05/09/2022,Computer Software Licences,UKRI-SHARP,BYTES SOFTWARE SERVICES LTD,99777540,76870.48,Computer Software Licences
BEIS,UKRI - UKRI,05/09/2022,Unspecified,UKRI - Funding Assurance,Abbey Business Interiors Ltd,99784054,368.40,Legal & Professional Services
BEIS,UKRI - UKRI,05/09/2022,Unspecified,UKRI - Digital Data and Technology Project Costs,Precision Resource Group Ltd T/A iO,99785622,4485.00,Contract Staff
BEIS,UKRI - UKRI,05/09/2022,Unspecified,UKRI - Digital Data and Technology Project Costs,Precision Resource Group Ltd T/A iO,99785989,4485.00,Contract Staff
BEIS,UKRI - UKRI,05/09/2022,Computer Software Licences,UKRI - Digital Data and Technology BAU Costs,Chakray UK Ltd,99786858,3000.00,Computer Software Licences
BEIS,UKRI - UKRI,05/09/2022,Computer Software Licences,UKRI - Digital Data and Technology Project Costs,BYTES SOFTWARE SERVICES LTD,99789234,-34591.72,Computer Software Licences
BEIS,UKRI - UKRI,05/09/2022,Computer Software Licences,UKRI-SHARP,BYTES SOFTWARE SERVICES LTD,99789234,-76870.48,Computer Software Licences
BEIS,UKRI - UKRI,05/09/2022,Unspecified,UKRI-SHARP,Alexander Mann Solutions Ltd,99789316,4582.79,Contract Staff
BEIS,UKRI - UKRI,05/09/2022,Unspecified,UKRI - Digital Data and Technology Project Costs,LA International Computer Consultants Ltd,99789776,2394.72,Contract Staff
BEIS,UKRI - UKRI,05/09/2022,Unspecified,UKRI - Digital Data and Technology Project Costs,LA International Computer Consultants Ltd,99789779,6468.12,Contract Staff
BEIS,UKRI - UKRI,05/09/2022,Unspecified,UKRI - Digital Data and Technology Project Costs,LA International Computer Consultants Ltd,99789784,2634.72,Contract Staff
BEIS,UKRI - UKRI,05/09/2022,Unspecified,UKRI - Digital Data and Technology Project Costs,Precision Resource Group Ltd T/A iO,99789926,3540.00,Contract Staff
BEIS,UKRI - UKRI,05/09/2022,Unspecified,UKRI - Digital Data and Technology Project Costs,Precision Resource Group Ltd T/A iO,99789949,4485.00,Contract Staff
BEIS,UKRI - UKRI,05/09/2022,Unspecified,UKRI - Communications Web and Intranet Service,Alexander Mann Solutions Ltd,99791450,7649.14,Contract Staff
BEIS,UKRI - UKRI,05/09/2022,Unspecified,UKRI-SHARP,Alexander Mann Solutions Ltd,99791464,1691.89,Contract Staff
BEIS,UKRI - UKRI,05/09/2022,Unspecified,UKRI-SHARP,Alexander Mann Solutions Ltd,99791467,2633.10,Contract Staff
BEIS,UKRI - UKRI,05/09/2022,Unspecified,UKRI - Digital Data and Technology Project Costs,Alexander Mann Solutions Ltd,99791493,3695.58,Contract Staff
BEIS,UKRI - UKRI,05/09/2022,Unspecified,UKRI-SHARP,Alexander Mann Solutions Ltd,99791519,1575.12,Agency Staff
BEIS,UKRI - UKRI,05/09/2022,Education Fees & Study Materials,UKRI - Strategic Finance Business Partners,Unspecified,99791544,905.00,Education Fees & Study Materials
BEIS,UKRI - UKRI,05/09/2022,T&S UK - Public Transport,UKRI - Strategic Finance Business Partners,Unspecified,99791546,70.00,T&S UK - Public Transport
BEIS,UKRI - UKRI,05/09/2022,UK - Professional Memberships & Subscriptions,UKRI - Information Governance,Unspecified,99791547,117.00,UK - Professional Memberships & Subscriptions
BEIS,UKRI - UKRI,05/09/2022,T&S Overseas - Public Transport,UKRI - Overseas Office USA,Unspecified,99791550,21.99,T&S Overseas - Public Transport
BEIS,UKRI - UKRI,05/09/2022,Unspecified,UKRI - Digital Data and Technology Project Costs,Precision Resource Group Ltd T/A iO,99792298,4485.00,Contract Staff
BEIS,UKRI - UKRI,05/09/2022,Unspecified,UKRI - Digital Data and Technology Project Costs,Precision Resource Group Ltd T/A iO,99792301,3540.00,Contract Staff
BEIS,UKRI - UKRI,05/09/2022,Unspecified,UKRI - Communications Content,Stephen Lawson T/A Constructive Coaching,99793057,2100.00,Legal & Professional Services
BEIS,UKRI - UKRI,05/09/2022,Unspecified,Horizon Europe Scoping Phase OPEX,Alexander Mann Solutions Ltd,99793102,3880.34,Agency Staff
BEIS,UKRI - UKRI,05/09/2022,Unspecified,UKRI - Digital Data and Technology Project Costs,Alexander Mann Solutions Ltd,99793120,2771.70,Contract Staff
BEIS,UKRI - UKRI,05/09/2022,Unspecified,UKRI - Digital Data and Technology Project Costs,Alexander Mann Solutions Ltd,99793130,2956.46,Contract Staff
BEIS,UKRI - UKRI,05/09/2022,Unspecified,UKRI - Digital Data and Technology BAU Costs,Alexander Mann Solutions Ltd,99793133,1890.17,Contract Staff
BEIS,UKRI - UKRI,05/09/2022,Unspecified,UKRI - Digital Data and Technology Project Costs,Alexander Mann Solutions Ltd,99793134,4003.56,Contract Staff
BEIS,UKRI - UKRI,05/09/2022,Unspecified,UKRI-SHARP,Alexander Mann Solutions Ltd,99793135,2291.40,Contract Staff
BEIS,UKRI - UKRI,05/09/2022,Unspecified,UKRI-CPO,Alexander Mann Solutions Ltd,99793139,2646.17,Contract Staff
BEIS,UKRI - UKRI,05/09/2022,Rates,UKRI - JBOS,Swindon Borough Council,99795377,64000.00,Rates
BEIS,UKRI - UKRI,05/09/2022,Rates,UKRI - Estates,City of London,99795397,12467.00,Rates
BEIS,UKRI - UKRI,05/09/2022,Rates,UKRI - Estates,City of London,99795401,12467.00,Rates
BEIS,UKRI - UKRI,06/09/2022,Postage & Courier Services,UKRI - JBOS,Royal Mail Group Ltd,99764479,40.11,Postage & Courier Services
BEIS,UKRI - UKRI,06/09/2022,Computer Software Licences,UKRI - Digital Data and Technology Project Costs,ProofID Ltd,99779543,20775.00,Computer Software Licences
BEIS,UKRI - UKRI,06/09/2022,Postage & Courier Services,UKRI - JBOS,Royal Mail Group Ltd,99780851,112.35,Postage & Courier Services
BEIS,UKRI - UKRI,06/09/2022,Computer Software Licences,UKRI - Digital Data and Technology BAU Costs,Phoenix Software Ltd,99788628,35770.42,Computer Software Licences
BEIS,UKRI - UKRI,06/09/2022,Unspecified,UKRI-SHARP,Alexander Mann Solutions Ltd,99789314,6300.60,Agency Staff
BEIS,UKRI - UKRI,06/09/2022,Rates,UKRI - UKRO,Gerance Trone C/O Cogerimo,99789587,4427.86,Rates
BEIS,UKRI - UKRI,06/09/2022,Rates,UKRI - UKRO,Gerance Trone C/O Cogerimo,99789588,590.23,Rates
BEIS,UKRI - UKRI,06/09/2022,Rates,UKRI - UKRO,Gerance Trone C/O Cogerimo,99789590,382.98,Rates
BEIS,UKRI - UKRI,06/09/2022,Education Fees & Study Materials,"Corporate Strategy, Governance and Performance",Unspecified,99790671,102.98,Education Fees & Study Materials
BEIS,UKRI - UKRI,06/09/2022,Computer Software Licences,UKRI - Digital Data and Technology BAU Costs,Hotjar Ltd,99791200,9796.76,Computer Software Licences
BEIS,UKRI - UKRI,06/09/2022,Conferences & Seminars,UKRI - Communications Projects and Services,Town Quay Developments Ltd,99791524,4825.32,Conferences & Seminars
BEIS,UKRI - UKRI,06/09/2022,Computer Software Licences,UKRI - Digital Data and Technology BAU Costs,Phoenix Software Ltd,99791532,3007.51,Computer Software Licences
BEIS,UKRI - UKRI,06/09/2022,Computer Software Licences,UKRI - Digital Data and Technology Recharges,Phoenix Software Ltd,99791532,5256.90,Computer Software Licences
BEIS,UKRI - UKRI,06/09/2022,Overseas - Professional Memberships & Subscriptions,International Policy and Stakeholder Engagement,Science Europe,99792121,153161.83,Overseas - Professional Memberships & Subscriptions
BEIS,UKRI - UKRI,06/09/2022,Printing & Stationery,UKRI - Estates,Banner Group Ltd,99793007,22.18,Printing & Stationery
BEIS,UKRI - UKRI,06/09/2022,Printing & Stationery,UKRI - Estates,Banner Group Ltd,99793007,26.64,Printing & Stationery
BEIS,UKRI - UKRI,06/09/2022,Printing & Stationery,UKRI - Estates,Banner Group Ltd,99793007,15.05,Printing & Stationery
BEIS,UKRI - UKRI,06/09/2022,Unspecified,UKRI-SHARP,Alexander Mann Solutions Ltd,99793117,3150.30,Contract Staff
BEIS,UKRI - UKRI,06/09/2022,Unspecified,UKRI - Strategic Finance Business Partners,Alexander Mann Solutions Ltd,99793138,1260.12,Agency Staff
BEIS,UKRI - UKRI,06/09/2022,Recruitment Costs,UKRI People and Organisation Development,Onefix Recruitment Ltd,99793161,1020.00,Recruitment Costs
BEIS,UKRI - UKRI,06/09/2022,Recruitment Costs,UKRI People and Organisation Development,Onefix Recruitment Ltd,99793164,444.00,Recruitment Costs
BEIS,UKRI - UKRI,06/09/2022,Recruitment Costs,UKRI People and Organisation Development,Onefix Recruitment Ltd,99793165,450.00,Recruitment Costs
BEIS,UKRI - UKRI,06/09/2022,Recruitment Costs,UKRI People and Organisation Development,Onefix Recruitment Ltd,99793166,444.00,Recruitment Costs
BEIS,UKRI - UKRI,06/09/2022,Fees (Including College Members),Public Engagement Programmes,Unspecified,99793171,200.00,Fees (Including College Members)
BEIS,UKRI - UKRI,06/09/2022,Postage & Courier Services,UKRI - JBOS,Unspecified,99795394,27.81,Postage & Courier Services
BEIS,UKRI - UKRI,06/09/2022,Other Staff Benefits,UKRI - UKRO,Unspecified,99795448,994.90,Other Staff Benefits
BEIS,UKRI - UKRI,06/09/2022,Recruitment Costs,UKRI People and Organisation Development,Warwick University Services Ltd,99795463,564.00,Recruitment Costs
BEIS,UKRI - UKRI,06/09/2022,Recruitment Costs,UKRI People and Organisation Development,Warwick University Services Ltd,99795464,564.00,Recruitment Costs
BEIS,UKRI - UKRI,06/09/2022,Recruitment Costs,UKRI People and Organisation Development,Warwick University Services Ltd,99795465,564.00,Recruitment Costs
BEIS,UKRI - UKRI,06/09/2022,Recruitment Costs,UKRI People and Organisation Development,Warwick University Services Ltd,99795470,564.00,Recruitment Costs
BEIS,UKRI - UKRI,06/09/2022,Recruitment Costs,UKRI People and Organisation Development,Warwick University Services Ltd,99795471,564.00,Recruitment Costs
BEIS,UKRI - UKRI,06/09/2022,Recruitment Costs,UKRI People and Organisation Development,Warwick University Services Ltd,99795472,564.00,Recruitment Costs
BEIS,UKRI - UKRI,06/09/2022,Recruitment Costs,UKRI People and Organisation Development,Warwick University Services Ltd,99795473,564.00,Recruitment Costs
BEIS,UKRI - UKRI,06/09/2022,Consumables,UKRI - JRS,Antalis Ltd t/a Antalis Document Supplies,99796456,79.86,Consumables
BEIS,UKRI - UKRI,06/09/2022,Recruitment Costs,UKRI People and Organisation Development,Warwick University Services Ltd,99796527,552.00,Recruitment Costs
BEIS,UKRI - UKRI,06/09/2022,Recruitment Costs,UKRI People and Organisation Development,Warwick University Services Ltd,99796527,72.00,Recruitment Costs
BEIS,UKRI - UKRI,06/09/2022,T&S UK - Other Charges,UKRI - Digital Data and Technology BAU Costs,Unspecified,99796657,56.98,T&S UK - Other Charges
BEIS,UKRI - UKRI,06/09/2022,T&S UK - Subsistence,UKRI - Digital Data and Technology BAU Costs,Unspecified,99796657,46.50,T&S UK - Subsistence
BEIS,UKRI - UKRI,06/09/2022,T&S UK - Subsistence,UKRI - Digital Data and Technology BAU Costs,Unspecified,99796657,4.55,T&S UK - Subsistence
BEIS,UKRI - UKRI,06/09/2022,T&S UK - Mileage,UKRI - Communications Projects and Services,Unspecified,99796658,102.05,T&S UK - Mileage
BEIS,UKRI - UKRI,06/09/2022,T&S UK - Subsistence,UKRI - Communications Projects and Services,Unspecified,99796658,10.00,T&S UK - Subsistence
BEIS,UKRI - UKRI,06/09/2022,T&S UK - Vehicle Hire,UKRI - Communications Projects and Services,Unspecified,99796658,153.15,T&S UK - Vehicle Hire
BEIS,UKRI - UKRI,06/09/2022,T&S UK - Other Charges,UKRI - External Communications,Unspecified,99796660,11.65,T&S UK - Other Charges
BEIS,UKRI - UKRI,06/09/2022,T&S UK - Subsistence,UKRI - External Communications,Unspecified,99796660,5.50,T&S UK - Subsistence
BEIS,UKRI - UKRI,06/09/2022,T&S UK - Subsistence,UKRI - External Communications,Unspecified,99796660,15.00,T&S UK - Subsistence
BEIS,UKRI - UKRI,06/09/2022,T&S UK - Subsistence,UKRI - External Communications,Unspecified,99796660,5.55,T&S UK - Subsistence
BEIS,UKRI - UKRI,06/09/2022,T&S UK - Other Charges,UKRI - Digital Data and Technology BAU Costs,Unspecified,99796662,27.93,T&S UK - Other Charges
BEIS,UKRI - UKRI,06/09/2022,T&S UK - Other Charges,UKRI - Culture Leadership and Learning,Unspecified,99796663,4.64,T&S UK - Other Charges
BEIS,UKRI - UKRI,06/09/2022,T&S UK - Public Transport,UKRI - Culture Leadership and Learning,Unspecified,99796663,8.00,T&S UK - Public Transport
BEIS,UKRI - UKRI,06/09/2022,T&S UK - Subsistence,UKRI - Culture Leadership and Learning,Unspecified,99796663,47.00,T&S UK - Subsistence
BEIS,UKRI - UKRI,06/09/2022,T&S UK - Subsistence,UKRI - Culture Leadership and Learning,Unspecified,99796663,9.60,T&S UK - Subsistence
BEIS,UKRI - UKRI,06/09/2022,Conferences & Seminars,UKRI - Strategic Finance Business Partners,Unspecified,99796664,105.00,Conferences & Seminars
BEIS,UKRI - UKRI,06/09/2022,T&S UK - Other Charges,UKRI - Strategic Finance Business Partners,Unspecified,99796665,25.00,T&S UK - Other Charges
BEIS,UKRI - UKRI,06/09/2022,Telecoms - Calls Fax & internet Costs,UKRI - External Communications,Unspecified,99796666,35.94,Telecoms - Calls Fax & internet Costs
BEIS,UKRI - UKRI,06/09/2022,T&S UK - Public Transport,UKRI - Estates,Unspecified,99796667,20.81,T&S UK - Public Transport
BEIS,UKRI - UKRI,06/09/2022,T&S UK - Subsistence,UKRI - Estates,Unspecified,99796667,18.76,T&S UK - Subsistence
BEIS,UKRI - UKRI,06/09/2022,T&S UK - Subsistence,UKRI - Estates,Unspecified,99796667,14.33,T&S UK - Subsistence
BEIS,UKRI - UKRI,06/09/2022,T&S UK - Subsistence,UKRI - Estates,Unspecified,99796667,9.38,T&S UK - Subsistence
BEIS,UKRI - UKRI,06/09/2022,T&S UK - Mileage,UKRI - Digital Data and Technology BAU Costs,Unspecified,99796669,127.80,T&S UK - Mileage
BEIS,UKRI - UKRI,06/09/2022,T&S UK - Subsistence,UKRI - Digital Data and Technology BAU Costs,Unspecified,99796669,9.35,T&S UK - Subsistence
BEIS,UKRI - UKRI,06/09/2022,T&S UK - Subsistence,UKRI - Digital Data and Technology BAU Costs,Unspecified,99796669,12.15,T&S UK - Subsistence
BEIS,UKRI - UKRI,06/09/2022,T&S UK - Subsistence,UKRI - Digital Data and Technology BAU Costs,Unspecified,99796669,5.00,T&S UK - Subsistence
BEIS,UKRI - UKRI,07/09/2022,Computer Software Licences,UKRI-SHARP,BYTES SOFTWARE SERVICES LTD,99778044,18553.69,Computer Software Licences
BEIS,UKRI - UKRI,07/09/2022,Computer Software,UKRI - Digital Data and Technology Project Costs,BYTES SOFTWARE SERVICES LTD,99778186,42974.57,Computer Software
BEIS,UKRI - UKRI,07/09/2022,Computer Software Licences,UKRI - Digital Data and Technology BAU Costs,BYTES SOFTWARE SERVICES LTD,99779251,277655.04,Computer Software Licences
BEIS,UKRI - UKRI,07/09/2022,Computer Software Licences,UKRI - Digital Data and Technology Project Costs,Phoenix Software Ltd,99780437,3600.00,Computer Software Licences
BEIS,UKRI - UKRI,07/09/2022,Unspecified,UKRI - Digital Data and Technology BAU Costs,Clearvision (CM) 2005 Ltd,99788000,18144.00,Legal & Professional Services
BEIS,UKRI - UKRI,07/09/2022,T&S UK - Mileage,UKRI Strategic HR Business Partners,Unspecified,99788510,161.10,T&S UK - Mileage
BEIS,UKRI - UKRI,07/09/2022,T&S UK - Subsistence,UKRI Strategic HR Business Partners,Unspecified,99788510,12.90,T&S UK - Subsistence
BEIS,UKRI - UKRI,07/09/2022,T&S UK - Subsistence,UKRI Strategic HR Business Partners,Unspecified,99788510,75.00,T&S UK - Subsistence
BEIS,UKRI - UKRI,07/09/2022,T&S UK - Subsistence,UKRI Strategic HR Business Partners,Unspecified,99788510,15.00,T&S UK - Subsistence
BEIS,UKRI - UKRI,07/09/2022,T&S UK - Subsistence,UKRI Strategic HR Business Partners,Unspecified,99788510,20.00,T&S UK - Subsistence
BEIS,UKRI - UKRI,07/09/2022,T&S UK - Other Charges,UKRI - Financial Accounting,Unspecified,99789081,397.72,T&S UK - Other Charges
BEIS,UKRI - UKRI,07/09/2022,Unspecified,UKRI - Digital Data and Technology Project Costs,Alexander Mann Solutions Ltd,99789254,3780.36,Contract Staff
BEIS,UKRI - UKRI,07/09/2022,Unspecified,UKRI - Funding Service,Alexander Mann Solutions Ltd,99789323,4896.66,Contract Staff
BEIS,UKRI - UKRI,07/09/2022,Advertising & Promotion,UKRI - Communications Content,Sure Languages Ltd,99791224,303.44,Advertising & Promotion
BEIS,UKRI - UKRI,07/09/2022,Printing & Stationery,UKRI - JBOS,Banner Group Ltd,99791984,25.80,Printing & Stationery
BEIS,UKRI - UKRI,07/09/2022,Safety Materials & Equipment,UKRI - Health and Safety,Banner Group Ltd,99793006,32.04,Safety Materials & Equipment
BEIS,UKRI - UKRI,07/09/2022,Unspecified,UKRI - Digital Data and Technology Project Costs,Alexander Mann Solutions Ltd,99793124,3780.36,Contract Staff
BEIS,UKRI - UKRI,07/09/2022,Unspecified,UKRI - Funding Service,Alexander Mann Solutions Ltd,99793129,17250.48,Contract Staff
BEIS,UKRI - UKRI,07/09/2022,Unspecified,UKRI - Funding Service,Alexander Mann Solutions Ltd,99793136,4896.66,Contract Staff
BEIS,UKRI - UKRI,07/09/2022,Design services,UKRI - JRS,The Accessible Digital Documents Company Ltd,99797185,330.00,Design services
BEIS,UKRI - UKRI,07/09/2022,Unspecified,Sciencewise,The Involve Foundation,99797194,19774.87,Legal & Professional Services
BEIS,UKRI - UKRI,07/09/2022,Consumables,UKRI - JRS,ATA Engineering Processes Ltd,99797279,10.20,Consumables
BEIS,UKRI - UKRI,07/09/2022,Consumables,UKRI - JRS,ATA Engineering Processes Ltd,99797279,128.06,Consumables
BEIS,UKRI - UKRI,07/09/2022,Consumables,UKRI - JRS,Premier Paper Group Ltd,99797290,690.00,Consumables
BEIS,UKRI - UKRI,07/09/2022,Unspecified,UKRI - JBOS,CHUBB FIRE & SECURITY LTD,99797345,1636.80,Legal & Professional Services
BEIS,UKRI - UKRI,07/09/2022,Unspecified,UKRI - JBOS,CHUBB FIRE & SECURITY LTD,99797347,1419.60,Legal & Professional Services
BEIS,UKRI - UKRI,07/09/2022,T&S UK - Other Charges,"Governance, Assurance and Operations",Unspecified,99797411,49.88,T&S UK - Other Charges
BEIS,UKRI - UKRI,07/09/2022,T&S UK - Mileage,UKRI - Financial Accounting,Unspecified,99797413,63.00,T&S UK - Mileage
BEIS,UKRI - UKRI,07/09/2022,Health & Safety (inc. Medicals & Opticians),UKRI - Estates,Unspecified,99797419,25.00,Health & Safety (inc. Medicals & Opticians)
BEIS,UKRI - UKRI,07/09/2022,T&S UK - Other Charges,UKRI - Estates,Unspecified,99797419,143.40,T&S UK - Other Charges
BEIS,UKRI - UKRI,07/09/2022,Asset Clearing,UKRI - International,Technology Strategy Board (Innovate UK),99797946,52800.00,Asset Clearing
BEIS,UKRI - UKRI,07/09/2022,Asset Clearing,UKRI - International,Technology Strategy Board (Innovate UK),99797947,215260.18,Asset Clearing
BEIS,UKRI - UKRI,07/09/2022,Unspecified,UKRI - Digital Data and Technology Project Costs,LA International Computer Consultants Ltd,99797953,1197.36,Contract Staff
BEIS,UKRI - UKRI,07/09/2022,Unspecified,UKRI - Digital Data and Technology Project Costs,LA International Computer Consultants Ltd,99797953,10177.56,Contract Staff
BEIS,UKRI - UKRI,07/09/2022,Unspecified,Sciencewise,The Involve Foundation,99797968,15747.37,Legal & Professional Services
BEIS,UKRI - UKRI,07/09/2022,Removal Services,UKRI - Estates,Harrow Green Ltd T/A Restore Harrow Green,99798001,158.76,Removal Services
BEIS,UKRI - UKRI,08/09/2022,Unspecified,UKRI - Funding Service,Alexander Mann Solutions Ltd,99773351,4896.66,Contract Staff
BEIS,UKRI - UKRI,08/09/2022,Unspecified,UKRI - Funding Service,Alexander Mann Solutions Ltd,99776564,4896.66,Contract Staff
BEIS,UKRI - UKRI,08/09/2022,Unspecified,UKRI - Funding Service,Alexander Mann Solutions Ltd,99780076,4896.66,Contract Staff
BEIS,UKRI - UKRI,08/09/2022,Unspecified,UKRI - Funding Service,Alexander Mann Solutions Ltd,99783995,4896.66,Contract Staff
BEIS,UKRI - UKRI,08/09/2022,Unspecified,UKRI - Funding Service,Alexander Mann Solutions Ltd,99786580,4896.66,Contract Staff
BEIS,UKRI - UKRI,08/09/2022,Unspecified,UKRI - Funding Service,Alexander Mann Solutions Ltd,99789311,4410.42,Contract Staff
BEIS,UKRI - UKRI,08/09/2022,Mechanical & Electrical Maintenance,UKRI - JBOS,AR Electrical (Swindon) Ltd,99789522,1380.00,Mechanical & Electrical Maintenance
BEIS,UKRI - UKRI,08/09/2022,Unspecified,UKRI - Digital Data and Technology Project Costs,LA International Computer Consultants Ltd,99789785,4881.18,Contract Staff
BEIS,UKRI - UKRI,08/09/2022,Unspecified,UKRI - Digital Data and Technology BAU Costs,LA International Computer Consultants Ltd,99789793,7186.80,Contract Staff
BEIS,UKRI - UKRI,08/09/2022,Purchase of non capital equipment,UKRI - Estates Projects,Abbey Business Interiors Ltd,99791808,1044.00,Purchase of non capital equipment
BEIS,UKRI - UKRI,08/09/2022,Unspecified,UKRI - Funding Service,Alexander Mann Solutions Ltd,99793137,4410.42,Contract Staff
BEIS,UKRI - UKRI,08/09/2022,Unspecified,UKRI - Digital Data and Technology BAU Costs,LA International Computer Consultants Ltd,99797170,3593.40,Contract Staff
BEIS,UKRI - UKRI,08/09/2022,Unspecified,UKRI - Digital Data and Technology Project Costs,LA International Computer Consultants Ltd,99797173,3293.40,Contract Staff
BEIS,UKRI - UKRI,08/09/2022,Unspecified,UKRI - Digital Data and Technology Project Costs,LA International Computer Consultants Ltd,99797956,3593.40,Contract Staff
BEIS,UKRI - UKRI,08/09/2022,Unspecified,UKRI - Digital Data and Technology Project Costs,LA International Computer Consultants Ltd,99797958,2993.40,Contract Staff
BEIS,UKRI - UKRI,08/09/2022,Unspecified,UKRI - Digital Data and Technology Project Costs,LA International Computer Consultants Ltd,99797959,4881.18,Contract Staff
BEIS,UKRI - UKRI,08/09/2022,Printing & Stationery,UKRI - JBOS,Banner Group Ltd,99798161,53.64,Printing & Stationery
BEIS,UKRI - UKRI,08/09/2022,Other prepayments,UKRI - Overseas Office USA,FairFX Plc,99798571,250.00,Other prepayments
BEIS,UKRI - UKRI,08/09/2022,Postage & Courier Services,UKRI - JBOS,CitySprint (UK) Ltd,99799569,639.19,Postage & Courier Services
BEIS,UKRI - UKRI,08/09/2022,Advertising & Promotion,UKRI - Communications Content,Rachael Presky Ltd,99799587,3350.00,Advertising & Promotion
BEIS,UKRI - UKRI,08/09/2022,Computer Software,UKRI - Digital Data and Technology BAU Costs,Business Funding Research Ltd T/A Beauhurst,99799591,90000.00,Computer Software
BEIS,UKRI - UKRI,08/09/2022,Mobile Phone Costs,UKRI - Digital Data and Technology Recharges,Telefonica UK Ltd (O2),99799601,2853.26,Mobile Phone Costs
BEIS,UKRI - UKRI,08/09/2022,Mobile Phone Costs,UKRI - Digital Data and Technology Recharges,Telefonica UK Ltd (O2),99799601,532.21,Mobile Phone Costs
BEIS,UKRI - UKRI,08/09/2022,Mobile Phone Costs,UKRI - Digital Data and Technology Recharges,Telefonica UK Ltd (O2),99799602,1.90,Mobile Phone Costs
BEIS,UKRI - UKRI,08/09/2022,Mobile Phone Costs,UKRI - Digital Data and Technology Recharges,Telefonica UK Ltd (O2),99799602,0.38,Mobile Phone Costs
BEIS,UKRI - UKRI,08/09/2022,Mobile Phone Costs,UKRI - Digital Data and Technology BAU Costs,Telefonica UK Ltd (O2),99799603,159.55,Mobile Phone Costs
BEIS,UKRI - UKRI,08/09/2022,Mobile Phone Costs,UKRI - Digital Data and Technology BAU Costs,Telefonica UK Ltd (O2),99799603,30.71,Mobile Phone Costs
BEIS,UKRI - UKRI,08/09/2022,Mobile Phone Costs,UKRI - Digital Data and Technology BAU Costs,Telefonica UK Ltd (O2),99799604,1292.78,Mobile Phone Costs
BEIS,UKRI - UKRI,08/09/2022,Mobile Phone Costs,UKRI - Digital Data and Technology BAU Costs,Telefonica UK Ltd (O2),99799604,203.96,Mobile Phone Costs
BEIS,UKRI - UKRI,08/09/2022,Mobile Phone Costs,UKRI - Digital Data and Technology BAU Costs,Telefonica UK Ltd (O2),99799605,4224.95,Mobile Phone Costs
BEIS,UKRI - UKRI,08/09/2022,Mobile Phone Costs,UKRI - Digital Data and Technology BAU Costs,Telefonica UK Ltd (O2),99799605,844.99,Mobile Phone Costs
BEIS,UKRI - UKRI,08/09/2022,Mobile Phone Costs,UKRI - Digital Data and Technology BAU Costs,Telefonica UK Ltd (O2),99799606,27.25,Mobile Phone Costs
BEIS,UKRI - UKRI,08/09/2022,Mobile Phone Costs,UKRI - Digital Data and Technology BAU Costs,Telefonica UK Ltd (O2),99799606,5.45,Mobile Phone Costs
BEIS,UKRI - UKRI,08/09/2022,Mobile Phone Costs,UKRI - Digital Data and Technology BAU Costs,Telefonica UK Ltd (O2),99799607,275.25,Mobile Phone Costs
BEIS,UKRI - UKRI,08/09/2022,Mobile Phone Costs,UKRI - Digital Data and Technology BAU Costs,Telefonica UK Ltd (O2),99799607,52.65,Mobile Phone Costs
BEIS,UKRI - UKRI,08/09/2022,Mobile Phone Costs,UKRI - Digital Data and Technology BAU Costs,Telefonica UK Ltd (O2),99799608,28.90,Mobile Phone Costs
BEIS,UKRI - UKRI,08/09/2022,Mobile Phone Costs,UKRI - Digital Data and Technology BAU Costs,Telefonica UK Ltd (O2),99799608,5.78,Mobile Phone Costs
BEIS,UKRI - UKRI,08/09/2022,Mobile Phone Costs,UKRI - Digital Data and Technology BAU Costs,Telefonica UK Ltd (O2),99799609,215.76,Mobile Phone Costs
BEIS,UKRI - UKRI,08/09/2022,Mobile Phone Costs,UKRI - Digital Data and Technology BAU Costs,Telefonica UK Ltd (O2),99799609,19.15,Mobile Phone Costs
BEIS,UKRI - UKRI,08/09/2022,Mobile Phone Costs,UKRI - Digital Data and Technology BAU Costs,Telefonica UK Ltd (O2),99799610,1685.31,Mobile Phone Costs
BEIS,UKRI - UKRI,08/09/2022,Mobile Phone Costs,UKRI - Digital Data and Technology BAU Costs,Telefonica UK Ltd (O2),99799610,257.50,Mobile Phone Costs
BEIS,UKRI - UKRI,08/09/2022,Mobile Phone Costs,UKRI - Digital Data and Technology BAU Costs,Telefonica UK Ltd (O2),99799611,172.68,Mobile Phone Costs
BEIS,UKRI - UKRI,08/09/2022,Mobile Phone Costs,UKRI - Digital Data and Technology BAU Costs,Telefonica UK Ltd (O2),99799611,26.14,Mobile Phone Costs
BEIS,UKRI - UKRI,08/09/2022,Mobile Phone Costs,UKRI - Digital Data and Technology BAU Costs,Telefonica UK Ltd (O2),99799612,183.55,Mobile Phone Costs
BEIS,UKRI - UKRI,08/09/2022,Mobile Phone Costs,UKRI - Digital Data and Technology BAU Costs,Telefonica UK Ltd (O2),99799612,36.71,Mobile Phone Costs
BEIS,UKRI - UKRI,08/09/2022,Mobile Phone Costs,UKRI - Digital Data and Technology BAU Costs,Telefonica UK Ltd (O2),99799613,4125.85,Mobile Phone Costs
BEIS,UKRI - UKRI,08/09/2022,Mobile Phone Costs,UKRI - Digital Data and Technology BAU Costs,Telefonica UK Ltd (O2),99799613,723.93,Mobile Phone Costs
BEIS,UKRI - UKRI,08/09/2022,Mobile Phone Costs,UKRI - Digital Data and Technology BAU Costs,Telefonica UK Ltd (O2),99799614,2.85,Mobile Phone Costs
BEIS,UKRI - UKRI,08/09/2022,Mobile Phone Costs,UKRI - Digital Data and Technology BAU Costs,Telefonica UK Ltd (O2),99799614,0.57,Mobile Phone Costs
BEIS,UKRI - UKRI,08/09/2022,Mobile Phone Costs,UKRI - Digital Data and Technology BAU Costs,Telefonica UK Ltd (O2),99799615,2250.95,Mobile Phone Costs
BEIS,UKRI - UKRI,08/09/2022,Mobile Phone Costs,UKRI - Digital Data and Technology BAU Costs,Telefonica UK Ltd (O2),99799615,450.19,Mobile Phone Costs
BEIS,UKRI - UKRI,08/09/2022,Other Bought In Services,UKRI - Estates Projects,Rachel Everington Marketing Ltd,99799686,1440.00,Other Bought In Services
BEIS,UKRI - UKRI,08/09/2022,T&S UK - Other Charges,UKRI - Communications External Affairs,Unspecified,99799714,7.98,T&S UK - Other Charges
BEIS,UKRI - UKRI,08/09/2022,T&S UK - Public Transport,UKRI - Communications External Affairs,Unspecified,99799714,15.20,T&S UK - Public Transport
BEIS,UKRI - UKRI,08/09/2022,T&S UK - Subsistence,UKRI - Communications External Affairs,Unspecified,99799714,25.00,T&S UK - Subsistence
BEIS,UKRI - UKRI,08/09/2022,T&S UK - Subsistence,UKRI - Communications External Affairs,Unspecified,99799714,10.00,T&S UK - Subsistence
BEIS,UKRI - UKRI,08/09/2022,Conferences & Seminars,UKRI - Strategic Finance Business Partners,Unspecified,99799715,143.00,Conferences & Seminars
BEIS,UKRI - UKRI,08/09/2022,Education Fees & Study Materials,UKRI - Strategic Finance Business Partners,Unspecified,99799715,46.80,Education Fees & Study Materials
BEIS,UKRI - UKRI,08/09/2022,UK - Professional Memberships & Subscriptions,UKRI - Procurement and Commercial,Unspecified,99799716,262.00,UK - Professional Memberships & Subscriptions
BEIS,UKRI - UKRI,08/09/2022,T&S UK - Public Transport,UKRI - Estates,Unspecified,99799717,171.79,T&S UK - Public Transport
BEIS,UKRI - UKRI,09/09/2022,Computer Hardware,UKRI - Estates,Paperstone Ltd,99341010,21.58,Computer Hardware
BEIS,UKRI - UKRI,09/09/2022,Postage & Courier Services,UKRI - Estates,Paperstone Ltd,99341010,5.94,Postage & Courier Services
BEIS,UKRI - UKRI,09/09/2022,Unspecified,UKRI - Digital Data and Technology Project Costs,Alexander Mann Solutions Ltd,99786577,7560.72,Contract Staff
BEIS,UKRI - UKRI,09/09/2022,Unspecified,UKRI - Digital Data and Technology Project Costs,Alexander Mann Solutions Ltd,99789287,3780.36,Contract Staff
BEIS,UKRI - UKRI,09/09/2022,T&S UK - Mileage,UKRI - Strategy,Unspecified,99792201,116.10,T&S UK - Mileage
BEIS,UKRI - UKRI,09/09/2022,T&S UK - Subsistence,UKRI - Strategy,Unspecified,99792201,5.00,T&S UK - Subsistence
BEIS,UKRI - UKRI,09/09/2022,Computer Software Licences,UKRI - Digital Data and Technology Recharges,Boxxe Ltd,99793062,220581.60,Computer Software Licences
BEIS,UKRI - UKRI,09/09/2022,IT / Computing Support Services,UKRI - Digital Data and Technology BAU Costs,Natterbox Ltd,99793158,41082.61,IT / Computing Support Services
BEIS,UKRI - UKRI,09/09/2022,IT / Computing Support Services,UKRI - Digital Data and Technology BAU Costs,Natterbox Ltd,99793158,0.12,IT / Computing Support Services
BEIS,UKRI - UKRI,09/09/2022,IT / Computing Support Services,UKRI - Digital Data and Technology BAU Costs,Natterbox Ltd,99793158,0.02,IT / Computing Support Services
BEIS,UKRI - UKRI,09/09/2022,Recruitment Costs,UKRI People and Organisation Development,Agenda Resource Management Ltd,99797262,3008.69,Recruitment Costs
BEIS,UKRI - UKRI,09/09/2022,Recruitment Costs,UKRI People and Organisation Development,Agenda Resource Management Ltd,99797263,56.11,Recruitment Costs
BEIS,UKRI - UKRI,09/09/2022,Removal Services,UKRI - Estates,Harrow Green Ltd T/A Restore Harrow Green,99798002,13.23,Removal Services
BEIS,UKRI - UKRI,09/09/2022,Unspecified,"UKRI People, Policies and Management",Department for Business Energy & Industrial Strategy,99798220,11856.95,Secondments
BEIS,UKRI - UKRI,09/09/2022,Unspecified,UKRI - Communications Content,McDaid Public Relations Ltd,99798665,991.20,Legal & Professional Services
BEIS,UKRI - UKRI,09/09/2022,Recruitment Costs,UKRI People and Organisation Development,Onefix Recruitment Ltd,99798674,1470.00,Recruitment Costs
BEIS,UKRI - UKRI,09/09/2022,IT / Computing Support Services,UKRI - Digital Data and Technology BAU Costs,Natterbox Ltd,99798715,1.37,IT / Computing Support Services
BEIS,UKRI - UKRI,09/09/2022,Building Rents,UKRI - Estates,NESTA,99799809,209759.51,Building Rents
BEIS,UKRI - UKRI,09/09/2022,Building Rents,UKRI - Estates,NESTA,99799811,42939.58,Building Rents
BEIS,UKRI - UKRI,09/09/2022,Staff Training,UKRI People and Organisation Development,Avado Learning Ltd,99800296,3450.00,Staff Training
BEIS,UKRI - UKRI,09/09/2022,Unspecified,"UKRI People, Policies and Management",Equiniti Ltd,99800312,1782.59,Legal & Professional Services
BEIS,UKRI - UKRI,09/09/2022,Electricity,UKRI - JBOS,EDF Energy,99800320,-40642.63,Electricity
BEIS,UKRI - UKRI,09/09/2022,Electricity,UKRI - JBOS,EDF Energy,99800342,40667.15,Electricity
BEIS,UKRI - UKRI,09/09/2022,Electricity,UKRI - JBOS,EDF Energy,99800347,-43489.93,Electricity
BEIS,UKRI - UKRI,09/09/2022,Electricity,UKRI - JBOS,EDF Energy,99800349,43474.18,Electricity
BEIS,UKRI - UKRI,09/09/2022,Unspecified,UKRI-SHARP,Sanderson Government and Defence Ltd,99800997,8869.50,Contract Staff
BEIS,UKRI - UKRI,09/09/2022,Unspecified,UKRI-SHARP,Sanderson Government and Defence Ltd,99801000,19950.00,Contract Staff
BEIS,UKRI - UKRI,09/09/2022,UK - Professional Memberships & Subscriptions,UKRI - JRS,The Association of Creative and Print Managers in Education (ACPME),99801004,200.00,UK - Professional Memberships & Subscriptions
BEIS,UKRI - UKRI,09/09/2022,Unspecified,UKRI-SHARP,Sanderson Government and Defence Ltd,99801007,11826.00,Contract Staff
BEIS,UKRI - UKRI,09/09/2022,T&S Overseas - Parking Tolls Congestion Charges,UKRI - Overseas Office USA,Unspecified,99801115,22.38,T&S Overseas - Parking Tolls Congestion Charges
BEIS,UKRI - UKRI,09/09/2022,T&S UK - Other Charges,UKRI - Counter Fraud,Unspecified,99801121,3.00,T&S UK - Other Charges
BEIS,UKRI - UKRI,09/09/2022,T&S UK - Other Charges,UKRI - Counter Fraud,Unspecified,99801122,6.00,T&S UK - Other Charges
BEIS,UKRI - UKRI,12/09/2022,Hardware/Software Maintenance,UKRI - JRS,Eprod Software B.V,99772420,689.55,Hardware/Software Maintenance
BEIS,UKRI - UKRI,12/09/2022,Staff Training,UKRI - Funding Service,KNOWLEDGE TRAIN LTD,99787820,1018.80,Staff Training
BEIS,UKRI - UKRI,12/09/2022,Other Staff Benefits,"UKRI People, Policies and Management",My Family Care Ltd,99789189,35319.60,Other Staff Benefits
BEIS,UKRI - UKRI,12/09/2022,Unspecified,UKRI - Digital Data and Technology Project Costs,Alexander Mann Solutions Ltd,99789260,1433.36,Contract Staff
BEIS,UKRI - UKRI,12/09/2022,Unspecified,UKRI - Digital Data and Technology Project Costs,Alexander Mann Solutions Ltd,99789260,1433.38,Contract Staff
BEIS,UKRI - UKRI,12/09/2022,Staff Training,UKRI - Funding Service,KNOWLEDGE TRAIN LTD,99790045,1018.80,Staff Training
BEIS,UKRI - UKRI,12/09/2022,Unspecified,UKRI People and Organisation Development,Alexander Mann Solutions Ltd,99790208,1575.12,Contract Staff
BEIS,UKRI - UKRI,12/09/2022,Corporation Tax,UKRI - Corporate Services,HM Revenue & Customs,99797305,9000000.00,Corporation Tax
BEIS,UKRI - UKRI,12/09/2022,Recruitment Costs,UKRI People and Organisation Development,Onefix Recruitment Ltd,99799698,1224.00,Recruitment Costs
BEIS,UKRI - UKRI,12/09/2022,Recruitment Costs,UKRI People and Organisation Development,Agenda Resource Management Ltd,99800287,835.08,Recruitment Costs
BEIS,UKRI - UKRI,12/09/2022,Unspecified,UKRI - Digital Data and Technology Project Costs,Precision Resource Group Ltd T/A iO,99801390,2472.00,Contract Staff
BEIS,UKRI - UKRI,12/09/2022,Consumables,UKRI - JRS,ATA Engineering Processes Ltd,99801393,10.20,Consumables
BEIS,UKRI - UKRI,12/09/2022,Consumables,UKRI - JRS,ATA Engineering Processes Ltd,99801393,145.51,Consumables
BEIS,UKRI - UKRI,12/09/2022,Conferences & Seminars,UKRI - Funding Assurance,Basset Down Complex Ltd,99801400,79.20,Conferences & Seminars
BEIS,UKRI - UKRI,12/09/2022,Advertising & Promotion,UKRI - Communications Content,Rachael Presky Ltd,99801427,250.00,Advertising & Promotion
BEIS,UKRI - UKRI,12/09/2022,IT / Computing Support Services,UKRI - Digital Data and Technology Recharges,DATABARRACKS LTD,99801452,1200.00,IT / Computing Support Services
BEIS,UKRI - UKRI,12/09/2022,Storage & Archiving Costs,UKRI - Information Governance,Restore plc,99801454,3518.03,Storage & Archiving Costs
BEIS,UKRI - UKRI,12/09/2022,Unspecified,UKRI-SHARP,Alexander Mann Solutions Ltd,99801535,2618.74,Contract Staff
BEIS,UKRI - UKRI,12/09/2022,Unspecified,UKRI - Digital Data and Technology Project Costs,Alexander Mann Solutions Ltd,99801540,2956.46,Contract Staff
BEIS,UKRI - UKRI,12/09/2022,Unspecified,UKRI - Digital Data and Technology BAU Costs,Alexander Mann Solutions Ltd,99801541,1970.98,Contract Staff
BEIS,UKRI - UKRI,12/09/2022,Unspecified,UKRI - Strategic Finance Business Partners,Alexander Mann Solutions Ltd,99801542,378.04,Agency Staff
BEIS,UKRI - UKRI,12/09/2022,Unspecified,UKRI - Communications Web and Intranet Service,Alexander Mann Solutions Ltd,99801544,1390.75,Contract Staff
BEIS,UKRI - UKRI,12/09/2022,Unspecified,UKRI People and Organisation Development,Alexander Mann Solutions Ltd,99801549,2835.22,Contract Staff
BEIS,UKRI - UKRI,12/09/2022,Unspecified,UKRI-SHARP,Alexander Mann Solutions Ltd,99801551,3276.29,Contract Staff
BEIS,UKRI - UKRI,12/09/2022,Unspecified,UKRI - Digital Data and Technology Project Costs,Alexander Mann Solutions Ltd,99801553,2217.36,Contract Staff
BEIS,UKRI - UKRI,12/09/2022,T&S UK - Mileage,UKRI - Overseas Office India,Unspecified,99801581,174.35,T&S UK - Mileage
BEIS,UKRI - UKRI,12/09/2022,T&S UK - Subsistence,UKRI - Overseas Office India,Unspecified,99801581,4.05,T&S UK - Subsistence
BEIS,UKRI - UKRI,12/09/2022,T&S UK - Subsistence,UKRI - Overseas Office India,Unspecified,99801581,78.49,T&S UK - Subsistence
BEIS,UKRI - UKRI,12/09/2022,T&S UK - Subsistence,UKRI - Overseas Office India,Unspecified,99801581,15.97,T&S UK - Subsistence
BEIS,UKRI - UKRI,12/09/2022,T&S UK - Subsistence,UKRI - Overseas Office India,Unspecified,99801581,90.00,T&S UK - Subsistence
BEIS,UKRI - UKRI,12/09/2022,T&S UK - Subsistence,UKRI - Risk and Counter Fraud,Unspecified,99801583,12.00,T&S UK - Subsistence
BEIS,UKRI - UKRI,12/09/2022,T&S UK - Other Charges,UKRI - Digital Data and Technology BAU Costs,Unspecified,99801585,29.97,T&S UK - Other Charges
BEIS,UKRI - UKRI,12/09/2022,Staff Training,UKRI - Culture Leadership and Learning,Page Tiger Ltd,99802366,2376.00,Staff Training
BEIS,UKRI - UKRI,12/09/2022,Staff Training,UKRI - Culture Leadership and Learning,Page Tiger Ltd,99802367,588.00,Staff Training
BEIS,UKRI - UKRI,12/09/2022,Staff Training,UKRI - Culture Leadership and Learning,Page Tiger Ltd,99802368,2352.00,Staff Training
BEIS,UKRI - UKRI,12/09/2022,Unspecified,UKRI-SHARP,Alexander Mann Solutions Ltd,99802406,2047.97,Contract Staff
BEIS,UKRI - UKRI,12/09/2022,Unspecified,UKRI - Funding Service,Alexander Mann Solutions Ltd,99802407,3917.33,Contract Staff
BEIS,UKRI - UKRI,12/09/2022,Unspecified,UKRI - Digital Data and Technology BAU Costs,Alexander Mann Solutions Ltd,99802412,1890.17,Contract Staff
BEIS,UKRI - UKRI,12/09/2022,Unspecified,UKRI-SHARP,Alexander Mann Solutions Ltd,99802417,1691.89,Contract Staff
BEIS,UKRI - UKRI,12/09/2022,Unspecified,UKRI-SHARP,Alexander Mann Solutions Ltd,99802419,3236.98,Contract Staff
BEIS,UKRI - UKRI,12/09/2022,Unspecified,UKRI-SHARP,Alexander Mann Solutions Ltd,99802421,2520.24,Contract Staff
BEIS,UKRI - UKRI,12/09/2022,Unspecified,UKRI-SHARP,Alexander Mann Solutions Ltd,99802444,2463.70,Contract Staff
BEIS,UKRI - UKRI,12/09/2022,Unspecified,UKRI-SHARP,Alexander Mann Solutions Ltd,99802455,1260.10,Agency Staff
BEIS,UKRI - UKRI,13/09/2022,Unspecified,UKRI - Funding Service,Sanderson Government and Defence Ltd,99445719,216.00,Contract Staff
BEIS,UKRI - UKRI,13/09/2022,Unspecified,UKRI - Funding Service,Sanderson Government and Defence Ltd,99445719,6912.00,Contract Staff
BEIS,UKRI - UKRI,13/09/2022,Unspecified,UKRI - Funding Service,Sanderson Government and Defence Ltd,99445719,7560.00,Contract Staff
BEIS,UKRI - UKRI,13/09/2022,Computer Software,UKRI - Estates Projects,ParkPnp Ltd T/A Wayleadr,99762649,1300.00,Computer Software
BEIS,UKRI - UKRI,13/09/2022,Unspecified,UKRI - UKRO,Partena Business Solutions,99769666,175.52,Legal & Professional Services
BEIS,UKRI - UKRI,13/09/2022,Computer Hardware,UKRI - Digital Data and Technology Project Costs,Deepnet Security Ltd,99776164,3205.00,Computer Hardware
BEIS,UKRI - UKRI,13/09/2022,Computer Software,UKRI - Estates Projects,ParkPnp Ltd T/A Wayleadr,99777627,1300.00,Computer Software
BEIS,UKRI - UKRI,13/09/2022,Unspecified,UKRI - UKRO,Partena Business Solutions,99780585,206.11,Legal & Professional Services
BEIS,UKRI - UKRI,13/09/2022,Unspecified,UKRI - Digital Data and Technology Project Costs,LA International Computer Consultants Ltd,99785642,3293.40,Contract Staff
BEIS,UKRI - UKRI,13/09/2022,Unspecified,UKRI - Digital Data and Technology Project Costs,UK Shared Business Services Ltd,99786726,181789.00,Legal & Professional Services
BEIS,UKRI - UKRI,13/09/2022,Unspecified,UKRI-SHARP,UK Shared Business Services Ltd,99786840,22384.00,Secondments
BEIS,UKRI - UKRI,13/09/2022,Health & Safety (inc. Medicals & Opticians),UKRI - Digital Data and Technology BAU Costs,Unspecified,99789084,208.00,Health & Safety (inc. Medicals & Opticians)
BEIS,UKRI - UKRI,13/09/2022,Computer Software Licences,UKRI - Digital Data and Technology BAU Costs,Monday.com Ltd,99790835,3520.00,Computer Software Licences
BEIS,UKRI - UKRI,13/09/2022,Staff Training,UKRI People and Organisation Development,Avado Learning Ltd,99791498,2490.00,Staff Training
BEIS,UKRI - UKRI,13/09/2022,Research Grant Expenditure,UKRI - GCRF Programme,King's College London,99791814,-32500.00,Research Grant Expenditure
BEIS,UKRI - UKRI,13/09/2022,Research Grant Expenditure,UKRI - GCRF Programme,Earlham Institute,99791815,37500.00,Research Grant Expenditure
BEIS,UKRI - UKRI,13/09/2022,Research Grant Expenditure,UKRI - GCRF Programme,Cranfield University,99791816,37500.00,Research Grant Expenditure
BEIS,UKRI - UKRI,13/09/2022,Research Grant Expenditure,UKRI - GCRF Programme,"University of Wales, Cardiff - UWC",99791817,50000.01,Research Grant Expenditure
BEIS,UKRI - UKRI,13/09/2022,Research Grant Expenditure,UKRI - GCRF Programme,The Francis Crick Institute,99791818,50000.01,Research Grant Expenditure
BEIS,UKRI - UKRI,13/09/2022,Research Grant Expenditure,UKRI - GCRF Programme,University of Stirling GRANT,99791819,50000.01,Research Grant Expenditure
BEIS,UKRI - UKRI,13/09/2022,Research Grant Expenditure,UKRI - GCRF Programme,International Institute For Environment And Development,99791820,49156.15,Research Grant Expenditure
BEIS,UKRI - UKRI,13/09/2022,Research Grant Expenditure,UKRI - GCRF Programme,"SOAS, University of London",99791821,-103728.92,Research Grant Expenditure
BEIS,UKRI - UKRI,13/09/2022,Research Grant Expenditure,UKRI - GCRF Programme,University of Sussex GRANT,99791822,62499.99,Research Grant Expenditure
BEIS,UKRI - UKRI,13/09/2022,Research Grant Expenditure,UKRI - GCRF Programme,University of Durham GRANT,99791823,137499.99,Research Grant Expenditure
BEIS,UKRI - UKRI,13/09/2022,Computer Software,UKRI - Estates Projects,ParkPnp Ltd T/A Wayleadr,99792950,1300.00,Computer Software
BEIS,UKRI - UKRI,13/09/2022,Recharges From Councils - Non-Salary,UKRI - Funding Service,UKRI - Medical Research Council,99793078,50110.72,Recharges From Councils - Non-Salary
BEIS,UKRI - UKRI,13/09/2022,Research Grant Expenditure,OODA Impact Awards 2022-23,National Oceanography Centre (NOC),99793226,10000.01,Research Grant Expenditure
BEIS,UKRI - UKRI,13/09/2022,Research Grant Expenditure,OODA Impact Awards 2022-23,National Oceanography Centre (NOC),99793226,10000.00,Research Grant Expenditure
BEIS,UKRI - UKRI,13/09/2022,Research Grant Expenditure,OODA Impact Awards 2022-23,Loughborough University GRANT,99793227,10000.01,Research Grant Expenditure
BEIS,UKRI - UKRI,13/09/2022,Research Grant Expenditure,OODA Impact Awards 2022-23,Loughborough University GRANT,99793227,10000.00,Research Grant Expenditure
BEIS,UKRI - UKRI,13/09/2022,Research Grant Expenditure,OODA Impact Awards 2022-23,University of Warwick,99793228,12499.99,Research Grant Expenditure
BEIS,UKRI - UKRI,13/09/2022,Research Grant Expenditure,OODA Impact Awards 2022-23,University of Warwick,99793228,12500.00,Research Grant Expenditure
BEIS,UKRI - UKRI,13/09/2022,Research Grant Expenditure,OODA Impact Awards 2022-23,UK Centre for Ecology and Hydrology (UKCEH),99793229,12499.99,Research Grant Expenditure
BEIS,UKRI - UKRI,13/09/2022,Research Grant Expenditure,OODA Impact Awards 2022-23,UK Centre for Ecology and Hydrology (UKCEH),99793229,12500.00,Research Grant Expenditure
BEIS,UKRI - UKRI,13/09/2022,Research Grant Expenditure,OODA Impact Awards 2022-23,University of Nottingham GRANT,99793230,15000.00,Research Grant Expenditure
BEIS,UKRI - UKRI,13/09/2022,Research Grant Expenditure,OODA Impact Awards 2022-23,University of Nottingham GRANT,99793230,15000.00,Research Grant Expenditure
BEIS,UKRI - UKRI,13/09/2022,Research Grant Expenditure,OODA Impact Awards 2022-23,ICSTM,99793231,32500.01,Research Grant Expenditure
BEIS,UKRI - UKRI,13/09/2022,Research Grant Expenditure,OODA Impact Awards 2022-23,ICSTM,99793231,32500.00,Research Grant Expenditure
BEIS,UKRI - UKRI,13/09/2022,Research Grant Expenditure,OODA Impact Awards 2022-23,The University of Manchester GRANT,99793232,27499.99,Research Grant Expenditure
BEIS,UKRI - UKRI,13/09/2022,Research Grant Expenditure,OODA Impact Awards 2022-23,The University of Manchester GRANT,99793232,27500.00,Research Grant Expenditure
BEIS,UKRI - UKRI,13/09/2022,Research Grant Expenditure,OODA Impact Awards 2022-23,King's College London,99793233,37500.00,Research Grant Expenditure
BEIS,UKRI - UKRI,13/09/2022,Research Grant Expenditure,OODA Impact Awards 2022-23,King's College London,99793233,37500.00,Research Grant Expenditure
BEIS,UKRI - UKRI,13/09/2022,Research Grant Expenditure,OODA Impact Awards 2022-23,Lancaster University GRANT,99793234,15000.00,Research Grant Expenditure
BEIS,UKRI - UKRI,13/09/2022,Research Grant Expenditure,OODA Impact Awards 2022-23,Lancaster University GRANT,99793234,15000.00,Research Grant Expenditure
BEIS,UKRI - UKRI,13/09/2022,Research Grant Expenditure,OODA Impact Awards 2022-23,University of Sheffield GRANT,99793235,15000.00,Research Grant Expenditure
BEIS,UKRI - UKRI,13/09/2022,Research Grant Expenditure,OODA Impact Awards 2022-23,University of Sheffield GRANT,99793235,15000.00,Research Grant Expenditure
BEIS,UKRI - UKRI,13/09/2022,Research Grant Expenditure,OODA Impact Awards 2022-23,Bangor University,99793236,10000.01,Research Grant Expenditure
BEIS,UKRI - UKRI,13/09/2022,Research Grant Expenditure,OODA Impact Awards 2022-23,Bangor University,99793236,10000.00,Research Grant Expenditure
BEIS,UKRI - UKRI,13/09/2022,Research Grant Expenditure,OODA Impact Awards 2022-23,University of Stirling GRANT,99793237,10000.01,Research Grant Expenditure
BEIS,UKRI - UKRI,13/09/2022,Research Grant Expenditure,OODA Impact Awards 2022-23,University of Stirling GRANT,99793237,10000.00,Research Grant Expenditure
BEIS,UKRI - UKRI,13/09/2022,Research Grant Expenditure,OODA Impact Awards 2022-23,University of Bath,99793238,10000.01,Research Grant Expenditure
BEIS,UKRI - UKRI,13/09/2022,Research Grant Expenditure,OODA Impact Awards 2022-23,University of Bath,99793238,10000.00,Research Grant Expenditure
BEIS,UKRI - UKRI,13/09/2022,Research Grant Expenditure,OODA Impact Awards 2022-23,International Institute For Environment And Development,99793239,10000.01,Research Grant Expenditure
BEIS,UKRI - UKRI,13/09/2022,Research Grant Expenditure,OODA Impact Awards 2022-23,International Institute For Environment And Development,99793239,10000.00,Research Grant Expenditure
BEIS,UKRI - UKRI,13/09/2022,Research Grant Expenditure,OODA Impact Awards 2022-23,University of Reading GRANT,99793240,10000.01,Research Grant Expenditure
BEIS,UKRI - UKRI,13/09/2022,Research Grant Expenditure,OODA Impact Awards 2022-23,University of Reading GRANT,99793240,10000.00,Research Grant Expenditure
BEIS,UKRI - UKRI,13/09/2022,Research Grant Expenditure,OODA Impact Awards 2022-23,"SOAS, University of London",99793241,12499.99,Research Grant Expenditure
BEIS,UKRI - UKRI,13/09/2022,Research Grant Expenditure,OODA Impact Awards 2022-23,"SOAS, University of London",99793241,12500.00,Research Grant Expenditure
BEIS,UKRI - UKRI,13/09/2022,Research Grant Expenditure,OODA Impact Awards 2022-23,University of Aberdeen GRANT,99793242,12499.99,Research Grant Expenditure
BEIS,UKRI - UKRI,13/09/2022,Research Grant Expenditure,OODA Impact Awards 2022-23,University of Aberdeen GRANT,99793242,12500.00,Research Grant Expenditure
BEIS,UKRI - UKRI,13/09/2022,Research Grant Expenditure,OODA Impact Awards 2022-23,University of East Anglia GRANT,99794227,10000.01,Research Grant Expenditure
BEIS,UKRI - UKRI,13/09/2022,Research Grant Expenditure,OODA Impact Awards 2022-23,University of East Anglia GRANT,99794227,10000.00,Research Grant Expenditure
BEIS,UKRI - UKRI,13/09/2022,Research Grant Expenditure,OODA Impact Awards 2022-23,Rothamsted Research Ltd,99794228,12499.99,Research Grant Expenditure
BEIS,UKRI - UKRI,13/09/2022,Research Grant Expenditure,OODA Impact Awards 2022-23,Rothamsted Research Ltd,99794228,12500.00,Research Grant Expenditure
BEIS,UKRI - UKRI,13/09/2022,Research Grant Expenditure,OODA Impact Awards 2022-23,Cranfield University,99794229,10000.01,Research Grant Expenditure
BEIS,UKRI - UKRI,13/09/2022,Research Grant Expenditure,OODA Impact Awards 2022-23,Cranfield University,99794229,10000.00,Research Grant Expenditure
BEIS,UKRI - UKRI,13/09/2022,Research Grant Expenditure,OODA Impact Awards 2022-23,"University of Wales, Cardiff - UWC",99794230,10000.01,Research Grant Expenditure
BEIS,UKRI - UKRI,13/09/2022,Research Grant Expenditure,OODA Impact Awards 2022-23,"University of Wales, Cardiff - UWC",99794230,10000.00,Research Grant Expenditure
BEIS,UKRI - UKRI,13/09/2022,Research Grant Expenditure,OODA Impact Awards 2022-23,Queen Mary University of London,99794231,15000.00,Research Grant Expenditure
BEIS,UKRI - UKRI,13/09/2022,Research Grant Expenditure,OODA Impact Awards 2022-23,Queen Mary University of London,99794231,15000.00,Research Grant Expenditure
BEIS,UKRI - UKRI,13/09/2022,Research Grant Expenditure,OODA Impact Awards 2022-23,University of York GRANT,99794232,32500.01,Research Grant Expenditure
BEIS,UKRI - UKRI,13/09/2022,Research Grant Expenditure,OODA Impact Awards 2022-23,University of York GRANT,99794232,32500.00,Research Grant Expenditure
BEIS,UKRI - UKRI,13/09/2022,Research Grant Expenditure,OODA Impact Awards 2022-23,University of Ulster GRANT,99794233,10000.01,Research Grant Expenditure
BEIS,UKRI - UKRI,13/09/2022,Research Grant Expenditure,OODA Impact Awards 2022-23,University of Ulster GRANT,99794233,10000.00,Research Grant Expenditure
BEIS,UKRI - UKRI,13/09/2022,Research Grant Expenditure,OODA Impact Awards 2022-23,Institute of Development Studies,99794234,10000.01,Research Grant Expenditure
BEIS,UKRI - UKRI,13/09/2022,Research Grant Expenditure,OODA Impact Awards 2022-23,Institute of Development Studies,99794234,10000.00,Research Grant Expenditure
BEIS,UKRI - UKRI,13/09/2022,Research Grant Expenditure,OODA Impact Awards 2022-23,University of Southampton GRANT,99794235,22500.00,Research Grant Expenditure
BEIS,UKRI - UKRI,13/09/2022,Research Grant Expenditure,OODA Impact Awards 2022-23,University of Southampton GRANT,99794235,22500.00,Research Grant Expenditure
BEIS,UKRI - UKRI,13/09/2022,Research Grant Expenditure,OODA Impact Awards 2022-23,University of Kent GRANT,99794236,10000.01,Research Grant Expenditure
BEIS,UKRI - UKRI,13/09/2022,Research Grant Expenditure,OODA Impact Awards 2022-23,University of Kent GRANT,99794236,10000.00,Research Grant Expenditure
BEIS,UKRI - UKRI,13/09/2022,Research Grant Expenditure,OODA Impact Awards 2022-23,University of Glasgow GRANT,99794237,37500.00,Research Grant Expenditure
BEIS,UKRI - UKRI,13/09/2022,Research Grant Expenditure,OODA Impact Awards 2022-23,University of Glasgow GRANT,99794237,37500.00,Research Grant Expenditure
BEIS,UKRI - UKRI,13/09/2022,Research Grant Expenditure,OODA Impact Awards 2022-23,University of Cambridge,99794238,45000.00,Research Grant Expenditure
BEIS,UKRI - UKRI,13/09/2022,Research Grant Expenditure,OODA Impact Awards 2022-23,University of Cambridge,99794238,45000.00,Research Grant Expenditure
BEIS,UKRI - UKRI,13/09/2022,Research Grant Expenditure,OODA Impact Awards 2022-23,University of Birmingham GRANT,99794239,25000.01,Research Grant Expenditure
BEIS,UKRI - UKRI,13/09/2022,Research Grant Expenditure,OODA Impact Awards 2022-23,University of Birmingham GRANT,99794239,25000.00,Research Grant Expenditure
BEIS,UKRI - UKRI,13/09/2022,Research Grant Expenditure,OODA Impact Awards 2022-23,University of Durham GRANT,99794240,22500.00,Research Grant Expenditure
BEIS,UKRI - UKRI,13/09/2022,Research Grant Expenditure,OODA Impact Awards 2022-23,University of Durham GRANT,99794240,22500.00,Research Grant Expenditure
BEIS,UKRI - UKRI,13/09/2022,Research Grant Expenditure,OODA Impact Awards 2022-23,University of Exeter GRANT,99794241,25000.01,Research Grant Expenditure
BEIS,UKRI - UKRI,13/09/2022,Research Grant Expenditure,OODA Impact Awards 2022-23,University of Exeter GRANT,99794241,25000.00,Research Grant Expenditure
BEIS,UKRI - UKRI,13/09/2022,Research Grant Expenditure,OODA Impact Awards 2022-23,University of Bristol GRANT,99794242,34999.99,Research Grant Expenditure
BEIS,UKRI - UKRI,13/09/2022,Research Grant Expenditure,OODA Impact Awards 2022-23,University of Bristol GRANT,99794242,35000.00,Research Grant Expenditure
BEIS,UKRI - UKRI,13/09/2022,Research Grant Expenditure,OODA Impact Awards 2022-23,University of Liverpool GRANT,99794243,37500.00,Research Grant Expenditure
BEIS,UKRI - UKRI,13/09/2022,Research Grant Expenditure,OODA Impact Awards 2022-23,University of Liverpool GRANT,99794243,37500.00,Research Grant Expenditure
BEIS,UKRI - UKRI,13/09/2022,Research Grant Expenditure,OODA Impact Awards 2022-23,University of Leeds GRANT,99794244,57499.99,Research Grant Expenditure
BEIS,UKRI - UKRI,13/09/2022,Research Grant Expenditure,OODA Impact Awards 2022-23,University of Leeds GRANT,99794244,57500.00,Research Grant Expenditure
BEIS,UKRI - UKRI,13/09/2022,Research Grant Expenditure,OODA Impact Awards 2022-23,Liverpool School of Tropical Medicine,99794245,19999.99,Research Grant Expenditure
BEIS,UKRI - UKRI,13/09/2022,Research Grant Expenditure,OODA Impact Awards 2022-23,Liverpool School of Tropical Medicine,99794245,20000.00,Research Grant Expenditure
BEIS,UKRI - UKRI,13/09/2022,Research Grant Expenditure,OODA Impact Awards 2022-23,London School of Hygiene & Tropical Medicine,99794246,75000.00,Research Grant Expenditure
BEIS,UKRI - UKRI,13/09/2022,Research Grant Expenditure,OODA Impact Awards 2022-23,London School of Hygiene & Tropical Medicine,99794246,75000.00,Research Grant Expenditure
BEIS,UKRI - UKRI,13/09/2022,Research Grant Expenditure,OODA Impact Awards 2022-23,University of Oxford GRANT,99794247,60000.00,Research Grant Expenditure
BEIS,UKRI - UKRI,13/09/2022,Research Grant Expenditure,OODA Impact Awards 2022-23,University of Oxford GRANT,99794247,60000.00,Research Grant Expenditure
BEIS,UKRI - UKRI,13/09/2022,Research Grant Expenditure,OODA Impact Awards 2022-23,London School of Economics and Political Science,99794248,15000.00,Research Grant Expenditure
BEIS,UKRI - UKRI,13/09/2022,Research Grant Expenditure,OODA Impact Awards 2022-23,London School of Economics and Political Science,99794248,15000.00,Research Grant Expenditure
BEIS,UKRI - UKRI,13/09/2022,Research Grant Expenditure,OODA Impact Awards 2022-23,University of Newcastle upon Tyne GRANT,99794249,10000.01,Research Grant Expenditure
BEIS,UKRI - UKRI,13/09/2022,Research Grant Expenditure,OODA Impact Awards 2022-23,University of Newcastle upon Tyne GRANT,99794249,10000.00,Research Grant Expenditure
BEIS,UKRI - UKRI,13/09/2022,Research Grant Expenditure,OODA Impact Awards 2022-23,University of Edinburgh,99794250,37500.00,Research Grant Expenditure
BEIS,UKRI - UKRI,13/09/2022,Research Grant Expenditure,OODA Impact Awards 2022-23,University of Edinburgh,99794250,37500.00,Research Grant Expenditure
BEIS,UKRI - UKRI,13/09/2022,Research Grant Expenditure,OODA Impact Awards 2022-23,University College London GRANT,99794251,57499.99,Research Grant Expenditure
BEIS,UKRI - UKRI,13/09/2022,Research Grant Expenditure,OODA Impact Awards 2022-23,University College London GRANT,99794251,57500.00,Research Grant Expenditure
BEIS,UKRI - UKRI,13/09/2022,Research Grant Expenditure,OODA Impact Awards 2022-23,National Institute For Agricultural Botany (NIAB),99794252,10000.01,Research Grant Expenditure
BEIS,UKRI - UKRI,13/09/2022,Research Grant Expenditure,OODA Impact Awards 2022-23,National Institute For Agricultural Botany (NIAB),99794252,10000.00,Research Grant Expenditure
BEIS,UKRI - UKRI,13/09/2022,Research Grant Expenditure,ODA Impact Awards 2022-23,National Institute For Agricultural Botany (NIAB),99794253,37500.00,Research Grant Expenditure
BEIS,UKRI - UKRI,13/09/2022,Research Grant Expenditure,ODA Impact Awards 2022-23,National Institute For Agricultural Botany (NIAB),99794253,37500.00,Research Grant Expenditure
BEIS,UKRI - UKRI,13/09/2022,Research Grant Expenditure,ODA Impact Awards 2022-23,University of East Anglia GRANT,99794254,37500.00,Research Grant Expenditure
BEIS,UKRI - UKRI,13/09/2022,Research Grant Expenditure,ODA Impact Awards 2022-23,University of East Anglia GRANT,99794254,37500.00,Research Grant Expenditure
BEIS,UKRI - UKRI,13/09/2022,Research Grant Expenditure,ODA Impact Awards 2022-23,National Oceanography Centre (NOC),99794255,37500.00,Research Grant Expenditure
BEIS,UKRI - UKRI,13/09/2022,Research Grant Expenditure,ODA Impact Awards 2022-23,National Oceanography Centre (NOC),99794255,37500.00,Research Grant Expenditure
BEIS,UKRI - UKRI,13/09/2022,Research Grant Expenditure,ODA Impact Awards 2022-23,Loughborough University GRANT,99794256,37500.00,Research Grant Expenditure
BEIS,UKRI - UKRI,13/09/2022,Research Grant Expenditure,ODA Impact Awards 2022-23,Loughborough University GRANT,99794256,37500.00,Research Grant Expenditure
BEIS,UKRI - UKRI,13/09/2022,Research Grant Expenditure,ODA Impact Awards 2022-23,University of Warwick,99794257,49999.99,Research Grant Expenditure
BEIS,UKRI - UKRI,13/09/2022,Research Grant Expenditure,ODA Impact Awards 2022-23,University of Warwick,99794257,50000.00,Research Grant Expenditure
BEIS,UKRI - UKRI,13/09/2022,Research Grant Expenditure,ODA Impact Awards 2022-23,Rothamsted Research Ltd,99794258,49999.99,Research Grant Expenditure
BEIS,UKRI - UKRI,13/09/2022,Research Grant Expenditure,ODA Impact Awards 2022-23,Rothamsted Research Ltd,99794258,50000.00,Research Grant Expenditure
BEIS,UKRI - UKRI,13/09/2022,Research Grant Expenditure,ODA Impact Awards 2022-23,UK Centre for Ecology and Hydrology (UKCEH),99794259,49999.99,Research Grant Expenditure
BEIS,UKRI - UKRI,13/09/2022,Research Grant Expenditure,ODA Impact Awards 2022-23,UK Centre for Ecology and Hydrology (UKCEH),99794259,50000.00,Research Grant Expenditure
BEIS,UKRI - UKRI,13/09/2022,Research Grant Expenditure,ODA Impact Awards 2022-23,University of Nottingham GRANT,99794260,62500.01,Research Grant Expenditure
BEIS,UKRI - UKRI,13/09/2022,Research Grant Expenditure,ODA Impact Awards 2022-23,University of Nottingham GRANT,99794260,62500.00,Research Grant Expenditure
BEIS,UKRI - UKRI,13/09/2022,Research Grant Expenditure,ODA Impact Awards 2022-23,ICSTM,99794262,124999.99,Research Grant Expenditure
BEIS,UKRI - UKRI,13/09/2022,Research Grant Expenditure,ODA Impact Awards 2022-23,ICSTM,99794262,125000.00,Research Grant Expenditure
BEIS,UKRI - UKRI,13/09/2022,Research Grant Expenditure,ODA Impact Awards 2022-23,The University of Manchester GRANT,99794263,112500.00,Research Grant Expenditure
BEIS,UKRI - UKRI,13/09/2022,Research Grant Expenditure,ODA Impact Awards 2022-23,The University of Manchester GRANT,99794263,112500.00,Research Grant Expenditure
BEIS,UKRI - UKRI,13/09/2022,Research Grant Expenditure,ODA Impact Awards 2022-23,King's College London,99794264,150000.00,Research Grant Expenditure
BEIS,UKRI - UKRI,13/09/2022,Research Grant Expenditure,ODA Impact Awards 2022-23,King's College London,99794264,150000.00,Research Grant Expenditure
BEIS,UKRI - UKRI,13/09/2022,Research Grant Expenditure,ODA Impact Awards 2022-23,Cranfield University,99794265,37500.00,Research Grant Expenditure
BEIS,UKRI - UKRI,13/09/2022,Research Grant Expenditure,ODA Impact Awards 2022-23,Cranfield University,99794265,37500.00,Research Grant Expenditure
BEIS,UKRI - UKRI,13/09/2022,Research Grant Expenditure,ODA Impact Awards 2022-23,Lancaster University GRANT,99794266,62500.01,Research Grant Expenditure
BEIS,UKRI - UKRI,13/09/2022,Research Grant Expenditure,ODA Impact Awards 2022-23,Lancaster University GRANT,99794266,62500.00,Research Grant Expenditure
BEIS,UKRI - UKRI,13/09/2022,Research Grant Expenditure,ODA Impact Awards 2022-23,University of Sheffield GRANT,99794267,62500.01,Research Grant Expenditure
BEIS,UKRI - UKRI,13/09/2022,Research Grant Expenditure,ODA Impact Awards 2022-23,University of Sheffield GRANT,99794267,62500.00,Research Grant Expenditure
BEIS,UKRI - UKRI,13/09/2022,Research Grant Expenditure,ODA Impact Awards 2022-23,"University of Wales, Cardiff - UWC",99794268,37500.00,Research Grant Expenditure
BEIS,UKRI - UKRI,13/09/2022,Research Grant Expenditure,ODA Impact Awards 2022-23,"University of Wales, Cardiff - UWC",99794268,37500.00,Research Grant Expenditure
BEIS,UKRI - UKRI,13/09/2022,Research Grant Expenditure,ODA Impact Awards 2022-23,Bangor University,99794269,37500.00,Research Grant Expenditure
BEIS,UKRI - UKRI,13/09/2022,Research Grant Expenditure,ODA Impact Awards 2022-23,Bangor University,99794269,37500.00,Research Grant Expenditure
BEIS,UKRI - UKRI,13/09/2022,Research Grant Expenditure,ODA Impact Awards 2022-23,Queen Mary University of London,99794270,62500.01,Research Grant Expenditure
BEIS,UKRI - UKRI,13/09/2022,Research Grant Expenditure,ODA Impact Awards 2022-23,Queen Mary University of London,99794270,62500.00,Research Grant Expenditure
BEIS,UKRI - UKRI,13/09/2022,Research Grant Expenditure,ODA Impact Awards 2022-23,University of Stirling GRANT,99794271,37500.00,Research Grant Expenditure
BEIS,UKRI - UKRI,13/09/2022,Research Grant Expenditure,ODA Impact Awards 2022-23,University of Stirling GRANT,99794271,37500.00,Research Grant Expenditure
BEIS,UKRI - UKRI,13/09/2022,Research Grant Expenditure,ODA Impact Awards 2022-23,University of Bath,99794272,37500.00,Research Grant Expenditure
BEIS,UKRI - UKRI,13/09/2022,Research Grant Expenditure,ODA Impact Awards 2022-23,University of Bath,99794272,37500.00,Research Grant Expenditure
BEIS,UKRI - UKRI,13/09/2022,Research Grant Expenditure,ODA Impact Awards 2022-23,University of York GRANT,99794273,175000.01,Research Grant Expenditure
BEIS,UKRI - UKRI,13/09/2022,Research Grant Expenditure,ODA Impact Awards 2022-23,University of York GRANT,99794273,175000.00,Research Grant Expenditure
BEIS,UKRI - UKRI,13/09/2022,Research Grant Expenditure,ODA Impact Awards 2022-23,International Institute For Environment And Development,99794274,37500.00,Research Grant Expenditure
BEIS,UKRI - UKRI,13/09/2022,Research Grant Expenditure,ODA Impact Awards 2022-23,International Institute For Environment And Development,99794274,37500.00,Research Grant Expenditure
BEIS,UKRI - UKRI,13/09/2022,Research Grant Expenditure,ODA Impact Awards 2022-23,University of Reading GRANT,99794275,37500.00,Research Grant Expenditure
BEIS,UKRI - UKRI,13/09/2022,Research Grant Expenditure,ODA Impact Awards 2022-23,University of Reading GRANT,99794275,37500.00,Research Grant Expenditure
BEIS,UKRI - UKRI,13/09/2022,Research Grant Expenditure,ODA Impact Awards 2022-23,"SOAS, University of London",99794276,49999.99,Research Grant Expenditure
BEIS,UKRI - UKRI,13/09/2022,Research Grant Expenditure,ODA Impact Awards 2022-23,"SOAS, University of London",99794276,50000.00,Research Grant Expenditure
BEIS,UKRI - UKRI,13/09/2022,Research Grant Expenditure,ODA Impact Awards 2022-23,University of Aberdeen GRANT,99794277,49999.99,Research Grant Expenditure
BEIS,UKRI - UKRI,13/09/2022,Research Grant Expenditure,ODA Impact Awards 2022-23,University of Aberdeen GRANT,99794277,50000.00,Research Grant Expenditure
BEIS,UKRI - UKRI,13/09/2022,Research Grant Expenditure,ODA Impact Awards 2022-23,University of Ulster GRANT,99794278,37500.00,Research Grant Expenditure
BEIS,UKRI - UKRI,13/09/2022,Research Grant Expenditure,ODA Impact Awards 2022-23,University of Ulster GRANT,99794278,37500.00,Research Grant Expenditure
BEIS,UKRI - UKRI,13/09/2022,Research Grant Expenditure,ODA Impact Awards 2022-23,Institute of Development Studies,99794279,37500.00,Research Grant Expenditure
BEIS,UKRI - UKRI,13/09/2022,Research Grant Expenditure,ODA Impact Awards 2022-23,Institute of Development Studies,99794279,37500.00,Research Grant Expenditure
BEIS,UKRI - UKRI,13/09/2022,Research Grant Expenditure,ODA Impact Awards 2022-23,University of Southampton GRANT,99794280,87499.99,Research Grant Expenditure
BEIS,UKRI - UKRI,13/09/2022,Research Grant Expenditure,ODA Impact Awards 2022-23,University of Southampton GRANT,99794280,87500.00,Research Grant Expenditure
BEIS,UKRI - UKRI,13/09/2022,Research Grant Expenditure,ODA Impact Awards 2022-23,University of Kent GRANT,99794281,37500.00,Research Grant Expenditure
BEIS,UKRI - UKRI,13/09/2022,Research Grant Expenditure,ODA Impact Awards 2022-23,University of Kent GRANT,99794281,37500.00,Research Grant Expenditure
BEIS,UKRI - UKRI,13/09/2022,Research Grant Expenditure,ODA Impact Awards 2022-23,University of Glasgow GRANT,99794282,274999.99,Research Grant Expenditure
BEIS,UKRI - UKRI,13/09/2022,Research Grant Expenditure,ODA Impact Awards 2022-23,University of Glasgow GRANT,99794282,275000.00,Research Grant Expenditure
BEIS,UKRI - UKRI,13/09/2022,Research Grant Expenditure,ODA Impact Awards 2022-23,University of Cambridge,99794283,175000.01,Research Grant Expenditure
BEIS,UKRI - UKRI,13/09/2022,Research Grant Expenditure,ODA Impact Awards 2022-23,University of Cambridge,99794283,175000.00,Research Grant Expenditure
BEIS,UKRI - UKRI,13/09/2022,Research Grant Expenditure,ODA Impact Awards 2022-23,University of Birmingham GRANT,99794284,100000.01,Research Grant Expenditure
BEIS,UKRI - UKRI,13/09/2022,Research Grant Expenditure,ODA Impact Awards 2022-23,University of Birmingham GRANT,99794284,100000.00,Research Grant Expenditure
BEIS,UKRI - UKRI,13/09/2022,Research Grant Expenditure,ODA Impact Awards 2022-23,University of Durham GRANT,99794285,87499.99,Research Grant Expenditure
BEIS,UKRI - UKRI,13/09/2022,Research Grant Expenditure,ODA Impact Awards 2022-23,University of Durham GRANT,99794285,87500.00,Research Grant Expenditure
BEIS,UKRI - UKRI,13/09/2022,Research Grant Expenditure,ODA Impact Awards 2022-23,University of Exeter GRANT,99794286,100000.01,Research Grant Expenditure
BEIS,UKRI - UKRI,13/09/2022,Research Grant Expenditure,ODA Impact Awards 2022-23,University of Exeter GRANT,99794286,100000.00,Research Grant Expenditure
BEIS,UKRI - UKRI,13/09/2022,Research Grant Expenditure,ODA Impact Awards 2022-23,University of Bristol GRANT,99794287,262500.00,Research Grant Expenditure
BEIS,UKRI - UKRI,13/09/2022,Research Grant Expenditure,ODA Impact Awards 2022-23,University of Bristol GRANT,99794287,262500.00,Research Grant Expenditure
BEIS,UKRI - UKRI,13/09/2022,Research Grant Expenditure,ODA Impact Awards 2022-23,University of Liverpool GRANT,99794288,150000.00,Research Grant Expenditure
BEIS,UKRI - UKRI,13/09/2022,Research Grant Expenditure,ODA Impact Awards 2022-23,University of Liverpool GRANT,99794288,150000.00,Research Grant Expenditure
BEIS,UKRI - UKRI,13/09/2022,Research Grant Expenditure,ODA Impact Awards 2022-23,University of Leeds GRANT,99794289,225000.00,Research Grant Expenditure
BEIS,UKRI - UKRI,13/09/2022,Research Grant Expenditure,ODA Impact Awards 2022-23,University of Leeds GRANT,99794289,225000.00,Research Grant Expenditure
BEIS,UKRI - UKRI,13/09/2022,Research Grant Expenditure,ODA Impact Awards 2022-23,Liverpool School of Tropical Medicine,99794290,75000.00,Research Grant Expenditure
BEIS,UKRI - UKRI,13/09/2022,Research Grant Expenditure,ODA Impact Awards 2022-23,Liverpool School of Tropical Medicine,99794290,75000.00,Research Grant Expenditure
BEIS,UKRI - UKRI,13/09/2022,Research Grant Expenditure,ODA Impact Awards 2022-23,London School of Hygiene & Tropical Medicine,99794291,287500.01,Research Grant Expenditure
BEIS,UKRI - UKRI,13/09/2022,Research Grant Expenditure,ODA Impact Awards 2022-23,London School of Hygiene & Tropical Medicine,99794291,287500.00,Research Grant Expenditure
BEIS,UKRI - UKRI,13/09/2022,Research Grant Expenditure,ODA Impact Awards 2022-23,University of Oxford GRANT,99794292,237499.99,Research Grant Expenditure
BEIS,UKRI - UKRI,13/09/2022,Research Grant Expenditure,ODA Impact Awards 2022-23,University of Oxford GRANT,99794292,237500.00,Research Grant Expenditure
BEIS,UKRI - UKRI,13/09/2022,Research Grant Expenditure,ODA Impact Awards 2022-23,London School of Economics and Political Science,99794293,62500.01,Research Grant Expenditure
BEIS,UKRI - UKRI,13/09/2022,Research Grant Expenditure,ODA Impact Awards 2022-23,London School of Economics and Political Science,99794293,62500.00,Research Grant Expenditure
BEIS,UKRI - UKRI,13/09/2022,Research Grant Expenditure,ODA Impact Awards 2022-23,University of Newcastle upon Tyne GRANT,99794294,37500.00,Research Grant Expenditure
BEIS,UKRI - UKRI,13/09/2022,Research Grant Expenditure,ODA Impact Awards 2022-23,University of Newcastle upon Tyne GRANT,99794294,37500.00,Research Grant Expenditure
BEIS,UKRI - UKRI,13/09/2022,Research Grant Expenditure,ODA Impact Awards 2022-23,University of Edinburgh,99794295,150000.00,Research Grant Expenditure
BEIS,UKRI - UKRI,13/09/2022,Research Grant Expenditure,ODA Impact Awards 2022-23,University of Edinburgh,99794295,150000.00,Research Grant Expenditure
BEIS,UKRI - UKRI,13/09/2022,Research Grant Expenditure,ODA Impact Awards 2022-23,University College London GRANT,99794296,225000.00,Research Grant Expenditure
BEIS,UKRI - UKRI,13/09/2022,Research Grant Expenditure,ODA Impact Awards 2022-23,University College London GRANT,99794296,225000.00,Research Grant Expenditure
BEIS,UKRI - UKRI,13/09/2022,Research Grant Expenditure,UKRI – MSCA,University of Exeter GRANT,99794328,7223.53,Research Grant Expenditure
BEIS,UKRI - UKRI,13/09/2022,Research Grant Expenditure,UKRI – MSCA,University of Exeter GRANT,99794328,7223.56,Research Grant Expenditure
BEIS,UKRI - UKRI,13/09/2022,Research Grant Expenditure,UKRI - KICS 2022,University of St Andrews GRANT,99794329,85176.80,Research Grant Expenditure
BEIS,UKRI - UKRI,13/09/2022,Research Grant Expenditure,UKRI - KICS 2022,Babraham Institute,99794330,86180.73,Research Grant Expenditure
BEIS,UKRI - UKRI,13/09/2022,Research Grant Expenditure,UKRI - KICS 2022,London School of Economics and Political Science,99794331,51614.35,Research Grant Expenditure
BEIS,UKRI - UKRI,13/09/2022,Research Grant Expenditure,UKRI - Frontier Grants - Proof of Concept,University of Oxford GRANT,99794332,21545.13,Research Grant Expenditure
BEIS,UKRI - UKRI,13/09/2022,Research Grant Expenditure,UKRI - KICS 2021,The Francis Crick Institute,99794334,64633.30,Research Grant Expenditure
BEIS,UKRI - UKRI,13/09/2022,Research Grant Expenditure,UKRI – MSCA,Bristol Natural History Consortium,99794335,24923.95,Research Grant Expenditure
BEIS,UKRI - UKRI,13/09/2022,Research Grant Expenditure,UKRI - KICS 2021,University of Glasgow GRANT,99794336,48882.76,Research Grant Expenditure
BEIS,UKRI - UKRI,13/09/2022,Research Grant Expenditure,UKRI - KICS 2021,University of Oxford GRANT,99794337,64521.48,Research Grant Expenditure
BEIS,UKRI - UKRI,13/09/2022,Research Grant Expenditure,UKRI - KICS 2021,London School of Economics and Political Science,99794338,64484.95,Research Grant Expenditure
BEIS,UKRI - UKRI,13/09/2022,Research Grant Expenditure,UKRI - KICS 2021,London School of Economics and Political Science,99794338,64485.01,Research Grant Expenditure
BEIS,UKRI - UKRI,13/09/2022,Research Grant Expenditure,UKRI - KICS 2021,Swansea University,99794339,64634.33,Research Grant Expenditure
BEIS,UKRI - UKRI,13/09/2022,Research Grant Expenditure,UKRI - GCRF Programme,University of Bristol GRANT,99795824,162500.01,Research Grant Expenditure
BEIS,UKRI - UKRI,13/09/2022,Research Grant Expenditure,UKRI - GCRF Programme,University of Liverpool GRANT,99795825,162500.00,Research Grant Expenditure
BEIS,UKRI - UKRI,13/09/2022,Fellowships,UKRI – MSCA,John Innes Centre,99796160,23797.54,Fellowships
BEIS,UKRI - UKRI,13/09/2022,Fellowships,UKRI – MSCA,University of Bristol GRANT,99796161,25503.89,Fellowships
BEIS,UKRI - UKRI,13/09/2022,Unspecified,UKRI-SHARP,LA International Computer Consultants Ltd,99797961,3593.40,Contract Staff
BEIS,UKRI - UKRI,13/09/2022,Staff Training,UKRI - Culture Leadership and Learning,UK Shared Business Services Ltd,99798209,20277.08,Staff Training
BEIS,UKRI - UKRI,13/09/2022,Staff Training,UKRI - Culture Leadership and Learning,UK Shared Business Services Ltd,99798216,5845.57,Staff Training
BEIS,UKRI - UKRI,13/09/2022,Unspecified,Public Engagement Programmes,"The RSA (The Royal Society for the Encouragement of Arts, Manufactures and Commerce)",99798516,53558.16,Legal & Professional Services
BEIS,UKRI - UKRI,13/09/2022,Unspecified,UKRI-SHARP,Vector Resourcing Ltd,99799585,16094.06,Contract Staff
BEIS,UKRI - UKRI,13/09/2022,Computer Software Licences,UKRI - Estates Projects,SpaceIQ LLC,99800264,42671.82,Computer Software Licences
BEIS,UKRI - UKRI,13/09/2022,Other Bought In Services,"Governance, Assurance and Operations",KPMG LLP,99801085,7500.00,Other Bought In Services
BEIS,UKRI - UKRI,13/09/2022,Mechanical & Electrical Maintenance,UKRI - JBOS,Screenlink Sound and Vision,99802324,11354.62,Mechanical & Electrical Maintenance
BEIS,UKRI - UKRI,13/09/2022,Safety Materials & Equipment,UKRI - Health and Safety,Banner Group Ltd,99802630,10.68,Safety Materials & Equipment
BEIS,UKRI - UKRI,13/09/2022,Consumables,UKRI - JRS,Ricoh Uk Ltd,99804901,421.99,Consumables
BEIS,UKRI - UKRI,13/09/2022,Consumables,UKRI - JRS,Ricoh Uk Ltd,99804903,102.00,Consumables
BEIS,UKRI - UKRI,13/09/2022,Unspecified,UKRI - Digital Data and Technology Project Costs,Ogel IT Ltd,99804911,44610.00,IT Cloud Services
BEIS,UKRI - UKRI,13/09/2022,Unspecified,UKRI - Digital Data and Technology Recharges,Ogel IT Ltd,99804911,9735.00,IT Cloud Services
BEIS,UKRI - UKRI,13/09/2022,Unspecified,UKRI - Digital Data and Technology Project Costs,Ogel IT Ltd,99804915,34963.50,IT Cloud Services
BEIS,UKRI - UKRI,13/09/2022,Unspecified,UKRI - Digital Data and Technology Recharges,Ogel IT Ltd,99804915,3510.00,IT Cloud Services
BEIS,UKRI - UKRI,13/09/2022,Recruitment Costs,UKRI People and Organisation Development,Warwick University Services Ltd,99804953,564.00,Recruitment Costs
BEIS,UKRI - UKRI,13/09/2022,Recruitment Costs,UKRI People and Organisation Development,Warwick University Services Ltd,99804954,564.00,Recruitment Costs
BEIS,UKRI - UKRI,13/09/2022,Recruitment Costs,UKRI People and Organisation Development,Warwick University Services Ltd,99804958,564.00,Recruitment Costs
BEIS,UKRI - UKRI,13/09/2022,T&S UK - Other Charges,UKRI - Counter Fraud,Unspecified,99805000,15.25,T&S UK - Other Charges
BEIS,UKRI - UKRI,13/09/2022,T&S UK - Parking Tolls Congestion Charges,UKRI - Counter Fraud,Unspecified,99805000,6.50,T&S UK - Parking Tolls Congestion Charges
BEIS,UKRI - UKRI,13/09/2022,T&S UK - Subsistence,UKRI - Counter Fraud,Unspecified,99805000,5.69,T&S UK - Subsistence
BEIS,UKRI - UKRI,13/09/2022,T&S UK - Vehicle Hire,UKRI - Counter Fraud,Unspecified,99805000,21.10,T&S UK - Vehicle Hire
BEIS,UKRI - UKRI,13/09/2022,Health & Safety (inc. Medicals & Opticians),UKRI - Communications Strategy and Planning,Unspecified,99805004,16.99,Health & Safety (inc. Medicals & Opticians)
BEIS,UKRI - UKRI,13/09/2022,T&S UK - Other Charges,"Governance, Assurance and Operations",Unspecified,99805005,36.89,T&S UK - Other Charges
BEIS,UKRI - UKRI,13/09/2022,T&S UK - Mileage,UKRI - Communications Content,Unspecified,99805006,75.60,T&S UK - Mileage
BEIS,UKRI - UKRI,13/09/2022,T&S UK - Parking Tolls Congestion Charges,UKRI - Communications Content,Unspecified,99805006,14.50,T&S UK - Parking Tolls Congestion Charges
BEIS,UKRI - UKRI,13/09/2022,T&S UK - Other Charges,"UKRI People, Policies and Management",Unspecified,99805010,12.84,T&S UK - Other Charges
BEIS,UKRI - UKRI,13/09/2022,T&S UK - Parking Tolls Congestion Charges,"UKRI People, Policies and Management",Unspecified,99805010,7.10,T&S UK - Parking Tolls Congestion Charges
BEIS,UKRI - UKRI,13/09/2022,T&S UK - Subsistence,"UKRI People, Policies and Management",Unspecified,99805010,25.00,T&S UK - Subsistence
BEIS,UKRI - UKRI,13/09/2022,T&S UK - Subsistence,"UKRI People, Policies and Management",Unspecified,99805010,2.70,T&S UK - Subsistence
BEIS,UKRI - UKRI,13/09/2022,T&S UK - Subsistence,"UKRI People, Policies and Management",Unspecified,99805010,25.00,T&S UK - Subsistence
BEIS,UKRI - UKRI,13/09/2022,T&S UK - Other Charges,UKRI - Grants Policy,Unspecified,99805015,84.49,T&S UK - Other Charges
BEIS,UKRI - UKRI,13/09/2022,Health & Safety (inc. Medicals & Opticians),UKRI - BEIS ODA,Unspecified,99805016,50.00,Health & Safety (inc. Medicals & Opticians)
BEIS,UKRI - UKRI,13/09/2022,T&S UK - Mileage,UKRI Strategic HR Business Partners,Unspecified,99805018,147.60,T&S UK - Mileage
BEIS,UKRI - UKRI,13/09/2022,T&S UK - Parking Tolls Congestion Charges,UKRI Strategic HR Business Partners,Unspecified,99805018,14.90,T&S UK - Parking Tolls Congestion Charges
BEIS,UKRI - UKRI,13/09/2022,T&S UK - Subsistence,UKRI Strategic HR Business Partners,Unspecified,99805018,43.00,T&S UK - Subsistence
BEIS,UKRI - UKRI,13/09/2022,T&S UK - Subsistence,UKRI Strategic HR Business Partners,Unspecified,99805018,15.65,T&S UK - Subsistence
BEIS,UKRI - UKRI,13/09/2022,T&S UK - Subsistence,UKRI Strategic HR Business Partners,Unspecified,99805018,20.00,T&S UK - Subsistence
BEIS,UKRI - UKRI,13/09/2022,T&S UK - Public Transport,UKRI - Communications External Affairs,Unspecified,99805019,29.40,T&S UK - Public Transport
BEIS,UKRI - UKRI,13/09/2022,T&S UK - Subsistence,UKRI - Communications External Affairs,Unspecified,99805019,7.44,T&S UK - Subsistence
BEIS,UKRI - UKRI,14/09/2022,Catering Contracts,UKRI - JBOS,Aramark Ltd,99643741,1107.00,Catering Contracts
BEIS,UKRI - UKRI,14/09/2022,Meetings & Catering,"UKRI - Data Policy, Governance and MI",Benugo Ltd,99782351,61.33,Meetings & Catering
BEIS,UKRI - UKRI,14/09/2022,T&S UK - Public Transport,UKRI Strategic HR Business Partners,Enterprise Rent-A-Car UK Ltd,99785026,82.55,T&S UK - Public Transport
BEIS,UKRI - UKRI,14/09/2022,T&S UK - Public Transport,UKRI Strategic HR Business Partners,Enterprise Rent-A-Car UK Ltd,99785026,16.51,T&S UK - Public Transport
BEIS,UKRI - UKRI,14/09/2022,Health & Safety (inc. Medicals & Opticians),"UKRI People, Policies and Management",Benenden Healthcare Society,99787657,1237.60,Health & Safety (inc. Medicals & Opticians)
BEIS,UKRI - UKRI,14/09/2022,T&S UK - Mileage,UKRI - Digital Data and Technology BAU Costs,Unspecified,99787724,35.55,T&S UK - Mileage
BEIS,UKRI - UKRI,14/09/2022,T&S UK - Parking Tolls Congestion Charges,UKRI - Digital Data and Technology BAU Costs,Unspecified,99787724,7.10,T&S UK - Parking Tolls Congestion Charges
BEIS,UKRI - UKRI,14/09/2022,T&S UK - Subsistence,UKRI - Digital Data and Technology BAU Costs,Unspecified,99787724,14.70,T&S UK - Subsistence
BEIS,UKRI - UKRI,14/09/2022,T&S UK - Mileage,UKRI - Digital Data and Technology BAU Costs,Unspecified,99788150,71.10,T&S UK - Mileage
BEIS,UKRI - UKRI,14/09/2022,T&S UK - Parking Tolls Congestion Charges,UKRI - Digital Data and Technology BAU Costs,Unspecified,99788150,21.10,T&S UK - Parking Tolls Congestion Charges
BEIS,UKRI - UKRI,14/09/2022,T&S UK - Subsistence,UKRI - Digital Data and Technology BAU Costs,Unspecified,99788150,24.00,T&S UK - Subsistence
BEIS,UKRI - UKRI,14/09/2022,T&S UK - Subsistence,UKRI - Digital Data and Technology BAU Costs,Unspecified,99788150,5.00,T&S UK - Subsistence
BEIS,UKRI - UKRI,14/09/2022,Advertising & Promotion,UKRI - Communications Themes and Partnerships,Adam Sewell Media Ltd,99791805,2560.00,Advertising & Promotion
BEIS,UKRI - UKRI,14/09/2022,Research Grant Expenditure,ODA Impact Awards 2022-23,NERC 9704,99794261,62500.01,Research Grant Expenditure
BEIS,UKRI - UKRI,14/09/2022,Research Grant Expenditure,ODA Impact Awards 2022-23,NERC 9704,99794261,62500.00,Research Grant Expenditure
BEIS,UKRI - UKRI,14/09/2022,Unspecified,UKRI - Digital Data and Technology Project Costs,Sanderson Government and Defence Ltd,99801009,10554.00,Contract Staff
BEIS,UKRI - UKRI,14/09/2022,Consumables,UKRI - JRS,Premier Paper Group Ltd,99805101,68.88,Consumables
BEIS,UKRI - UKRI,14/09/2022,Consumables,UKRI - JRS,Premier Paper Group Ltd,99805108,211.20,Consumables
BEIS,UKRI - UKRI,14/09/2022,Consumables,UKRI - JRS,Premier Paper Group Ltd,99805111,537.70,Consumables
BEIS,UKRI - UKRI,14/09/2022,Unspecified,UKRI - Digital Data and Technology BAU Costs,LA International Computer Consultants Ltd,99805116,2874.72,Contract Staff
BEIS,UKRI - UKRI,14/09/2022,Security Services,UKRI - JBOS,Id Management Systems,99805281,115.20,Security Services
BEIS,UKRI - UKRI,14/09/2022,Unspecified,UKRI - Security,Cabinet Office,99805352,5173.57,Legal & Professional Services
BEIS,UKRI - UKRI,14/09/2022,Other Staff Benefits,UKRI - UKRO,Unspecified,99805392,485.62,Other Staff Benefits
BEIS,UKRI - UKRI,14/09/2022,Health & Safety (inc. Medicals & Opticians),Research Integrity Support Team OpEx,Unspecified,99805398,16.99,Health & Safety (inc. Medicals & Opticians)
BEIS,UKRI - UKRI,14/09/2022,T&S UK - Other Charges,UKRI People and Organisation Development,Unspecified,99805399,326.85,T&S UK - Other Charges
BEIS,UKRI - UKRI,14/09/2022,T&S UK - Other Charges,UKRI - JBOS,Unspecified,99805400,15.00,T&S UK - Other Charges
BEIS,UKRI - UKRI,14/09/2022,Health & Safety (inc. Medicals & Opticians),UKRI - Communication and Engagement,Unspecified,99805401,16.99,Health & Safety (inc. Medicals & Opticians)
BEIS,UKRI - UKRI,14/09/2022,T&S UK - Subsistence,UKRI - External Communications,Unspecified,99805402,13.95,T&S UK - Subsistence
BEIS,UKRI - UKRI,14/09/2022,Conferences & Seminars,UKRI - Strategic Finance Business Partners,Unspecified,99805404,469.98,Conferences & Seminars
BEIS,UKRI - UKRI,14/09/2022,Education Fees & Study Materials,UKRI - Strategic Finance Business Partners,Unspecified,99805404,89.00,Education Fees & Study Materials
BEIS,UKRI - UKRI,14/09/2022,T&S UK - Parking Tolls Congestion Charges,UKRI - Strategic Finance Business Partners,Unspecified,99805407,32.75,T&S UK - Parking Tolls Congestion Charges
BEIS,UKRI - UKRI,14/09/2022,Hardware/Software Maintenance,UKRI - JRS,Ricoh Uk Ltd,99806017,3752.16,Hardware/Software Maintenance
BEIS,UKRI - UKRI,14/09/2022,Provisions ( Food etc),UKRI - Estates,Banner Group Ltd,99806057,43.72,Provisions ( Food etc)
BEIS,UKRI - UKRI,14/09/2022,Printing & Stationery,UKRI Strategic HR Business Partners,Banner Group Ltd,99806125,172.37,Printing & Stationery
BEIS,UKRI - UKRI,15/09/2022,Unspecified,UKRI - Digital Data and Technology Recharges,Unspecified,99298440,3985.55,Networking Maintenance
BEIS,UKRI - UKRI,15/09/2022,Consumables,UKRI - JRS,Premier Paper Group Ltd,99756609,1063.44,Consumables
BEIS,UKRI - UKRI,15/09/2022,Consumables,UKRI - JRS,Premier Paper Group Ltd,99756609,448.08,Consumables
BEIS,UKRI - UKRI,15/09/2022,Consumables,UKRI - JRS,Premier Paper Group Ltd,99756609,89.62,Consumables
BEIS,UKRI - UKRI,15/09/2022,Consumables,UKRI - JRS,Premier Paper Group Ltd,99758280,-1063.44,Consumables
BEIS,UKRI - UKRI,15/09/2022,Unspecified,UKRI - Digital Data and Technology Recharges,Unspecified,99779272,2882.42,Networking Maintenance
BEIS,UKRI - UKRI,15/09/2022,Unspecified,UKRI - Digital Data and Technology Recharges,Unspecified,99780393,1104.58,Networking Maintenance
BEIS,UKRI - UKRI,15/09/2022,Unspecified,UKRI - Digital Data and Technology BAU Costs,Alexander Mann Solutions Ltd,99783959,3780.36,Contract Staff
BEIS,UKRI - UKRI,15/09/2022,Unspecified,UKRI - Digital Data and Technology Project Costs,Alexander Mann Solutions Ltd,99784004,2738.98,Contract Staff
BEIS,UKRI - UKRI,15/09/2022,Unspecified,UKRI - Digital Data and Technology Project Costs,Alexander Mann Solutions Ltd,99786585,1231.85,Contract Staff
BEIS,UKRI - UKRI,15/09/2022,Unspecified,UKRI - Digital Data and Technology Project Costs,Alexander Mann Solutions Ltd,99786585,1231.85,Contract Staff
BEIS,UKRI - UKRI,15/09/2022,Unspecified,UKRI - Digital Data and Technology Project Costs,Alexander Mann Solutions Ltd,99786740,3423.72,Contract Staff
BEIS,UKRI - UKRI,15/09/2022,Unspecified,UKRI - Digital Data and Technology BAU Costs,Alexander Mann Solutions Ltd,99786779,3780.36,Contract Staff
BEIS,UKRI - UKRI,15/09/2022,Unspecified,UKRI - Digital Data and Technology Project Costs,Alexander Mann Solutions Ltd,99786795,3307.80,Contract Staff
BEIS,UKRI - UKRI,15/09/2022,Telecoms - Non Capital Hardware Costs,UKRI - Digital Data and Technology Recharges,Telefonica UK Ltd (O2),99786991,495.83,Telecoms - Non Capital Hardware Costs
BEIS,UKRI - UKRI,15/09/2022,Telecoms - Non Capital Hardware Costs,UKRI - Digital Data and Technology Recharges,Telefonica UK Ltd (O2),99786993,464.40,Telecoms - Non Capital Hardware Costs
BEIS,UKRI - UKRI,15/09/2022,Telecoms - Non Capital Hardware Costs,UKRI - Digital Data and Technology Recharges,Telefonica UK Ltd (O2),99786994,479.69,Telecoms - Non Capital Hardware Costs
BEIS,UKRI - UKRI,15/09/2022,Unspecified,UKRI - Digital Data and Technology Project Costs,Alexander Mann Solutions Ltd,99789284,1539.80,Contract Staff
BEIS,UKRI - UKRI,15/09/2022,Unspecified,UKRI - Digital Data and Technology Project Costs,Alexander Mann Solutions Ltd,99789284,1539.82,Contract Staff
BEIS,UKRI - UKRI,15/09/2022,Unspecified,UKRI - Digital Data and Technology BAU Costs,Alexander Mann Solutions Ltd,99789308,3780.36,Contract Staff
BEIS,UKRI - UKRI,15/09/2022,Unspecified,UKRI - Digital Data and Technology Project Costs,Alexander Mann Solutions Ltd,99789328,3423.72,Contract Staff
BEIS,UKRI - UKRI,15/09/2022,Unspecified,UKRI - Digital Data and Technology Recharges,Unspecified,99791471,351253.91,Networking Maintenance
BEIS,UKRI - UKRI,15/09/2022,Unspecified,UKRI - Digital Data and Technology Project Costs,Alexander Mann Solutions Ltd,99791473,1732.68,Contract Staff
BEIS,UKRI - UKRI,15/09/2022,Unspecified,UKRI - Digital Data and Technology Project Costs,Alexander Mann Solutions Ltd,99791483,3423.72,Contract Staff
BEIS,UKRI - UKRI,15/09/2022,Unspecified,UKRI - Communications Web and Intranet Service,Alexander Mann Solutions Ltd,99793128,9544.32,Contract Staff
BEIS,UKRI - UKRI,15/09/2022,Unspecified,UKRI - Digital Data and Technology Project Costs,Alexander Mann Solutions Ltd,99793131,3307.80,Contract Staff
BEIS,UKRI - UKRI,15/09/2022,Unspecified,UKRI - Digital Data and Technology Project Costs,Alexander Mann Solutions Ltd,99793132,1539.80,Contract Staff
BEIS,UKRI - UKRI,15/09/2022,Unspecified,UKRI - Digital Data and Technology Project Costs,Alexander Mann Solutions Ltd,99793132,1539.82,Contract Staff
BEIS,UKRI - UKRI,15/09/2022,Unspecified,UKRI - Digital Data and Technology BAU Costs,Alexander Mann Solutions Ltd,99793147,3780.36,Contract Staff
BEIS,UKRI - UKRI,15/09/2022,Recruitment Costs,UKRI People and Organisation Development,Onefix Recruitment Ltd,99793160,5820.00,Recruitment Costs
BEIS,UKRI - UKRI,15/09/2022,Recruitment Costs,UKRI People and Organisation Development,Onefix Recruitment Ltd,99796807,10200.00,Recruitment Costs
BEIS,UKRI - UKRI,15/09/2022,Recruitment Costs,UKRI People and Organisation Development,Onefix Recruitment Ltd,99796809,10200.00,Recruitment Costs
BEIS,UKRI - UKRI,15/09/2022,Unspecified,UKRI - Digital Data and Technology Project Costs,Sanderson Government and Defence Ltd,99800993,9675.00,Contract Staff
BEIS,UKRI - UKRI,15/09/2022,Unspecified,UKRI - Funding Service,Alexander Mann Solutions Ltd,99801536,4410.42,Contract Staff
BEIS,UKRI - UKRI,15/09/2022,Unspecified,UKRI - Digital Data and Technology Project Costs,Alexander Mann Solutions Ltd,99801538,4003.56,Contract Staff
BEIS,UKRI - UKRI,15/09/2022,Unspecified,UKRI - Digital Data and Technology Project Costs,Alexander Mann Solutions Ltd,99801545,1231.85,Contract Staff
BEIS,UKRI - UKRI,15/09/2022,Unspecified,UKRI - Digital Data and Technology Project Costs,Alexander Mann Solutions Ltd,99801545,1231.85,Contract Staff
BEIS,UKRI - UKRI,15/09/2022,Unspecified,UKRI-SHARP,Alexander Mann Solutions Ltd,99801546,1890.18,Agency Staff
BEIS,UKRI - UKRI,15/09/2022,Unspecified,UKRI - Digital Data and Technology Project Costs,Alexander Mann Solutions Ltd,99801548,2738.98,Contract Staff
BEIS,UKRI - UKRI,15/09/2022,Unspecified,UKRI - Digital Data and Technology BAU Costs,Alexander Mann Solutions Ltd,99802411,3024.29,Contract Staff
BEIS,UKRI - UKRI,15/09/2022,Unspecified,UKRI - Digital Data and Technology Project Costs,Alexander Mann Solutions Ltd,99802415,1386.14,Contract Staff
BEIS,UKRI - UKRI,15/09/2022,Unspecified,UKRI - Digital Data and Technology Project Costs,Alexander Mann Solutions Ltd,99802450,2646.24,Contract Staff
BEIS,UKRI - UKRI,15/09/2022,SSC Service Charges,UKRI - Corporate Services,UK Shared Business Services Ltd,99804594,2036250.00,SSC Service Charges
BEIS,UKRI - UKRI,15/09/2022,Recruitment Costs,UKRI People and Organisation Development,Onefix Recruitment Ltd,99804968,270.00,Recruitment Costs
BEIS,UKRI - UKRI,15/09/2022,Mechanical & Electrical Maintenance,UKRI - JBOS,Premier Farnell UK Ltd T/A Farnell Onecall,99805224,5.12,Mechanical & Electrical Maintenance
BEIS,UKRI - UKRI,15/09/2022,Research & Scientific Equipment,UKRI - JBOS,Premier Farnell UK Ltd T/A Farnell Onecall,99805224,10.16,Research & Scientific Equipment
BEIS,UKRI - UKRI,15/09/2022,Advertising & Promotion,UKRI - Communications Content,Unspecified,99805277,512.00,Advertising & Promotion
BEIS,UKRI - UKRI,15/09/2022,Security Services,UKRI - JBOS,Id Management Systems,99805282,7.95,Security Services
BEIS,UKRI - UKRI,15/09/2022,Security Services,UKRI - JBOS,Id Management Systems,99805282,285.60,Security Services
BEIS,UKRI - UKRI,15/09/2022,Security Services,UKRI - JBOS,Id Management Systems,99805282,0.80,Security Services
BEIS,UKRI - UKRI,15/09/2022,Security Services,UKRI - JBOS,Id Management Systems,99805282,1.75,Security Services
BEIS,UKRI - UKRI,15/09/2022,HR Assignment Default Expense,UKRI - Communications Projects and Services,EDENRED (UK GROUP) LTD,99805620,2170.00,HR Assignment Default Expense
BEIS,UKRI - UKRI,15/09/2022,Non-staff travel and subsistance,UKRI - Culture Leadership and Learning,Corporate Travel Management (North) Ltd,99805643,45.50,Non-staff travel and subsistance
BEIS,UKRI - UKRI,15/09/2022,Non-staff travel and subsistance,UKRI - Culture Leadership and Learning,Corporate Travel Management (North) Ltd,99805643,0.25,Non-staff travel and subsistance
BEIS,UKRI - UKRI,15/09/2022,Non-staff travel and subsistance,UKRI - Public Engagement,Corporate Travel Management (North) Ltd,99805643,36.50,Non-staff travel and subsistance
BEIS,UKRI - UKRI,15/09/2022,Non-staff travel and subsistance,UKRI - Public Engagement,Corporate Travel Management (North) Ltd,99805643,0.25,Non-staff travel and subsistance
BEIS,UKRI - UKRI,15/09/2022,T&S Overseas - Flights,Reforming Our Business,Corporate Travel Management (North) Ltd,99805643,2.50,T&S Overseas - Flights
BEIS,UKRI - UKRI,15/09/2022,T&S Overseas - Flights,Reforming Our Business,Corporate Travel Management (North) Ltd,99805643,2218.86,T&S Overseas - Flights
BEIS,UKRI - UKRI,15/09/2022,T&S Overseas - Flights,Reforming Our Business,Corporate Travel Management (North) Ltd,99805643,707.69,T&S Overseas - Flights
BEIS,UKRI - UKRI,15/09/2022,T&S Overseas - Flights,Reforming Our Business,Corporate Travel Management (North) Ltd,99805643,7.00,T&S Overseas - Flights
BEIS,UKRI - UKRI,15/09/2022,T&S Overseas - Flights,UKRI - Executive Group,Corporate Travel Management (North) Ltd,99805643,2.50,T&S Overseas - Flights
BEIS,UKRI - UKRI,15/09/2022,T&S Overseas - Flights,UKRI - Executive Group,Corporate Travel Management (North) Ltd,99805643,555.11,T&S Overseas - Flights
BEIS,UKRI - UKRI,15/09/2022,T&S Overseas - Flights,UKRI - Overseas Office USA,Corporate Travel Management (North) Ltd,99805643,2.50,T&S Overseas - Flights
BEIS,UKRI - UKRI,15/09/2022,T&S Overseas - Flights,UKRI - Overseas Office USA,Corporate Travel Management (North) Ltd,99805643,1797.86,T&S Overseas - Flights
BEIS,UKRI - UKRI,15/09/2022,T&S Overseas - Flights,UKRI - Overseas Office USA,Corporate Travel Management (North) Ltd,99805643,2.50,T&S Overseas - Flights
BEIS,UKRI - UKRI,15/09/2022,T&S Overseas - Flights,UKRI - Overseas Office USA,Corporate Travel Management (North) Ltd,99805643,124.90,T&S Overseas - Flights
BEIS,UKRI - UKRI,15/09/2022,T&S Overseas - Flights,UKRI - Overseas Office USA,Corporate Travel Management (North) Ltd,99805643,2.50,T&S Overseas - Flights
BEIS,UKRI - UKRI,15/09/2022,T&S Overseas - Flights,UKRI - Overseas Office USA,Corporate Travel Management (North) Ltd,99805643,175.40,T&S Overseas - Flights
BEIS,UKRI - UKRI,15/09/2022,T&S Overseas - Flights,UKRI - Overseas Office USA,Corporate Travel Management (North) Ltd,99805643,2.50,T&S Overseas - Flights
BEIS,UKRI - UKRI,15/09/2022,T&S Overseas - Flights,UKRI - Overseas Office USA,Corporate Travel Management (North) Ltd,99805643,1735.26,T&S Overseas - Flights
BEIS,UKRI - UKRI,15/09/2022,T&S UK - Accommodation,Public Engagement Programmes,Corporate Travel Management (North) Ltd,99805643,0.80,T&S UK - Accommodation
BEIS,UKRI - UKRI,15/09/2022,T&S UK - Accommodation,Public Engagement Programmes,Corporate Travel Management (North) Ltd,99805643,129.80,T&S UK - Accommodation
BEIS,UKRI - UKRI,15/09/2022,T&S UK - Accommodation,Public Engagement Programmes,Corporate Travel Management (North) Ltd,99805643,0.16,T&S UK - Accommodation
BEIS,UKRI - UKRI,15/09/2022,T&S UK - Accommodation,UKRI - Risk and Counter Fraud,Corporate Travel Management (North) Ltd,99805643,0.80,T&S UK - Accommodation
BEIS,UKRI - UKRI,15/09/2022,T&S UK - Accommodation,UKRI - Risk and Counter Fraud,Corporate Travel Management (North) Ltd,99805643,0.80,T&S UK - Accommodation
BEIS,UKRI - UKRI,15/09/2022,T&S UK - Accommodation,UKRI - Risk and Counter Fraud,Corporate Travel Management (North) Ltd,99805643,0.80,T&S UK - Accommodation
BEIS,UKRI - UKRI,15/09/2022,T&S UK - Accommodation,UKRI - Risk and Counter Fraud,Corporate Travel Management (North) Ltd,99805643,150.00,T&S UK - Accommodation
BEIS,UKRI - UKRI,15/09/2022,T&S UK - Accommodation,UKRI - Risk and Counter Fraud,Corporate Travel Management (North) Ltd,99805643,0.80,T&S UK - Accommodation
BEIS,UKRI - UKRI,15/09/2022,T&S UK - Accommodation,UKRI - Risk and Counter Fraud,Corporate Travel Management (North) Ltd,99805643,75.00,T&S UK - Accommodation
BEIS,UKRI - UKRI,15/09/2022,T&S UK - Accommodation,UKRI - Risk and Counter Fraud,Corporate Travel Management (North) Ltd,99805643,0.80,T&S UK - Accommodation
BEIS,UKRI - UKRI,15/09/2022,T&S UK - Accommodation,UKRI - Risk and Counter Fraud,Corporate Travel Management (North) Ltd,99805643,0.80,T&S UK - Accommodation
BEIS,UKRI - UKRI,15/09/2022,T&S UK - Accommodation,UKRI - Risk and Counter Fraud,Corporate Travel Management (North) Ltd,99805643,0.96,T&S UK - Accommodation
BEIS,UKRI - UKRI,15/09/2022,T&S UK - Accommodation,UKRI - Communications Content,Corporate Travel Management (North) Ltd,99805643,0.80,T&S UK - Accommodation
BEIS,UKRI - UKRI,15/09/2022,T&S UK - Accommodation,UKRI - Communications Content,Corporate Travel Management (North) Ltd,99805643,312.80,T&S UK - Accommodation
BEIS,UKRI - UKRI,15/09/2022,T&S UK - Accommodation,UKRI - Communications Content,Corporate Travel Management (North) Ltd,99805643,69.00,T&S UK - Accommodation
BEIS,UKRI - UKRI,15/09/2022,T&S UK - Accommodation,UKRI - Communications Content,Corporate Travel Management (North) Ltd,99805643,0.80,T&S UK - Accommodation
BEIS,UKRI - UKRI,15/09/2022,T&S UK - Accommodation,UKRI - Communications Content,Corporate Travel Management (North) Ltd,99805643,0.32,T&S UK - Accommodation
BEIS,UKRI - UKRI,15/09/2022,T&S UK - Accommodation,UKRI - Culture Leadership and Learning,Corporate Travel Management (North) Ltd,99805643,0.80,T&S UK - Accommodation
BEIS,UKRI - UKRI,15/09/2022,T&S UK - Accommodation,UKRI - Culture Leadership and Learning,Corporate Travel Management (North) Ltd,99805643,225.00,T&S UK - Accommodation
BEIS,UKRI - UKRI,15/09/2022,T&S UK - Accommodation,UKRI - Culture Leadership and Learning,Corporate Travel Management (North) Ltd,99805643,0.40,T&S UK - Accommodation
BEIS,UKRI - UKRI,15/09/2022,T&S UK - Accommodation,UKRI - Culture Leadership and Learning,Corporate Travel Management (North) Ltd,99805643,80.00,T&S UK - Accommodation
BEIS,UKRI - UKRI,15/09/2022,T&S UK - Accommodation,UKRI - Culture Leadership and Learning,Corporate Travel Management (North) Ltd,99805643,0.80,T&S UK - Accommodation
BEIS,UKRI - UKRI,15/09/2022,T&S UK - Accommodation,UKRI - Culture Leadership and Learning,Corporate Travel Management (North) Ltd,99805643,225.00,T&S UK - Accommodation
BEIS,UKRI - UKRI,15/09/2022,T&S UK - Accommodation,UKRI - Culture Leadership and Learning,Corporate Travel Management (North) Ltd,99805643,2.80,T&S UK - Accommodation
BEIS,UKRI - UKRI,15/09/2022,T&S UK - Accommodation,UKRI - Culture Leadership and Learning,Corporate Travel Management (North) Ltd,99805643,150.00,T&S UK - Accommodation
BEIS,UKRI - UKRI,15/09/2022,T&S UK - Accommodation,UKRI - Culture Leadership and Learning,Corporate Travel Management (North) Ltd,99805643,0.40,T&S UK - Accommodation
BEIS,UKRI - UKRI,15/09/2022,T&S UK - Accommodation,UKRI - Culture Leadership and Learning,Corporate Travel Management (North) Ltd,99805643,75.00,T&S UK - Accommodation
BEIS,UKRI - UKRI,15/09/2022,T&S UK - Accommodation,UKRI - Culture Leadership and Learning,Corporate Travel Management (North) Ltd,99805643,0.40,T&S UK - Accommodation
BEIS,UKRI - UKRI,15/09/2022,T&S UK - Accommodation,UKRI - Culture Leadership and Learning,Corporate Travel Management (North) Ltd,99805643,75.00,T&S UK - Accommodation
BEIS,UKRI - UKRI,15/09/2022,T&S UK - Accommodation,UKRI - Culture Leadership and Learning,Corporate Travel Management (North) Ltd,99805643,0.80,T&S UK - Accommodation
BEIS,UKRI - UKRI,15/09/2022,T&S UK - Accommodation,UKRI - Culture Leadership and Learning,Corporate Travel Management (North) Ltd,99805643,130.00,T&S UK - Accommodation
BEIS,UKRI - UKRI,15/09/2022,T&S UK - Accommodation,UKRI - Culture Leadership and Learning,Corporate Travel Management (North) Ltd,99805643,1.28,T&S UK - Accommodation
BEIS,UKRI - UKRI,15/09/2022,T&S UK - Accommodation,UKRI - Digital Data and Technology BAU Costs,Corporate Travel Management (North) Ltd,99805643,0.40,T&S UK - Accommodation
BEIS,UKRI - UKRI,15/09/2022,T&S UK - Accommodation,UKRI - Digital Data and Technology BAU Costs,Corporate Travel Management (North) Ltd,99805643,75.00,T&S UK - Accommodation
BEIS,UKRI - UKRI,15/09/2022,T&S UK - Accommodation,UKRI - Digital Data and Technology BAU Costs,Corporate Travel Management (North) Ltd,99805643,0.80,T&S UK - Accommodation
BEIS,UKRI - UKRI,15/09/2022,T&S UK - Accommodation,UKRI - Digital Data and Technology BAU Costs,Corporate Travel Management (North) Ltd,99805643,131.50,T&S UK - Accommodation
BEIS,UKRI - UKRI,15/09/2022,T&S UK - Accommodation,UKRI - Digital Data and Technology BAU Costs,Corporate Travel Management (North) Ltd,99805643,0.80,T&S UK - Accommodation
BEIS,UKRI - UKRI,15/09/2022,T&S UK - Accommodation,UKRI - Digital Data and Technology BAU Costs,Corporate Travel Management (North) Ltd,99805643,150.00,T&S UK - Accommodation
BEIS,UKRI - UKRI,15/09/2022,T&S UK - Accommodation,UKRI - Digital Data and Technology BAU Costs,Corporate Travel Management (North) Ltd,99805643,0.80,T&S UK - Accommodation
BEIS,UKRI - UKRI,15/09/2022,T&S UK - Accommodation,UKRI - Digital Data and Technology BAU Costs,Corporate Travel Management (North) Ltd,99805643,75.00,T&S UK - Accommodation
BEIS,UKRI - UKRI,15/09/2022,T&S UK - Accommodation,UKRI - Digital Data and Technology BAU Costs,Corporate Travel Management (North) Ltd,99805643,0.56,T&S UK - Accommodation
BEIS,UKRI - UKRI,15/09/2022,T&S UK - Accommodation,UKRI - International,Corporate Travel Management (North) Ltd,99805643,0.80,T&S UK - Accommodation
BEIS,UKRI - UKRI,15/09/2022,T&S UK - Accommodation,UKRI - International,Corporate Travel Management (North) Ltd,99805643,169.35,T&S UK - Accommodation
BEIS,UKRI - UKRI,15/09/2022,T&S UK - Accommodation,UKRI - International,Corporate Travel Management (North) Ltd,99805643,0.16,T&S UK - Accommodation
BEIS,UKRI - UKRI,15/09/2022,T&S UK - Accommodation,UKRI - Management Reporting,Corporate Travel Management (North) Ltd,99805643,2.00,T&S UK - Accommodation
BEIS,UKRI - UKRI,15/09/2022,T&S UK - Accommodation,UKRI - Management Reporting,Corporate Travel Management (North) Ltd,99805643,2.00,T&S UK - Accommodation
BEIS,UKRI - UKRI,15/09/2022,T&S UK - Accommodation,UKRI - Management Reporting,Corporate Travel Management (North) Ltd,99805643,0.80,T&S UK - Accommodation
BEIS,UKRI - UKRI,15/09/2022,T&S UK - Accommodation,UKRI - Management Reporting,Corporate Travel Management (North) Ltd,99805643,75.00,T&S UK - Accommodation
BEIS,UKRI - UKRI,15/09/2022,T&S UK - Accommodation,UKRI - Management Reporting,Corporate Travel Management (North) Ltd,99805643,0.96,T&S UK - Accommodation
BEIS,UKRI - UKRI,15/09/2022,T&S UK - Accommodation,UKRI - Overseas Office USA,Corporate Travel Management (North) Ltd,99805643,0.40,T&S UK - Accommodation
BEIS,UKRI - UKRI,15/09/2022,T&S UK - Accommodation,UKRI - Overseas Office USA,Corporate Travel Management (North) Ltd,99805643,216.45,T&S UK - Accommodation
BEIS,UKRI - UKRI,15/09/2022,T&S UK - Accommodation,UKRI - Overseas Office USA,Corporate Travel Management (North) Ltd,99805643,0.08,T&S UK - Accommodation
BEIS,UKRI - UKRI,15/09/2022,T&S UK - Accommodation,UKRI - Security,Corporate Travel Management (North) Ltd,99805643,0.80,T&S UK - Accommodation
BEIS,UKRI - UKRI,15/09/2022,T&S UK - Accommodation,UKRI - Security,Corporate Travel Management (North) Ltd,99805643,163.00,T&S UK - Accommodation
BEIS,UKRI - UKRI,15/09/2022,T&S UK - Accommodation,UKRI - Security,Corporate Travel Management (North) Ltd,99805643,0.16,T&S UK - Accommodation
BEIS,UKRI - UKRI,15/09/2022,T&S UK - Accommodation,UKRI - Strategic Finance Business Partners,Corporate Travel Management (North) Ltd,99805643,0.80,T&S UK - Accommodation
BEIS,UKRI - UKRI,15/09/2022,T&S UK - Accommodation,UKRI - Strategic Finance Business Partners,Corporate Travel Management (North) Ltd,99805643,0.16,T&S UK - Accommodation
BEIS,UKRI - UKRI,15/09/2022,T&S UK - Accommodation,UKRI - Strategy,Corporate Travel Management (North) Ltd,99805643,0.80,T&S UK - Accommodation
BEIS,UKRI - UKRI,15/09/2022,T&S UK - Accommodation,UKRI - Strategy,Corporate Travel Management (North) Ltd,99805643,89.00,T&S UK - Accommodation
BEIS,UKRI - UKRI,15/09/2022,T&S UK - Accommodation,UKRI - Strategy,Corporate Travel Management (North) Ltd,99805643,0.16,T&S UK - Accommodation
BEIS,UKRI - UKRI,15/09/2022,T&S UK - Accommodation,"UKRI People, Policies and Management",Corporate Travel Management (North) Ltd,99805643,0.80,T&S UK - Accommodation
BEIS,UKRI - UKRI,15/09/2022,T&S UK - Accommodation,"UKRI People, Policies and Management",Corporate Travel Management (North) Ltd,99805643,115.00,T&S UK - Accommodation
BEIS,UKRI - UKRI,15/09/2022,T&S UK - Accommodation,"UKRI People, Policies and Management",Corporate Travel Management (North) Ltd,99805643,0.80,T&S UK - Accommodation
BEIS,UKRI - UKRI,15/09/2022,T&S UK - Accommodation,"UKRI People, Policies and Management",Corporate Travel Management (North) Ltd,99805643,0.40,T&S UK - Accommodation
BEIS,UKRI - UKRI,15/09/2022,T&S UK - Accommodation,"UKRI People, Policies and Management",Corporate Travel Management (North) Ltd,99805643,115.00,T&S UK - Accommodation
BEIS,UKRI - UKRI,15/09/2022,T&S UK - Accommodation,"UKRI People, Policies and Management",Corporate Travel Management (North) Ltd,99805643,180.00,T&S UK - Accommodation
BEIS,UKRI - UKRI,15/09/2022,T&S UK - Accommodation,"UKRI People, Policies and Management",Corporate Travel Management (North) Ltd,99805643,2.00,T&S UK - Accommodation
BEIS,UKRI - UKRI,15/09/2022,T&S UK - Accommodation,"UKRI People, Policies and Management",Corporate Travel Management (North) Ltd,99805643,0.40,T&S UK - Accommodation
BEIS,UKRI - UKRI,15/09/2022,T&S UK - Accommodation,"UKRI People, Policies and Management",Corporate Travel Management (North) Ltd,99805643,115.00,T&S UK - Accommodation
BEIS,UKRI - UKRI,15/09/2022,T&S UK - Accommodation,"UKRI People, Policies and Management",Corporate Travel Management (North) Ltd,99805643,0.80,T&S UK - Accommodation
BEIS,UKRI - UKRI,15/09/2022,T&S UK - Accommodation,"UKRI People, Policies and Management",Corporate Travel Management (North) Ltd,99805643,75.00,T&S UK - Accommodation
BEIS,UKRI - UKRI,15/09/2022,T&S UK - Accommodation,"UKRI People, Policies and Management",Corporate Travel Management (North) Ltd,99805643,1.04,T&S UK - Accommodation
BEIS,UKRI - UKRI,15/09/2022,T&S UK - Accommodation,UKRI Strategic HR Business Partners,Corporate Travel Management (North) Ltd,99805643,0.80,T&S UK - Accommodation
BEIS,UKRI - UKRI,15/09/2022,T&S UK - Accommodation,UKRI Strategic HR Business Partners,Corporate Travel Management (North) Ltd,99805643,0.16,T&S UK - Accommodation
BEIS,UKRI - UKRI,15/09/2022,T&S UK - Flights,UKRI - Communications Content,Corporate Travel Management (North) Ltd,99805643,2.50,T&S UK - Flights
BEIS,UKRI - UKRI,15/09/2022,T&S UK - Flights,UKRI - Communications Content,Corporate Travel Management (North) Ltd,99805643,593.98,T&S UK - Flights
BEIS,UKRI - UKRI,15/09/2022,T&S UK - Flights,UKRI - Communications Web and Intranet Service,Corporate Travel Management (North) Ltd,99805643,2.50,T&S UK - Flights
BEIS,UKRI - UKRI,15/09/2022,T&S UK - Flights,UKRI - Communications Web and Intranet Service,Corporate Travel Management (North) Ltd,99805643,115.02,T&S UK - Flights
BEIS,UKRI - UKRI,15/09/2022,T&S UK - Flights,UKRI - Communications Web and Intranet Service,Corporate Travel Management (North) Ltd,99805643,2.50,T&S UK - Flights
BEIS,UKRI - UKRI,15/09/2022,T&S UK - Flights,UKRI - Communications Web and Intranet Service,Corporate Travel Management (North) Ltd,99805643,54.50,T&S UK - Flights
BEIS,UKRI - UKRI,15/09/2022,T&S UK - Flights,UKRI - Culture Leadership and Learning,Corporate Travel Management (North) Ltd,99805643,2.50,T&S UK - Flights
BEIS,UKRI - UKRI,15/09/2022,T&S UK - Flights,UKRI - Culture Leadership and Learning,Corporate Travel Management (North) Ltd,99805643,116.60,T&S UK - Flights
BEIS,UKRI - UKRI,15/09/2022,T&S UK - Flights,UKRI - Culture Leadership and Learning,Corporate Travel Management (North) Ltd,99805643,2.50,T&S UK - Flights
BEIS,UKRI - UKRI,15/09/2022,T&S UK - Flights,UKRI - Culture Leadership and Learning,Corporate Travel Management (North) Ltd,99805643,134.57,T&S UK - Flights
BEIS,UKRI - UKRI,15/09/2022,T&S UK - Flights,UKRI - Management Reporting,Corporate Travel Management (North) Ltd,99805643,2.50,T&S UK - Flights
BEIS,UKRI - UKRI,15/09/2022,T&S UK - Flights,UKRI - Management Reporting,Corporate Travel Management (North) Ltd,99805643,161.98,T&S UK - Flights
BEIS,UKRI - UKRI,15/09/2022,T&S UK - Flights,UKRI - Management Reporting,Corporate Travel Management (North) Ltd,99805643,2.50,T&S UK - Flights
BEIS,UKRI - UKRI,15/09/2022,T&S UK - Flights,UKRI - Management Reporting,Corporate Travel Management (North) Ltd,99805643,164.98,T&S UK - Flights
BEIS,UKRI - UKRI,15/09/2022,T&S UK - Flights,UKRI - Management Reporting,Corporate Travel Management (North) Ltd,99805643,2.50,T&S UK - Flights
BEIS,UKRI - UKRI,15/09/2022,T&S UK - Flights,UKRI - Management Reporting,Corporate Travel Management (North) Ltd,99805643,176.46,T&S UK - Flights
BEIS,UKRI - UKRI,15/09/2022,T&S UK - Flights,UKRI - Strategy,Corporate Travel Management (North) Ltd,99805643,2.50,T&S UK - Flights
BEIS,UKRI - UKRI,15/09/2022,T&S UK - Flights,UKRI - Strategy,Corporate Travel Management (North) Ltd,99805643,201.96,T&S UK - Flights
BEIS,UKRI - UKRI,15/09/2022,T&S UK - Flights,UKRI - Strategy,Corporate Travel Management (North) Ltd,99805643,2.50,T&S UK - Flights
BEIS,UKRI - UKRI,15/09/2022,T&S UK - Flights,UKRI - Strategy,Corporate Travel Management (North) Ltd,99805643,51.98,T&S UK - Flights
BEIS,UKRI - UKRI,15/09/2022,T&S UK - Parking Tolls Congestion Charges,UKRI - Security,Corporate Travel Management (North) Ltd,99805643,97.99,T&S UK - Parking Tolls Congestion Charges
BEIS,UKRI - UKRI,15/09/2022,T&S UK - Parking Tolls Congestion Charges,UKRI - Security,Corporate Travel Management (North) Ltd,99805643,4.50,T&S UK - Parking Tolls Congestion Charges
BEIS,UKRI - UKRI,15/09/2022,T&S UK - Parking Tolls Congestion Charges,UKRI - Security,Corporate Travel Management (North) Ltd,99805643,0.90,T&S UK - Parking Tolls Congestion Charges
BEIS,UKRI - UKRI,15/09/2022,T&S UK - Public Transport,"Corporate Strategy, Governance and Performance",Corporate Travel Management (North) Ltd,99805643,51.15,T&S UK - Public Transport
BEIS,UKRI - UKRI,15/09/2022,T&S UK - Public Transport,"Corporate Strategy, Governance and Performance",Corporate Travel Management (North) Ltd,99805643,0.13,T&S UK - Public Transport
BEIS,UKRI - UKRI,15/09/2022,T&S UK - Public Transport,"Corporate Strategy, Governance and Performance",Corporate Travel Management (North) Ltd,99805643,19.60,T&S UK - Public Transport
BEIS,UKRI - UKRI,15/09/2022,T&S UK - Public Transport,"Corporate Strategy, Governance and Performance",Corporate Travel Management (North) Ltd,99805643,0.13,T&S UK - Public Transport
BEIS,UKRI - UKRI,15/09/2022,T&S UK - Public Transport,Public Engagement Programmes,Corporate Travel Management (North) Ltd,99805643,26.20,T&S UK - Public Transport
BEIS,UKRI - UKRI,15/09/2022,T&S UK - Public Transport,Public Engagement Programmes,Corporate Travel Management (North) Ltd,99805643,0.50,T&S UK - Public Transport
BEIS,UKRI - UKRI,15/09/2022,T&S UK - Public Transport,Public Engagement Programmes,Corporate Travel Management (North) Ltd,99805643,157.20,T&S UK - Public Transport
BEIS,UKRI - UKRI,15/09/2022,T&S UK - Public Transport,Public Engagement Programmes,Corporate Travel Management (North) Ltd,99805643,133.20,T&S UK - Public Transport
BEIS,UKRI - UKRI,15/09/2022,T&S UK - Public Transport,Public Engagement Programmes,Corporate Travel Management (North) Ltd,99805643,0.25,T&S UK - Public Transport
BEIS,UKRI - UKRI,15/09/2022,T&S UK - Public Transport,Reforming Our Business,Corporate Travel Management (North) Ltd,99805643,0.25,T&S UK - Public Transport
BEIS,UKRI - UKRI,15/09/2022,T&S UK - Public Transport,Reforming Our Business,Corporate Travel Management (North) Ltd,99805643,75.90,T&S UK - Public Transport
BEIS,UKRI - UKRI,15/09/2022,T&S UK - Public Transport,UKRI - Information Governance,Corporate Travel Management (North) Ltd,99805643,104.00,T&S UK - Public Transport
BEIS,UKRI - UKRI,15/09/2022,T&S UK - Public Transport,UKRI - Information Governance,Corporate Travel Management (North) Ltd,99805643,0.25,T&S UK - Public Transport
BEIS,UKRI - UKRI,15/09/2022,T&S UK - Public Transport,UKRI - BEIS ODA,Corporate Travel Management (North) Ltd,99805643,160.20,T&S UK - Public Transport
BEIS,UKRI - UKRI,15/09/2022,T&S UK - Public Transport,UKRI - BEIS ODA,Corporate Travel Management (North) Ltd,99805643,0.25,T&S UK - Public Transport
BEIS,UKRI - UKRI,15/09/2022,T&S UK - Public Transport,UKRI - Communication and Engagement,Corporate Travel Management (North) Ltd,99805643,-183.80,T&S UK - Public Transport
BEIS,UKRI - UKRI,15/09/2022,T&S UK - Public Transport,UKRI - Communication and Engagement,Corporate Travel Management (North) Ltd,99805643,-74.00,T&S UK - Public Transport
BEIS,UKRI - UKRI,15/09/2022,T&S UK - Public Transport,UKRI - Communication and Engagement,Corporate Travel Management (North) Ltd,99805643,0.25,T&S UK - Public Transport
BEIS,UKRI - UKRI,15/09/2022,T&S UK - Public Transport,UKRI - Communication and Engagement,Corporate Travel Management (North) Ltd,99805643,152.10,T&S UK - Public Transport
BEIS,UKRI - UKRI,15/09/2022,T&S UK - Public Transport,UKRI - Communications Content,Corporate Travel Management (North) Ltd,99805643,120.50,T&S UK - Public Transport
BEIS,UKRI - UKRI,15/09/2022,T&S UK - Public Transport,UKRI - Communications Content,Corporate Travel Management (North) Ltd,99805643,0.25,T&S UK - Public Transport
BEIS,UKRI - UKRI,15/09/2022,T&S UK - Public Transport,UKRI - Communications Content,Corporate Travel Management (North) Ltd,99805643,26.00,T&S UK - Public Transport
BEIS,UKRI - UKRI,15/09/2022,T&S UK - Public Transport,UKRI - Communications Content,Corporate Travel Management (North) Ltd,99805643,0.25,T&S UK - Public Transport
BEIS,UKRI - UKRI,15/09/2022,T&S UK - Public Transport,UKRI - Communications External Affairs,Corporate Travel Management (North) Ltd,99805643,0.25,T&S UK - Public Transport
BEIS,UKRI - UKRI,15/09/2022,T&S UK - Public Transport,UKRI - Communications External Affairs,Corporate Travel Management (North) Ltd,99805643,130.50,T&S UK - Public Transport
BEIS,UKRI - UKRI,15/09/2022,T&S UK - Public Transport,UKRI - Communications External Affairs,Corporate Travel Management (North) Ltd,99805643,137.40,T&S UK - Public Transport
BEIS,UKRI - UKRI,15/09/2022,T&S UK - Public Transport,UKRI - Communications External Affairs,Corporate Travel Management (North) Ltd,99805643,0.25,T&S UK - Public Transport
BEIS,UKRI - UKRI,15/09/2022,T&S UK - Public Transport,UKRI - Corporate Services,Corporate Travel Management (North) Ltd,99805643,0.25,T&S UK - Public Transport
BEIS,UKRI - UKRI,15/09/2022,T&S UK - Public Transport,UKRI - Corporate Services,Corporate Travel Management (North) Ltd,99805643,84.20,T&S UK - Public Transport
BEIS,UKRI - UKRI,15/09/2022,T&S UK - Public Transport,UKRI - Council Partnership and Performance,Corporate Travel Management (North) Ltd,99805643,151.20,T&S UK - Public Transport
BEIS,UKRI - UKRI,15/09/2022,T&S UK - Public Transport,UKRI - Council Partnership and Performance,Corporate Travel Management (North) Ltd,99805643,0.25,T&S UK - Public Transport
BEIS,UKRI - UKRI,15/09/2022,T&S UK - Public Transport,UKRI - Council Partnership and Performance,Corporate Travel Management (North) Ltd,99805643,-22.80,T&S UK - Public Transport
BEIS,UKRI - UKRI,15/09/2022,T&S UK - Public Transport,UKRI - Counter Fraud,Corporate Travel Management (North) Ltd,99805643,0.13,T&S UK - Public Transport
BEIS,UKRI - UKRI,15/09/2022,T&S UK - Public Transport,UKRI - Counter Fraud,Corporate Travel Management (North) Ltd,99805643,85.50,T&S UK - Public Transport
BEIS,UKRI - UKRI,15/09/2022,T&S UK - Public Transport,UKRI - Counter Fraud,Corporate Travel Management (North) Ltd,99805643,0.12,T&S UK - Public Transport
BEIS,UKRI - UKRI,15/09/2022,T&S UK - Public Transport,UKRI - Counter Fraud,Corporate Travel Management (North) Ltd,99805643,85.50,T&S UK - Public Transport
BEIS,UKRI - UKRI,15/09/2022,T&S UK - Public Transport,UKRI - Counter Fraud,Corporate Travel Management (North) Ltd,99805643,61.35,T&S UK - Public Transport
BEIS,UKRI - UKRI,15/09/2022,T&S UK - Public Transport,UKRI - Counter Fraud,Corporate Travel Management (North) Ltd,99805643,0.08,T&S UK - Public Transport
BEIS,UKRI - UKRI,15/09/2022,T&S UK - Public Transport,UKRI - Counter Fraud,Corporate Travel Management (North) Ltd,99805643,61.35,T&S UK - Public Transport
BEIS,UKRI - UKRI,15/09/2022,T&S UK - Public Transport,UKRI - Counter Fraud,Corporate Travel Management (North) Ltd,99805643,0.08,T&S UK - Public Transport
BEIS,UKRI - UKRI,15/09/2022,T&S UK - Public Transport,UKRI - Counter Fraud,Corporate Travel Management (North) Ltd,99805643,61.35,T&S UK - Public Transport
BEIS,UKRI - UKRI,15/09/2022,T&S UK - Public Transport,UKRI - Counter Fraud,Corporate Travel Management (North) Ltd,99805643,0.09,T&S UK - Public Transport
BEIS,UKRI - UKRI,15/09/2022,T&S UK - Public Transport,UKRI - Culture Leadership and Learning,Corporate Travel Management (North) Ltd,99805643,78.30,T&S UK - Public Transport
BEIS,UKRI - UKRI,15/09/2022,T&S UK - Public Transport,UKRI - Culture Leadership and Learning,Corporate Travel Management (North) Ltd,99805643,0.25,T&S UK - Public Transport
BEIS,UKRI - UKRI,15/09/2022,T&S UK - Public Transport,UKRI - Culture Leadership and Learning,Corporate Travel Management (North) Ltd,99805643,0.25,T&S UK - Public Transport
BEIS,UKRI - UKRI,15/09/2022,T&S UK - Public Transport,UKRI - Culture Leadership and Learning,Corporate Travel Management (North) Ltd,99805643,42.10,T&S UK - Public Transport
BEIS,UKRI - UKRI,15/09/2022,T&S UK - Public Transport,UKRI - Culture Leadership and Learning,Corporate Travel Management (North) Ltd,99805643,204.00,T&S UK - Public Transport
BEIS,UKRI - UKRI,15/09/2022,T&S UK - Public Transport,UKRI - Culture Leadership and Learning,Corporate Travel Management (North) Ltd,99805643,0.25,T&S UK - Public Transport
BEIS,UKRI - UKRI,15/09/2022,T&S UK - Public Transport,UKRI - Culture Leadership and Learning,Corporate Travel Management (North) Ltd,99805643,0.25,T&S UK - Public Transport
BEIS,UKRI - UKRI,15/09/2022,T&S UK - Public Transport,UKRI - Culture Leadership and Learning,Corporate Travel Management (North) Ltd,99805643,101.60,T&S UK - Public Transport
BEIS,UKRI - UKRI,15/09/2022,T&S UK - Public Transport,UKRI - Culture Leadership and Learning,Corporate Travel Management (North) Ltd,99805643,53.50,T&S UK - Public Transport
BEIS,UKRI - UKRI,15/09/2022,T&S UK - Public Transport,UKRI - Culture Leadership and Learning,Corporate Travel Management (North) Ltd,99805643,0.25,T&S UK - Public Transport
BEIS,UKRI - UKRI,15/09/2022,T&S UK - Public Transport,UKRI - Culture Leadership and Learning,Corporate Travel Management (North) Ltd,99805643,113.20,T&S UK - Public Transport
BEIS,UKRI - UKRI,15/09/2022,T&S UK - Public Transport,UKRI - Culture Leadership and Learning,Corporate Travel Management (North) Ltd,99805643,0.25,T&S UK - Public Transport
BEIS,UKRI - UKRI,15/09/2022,T&S UK - Public Transport,UKRI - Culture Leadership and Learning,Corporate Travel Management (North) Ltd,99805643,26.70,T&S UK - Public Transport
BEIS,UKRI - UKRI,15/09/2022,T&S UK - Public Transport,UKRI - Culture Leadership and Learning,Corporate Travel Management (North) Ltd,99805643,0.25,T&S UK - Public Transport
BEIS,UKRI - UKRI,15/09/2022,T&S UK - Public Transport,UKRI - Culture Leadership and Learning,Corporate Travel Management (North) Ltd,99805643,0.25,T&S UK - Public Transport
BEIS,UKRI - UKRI,15/09/2022,T&S UK - Public Transport,UKRI - Culture Leadership and Learning,Corporate Travel Management (North) Ltd,99805643,90.20,T&S UK - Public Transport
BEIS,UKRI - UKRI,15/09/2022,T&S UK - Public Transport,UKRI - Culture Leadership and Learning,Corporate Travel Management (North) Ltd,99805643,2.60,T&S UK - Public Transport
BEIS,UKRI - UKRI,15/09/2022,T&S UK - Public Transport,UKRI - Culture Leadership and Learning,Corporate Travel Management (North) Ltd,99805643,29.60,T&S UK - Public Transport
BEIS,UKRI - UKRI,15/09/2022,T&S UK - Public Transport,UKRI - Culture Leadership and Learning,Corporate Travel Management (North) Ltd,99805643,0.25,T&S UK - Public Transport
BEIS,UKRI - UKRI,15/09/2022,T&S UK - Public Transport,UKRI - Culture Leadership and Learning,Corporate Travel Management (North) Ltd,99805643,14.70,T&S UK - Public Transport
BEIS,UKRI - UKRI,15/09/2022,T&S UK - Public Transport,UKRI - Digital Data and Technology BAU Costs,Corporate Travel Management (North) Ltd,99805643,56.00,T&S UK - Public Transport
BEIS,UKRI - UKRI,15/09/2022,T&S UK - Public Transport,UKRI - Digital Data and Technology BAU Costs,Corporate Travel Management (North) Ltd,99805643,0.25,T&S UK - Public Transport
BEIS,UKRI - UKRI,15/09/2022,T&S UK - Public Transport,UKRI - Digital Data and Technology BAU Costs,Corporate Travel Management (North) Ltd,99805643,101.50,T&S UK - Public Transport
BEIS,UKRI - UKRI,15/09/2022,T&S UK - Public Transport,UKRI - Digital Data and Technology BAU Costs,Corporate Travel Management (North) Ltd,99805643,0.25,T&S UK - Public Transport
BEIS,UKRI - UKRI,15/09/2022,T&S UK - Public Transport,UKRI - Digital Data and Technology BAU Costs,Corporate Travel Management (North) Ltd,99805643,175.20,T&S UK - Public Transport
BEIS,UKRI - UKRI,15/09/2022,T&S UK - Public Transport,UKRI - Digital Data and Technology BAU Costs,Corporate Travel Management (North) Ltd,99805643,0.25,T&S UK - Public Transport
BEIS,UKRI - UKRI,15/09/2022,T&S UK - Public Transport,UKRI - Digital Data and Technology BAU Costs,Corporate Travel Management (North) Ltd,99805643,175.20,T&S UK - Public Transport
BEIS,UKRI - UKRI,15/09/2022,T&S UK - Public Transport,UKRI - Digital Data and Technology BAU Costs,Corporate Travel Management (North) Ltd,99805643,0.25,T&S UK - Public Transport
BEIS,UKRI - UKRI,15/09/2022,T&S UK - Public Transport,UKRI - Digital Data and Technology BAU Costs,Corporate Travel Management (North) Ltd,99805643,-165.20,T&S UK - Public Transport
BEIS,UKRI - UKRI,15/09/2022,T&S UK - Public Transport,UKRI - Digital Data and Technology BAU Costs,Corporate Travel Management (North) Ltd,99805643,10.00,T&S UK - Public Transport
BEIS,UKRI - UKRI,15/09/2022,T&S UK - Public Transport,UKRI - Digital Data and Technology BAU Costs,Corporate Travel Management (North) Ltd,99805643,175.20,T&S UK - Public Transport
BEIS,UKRI - UKRI,15/09/2022,T&S UK - Public Transport,UKRI - Digital Data and Technology BAU Costs,Corporate Travel Management (North) Ltd,99805643,0.25,T&S UK - Public Transport
BEIS,UKRI - UKRI,15/09/2022,T&S UK - Public Transport,UKRI - Digital Data and Technology BAU Costs,Corporate Travel Management (North) Ltd,99805643,0.25,T&S UK - Public Transport
BEIS,UKRI - UKRI,15/09/2022,T&S UK - Public Transport,UKRI - Digital Data and Technology BAU Costs,Corporate Travel Management (North) Ltd,99805643,212.20,T&S UK - Public Transport
BEIS,UKRI - UKRI,15/09/2022,T&S UK - Public Transport,UKRI - Digital Data and Technology BAU Costs,Corporate Travel Management (North) Ltd,99805643,0.25,T&S UK - Public Transport
BEIS,UKRI - UKRI,15/09/2022,T&S UK - Public Transport,UKRI - Digital Data and Technology BAU Costs,Corporate Travel Management (North) Ltd,99805643,65.70,T&S UK - Public Transport
BEIS,UKRI - UKRI,15/09/2022,T&S UK - Public Transport,UKRI - Digital Data and Technology BAU Costs,Corporate Travel Management (North) Ltd,99805643,54.00,T&S UK - Public Transport
BEIS,UKRI - UKRI,15/09/2022,T&S UK - Public Transport,UKRI - Digital Data and Technology BAU Costs,Corporate Travel Management (North) Ltd,99805643,0.25,T&S UK - Public Transport
BEIS,UKRI - UKRI,15/09/2022,T&S UK - Public Transport,UKRI - Digital Data and Technology BAU Costs,Corporate Travel Management (North) Ltd,99805643,175.20,T&S UK - Public Transport
BEIS,UKRI - UKRI,15/09/2022,T&S UK - Public Transport,UKRI - Digital Data and Technology BAU Costs,Corporate Travel Management (North) Ltd,99805643,0.25,T&S UK - Public Transport
BEIS,UKRI - UKRI,15/09/2022,T&S UK - Public Transport,UKRI - Digital Data and Technology BAU Costs,Corporate Travel Management (North) Ltd,99805643,71.00,T&S UK - Public Transport
BEIS,UKRI - UKRI,15/09/2022,T&S UK - Public Transport,UKRI - Digital Data and Technology BAU Costs,Corporate Travel Management (North) Ltd,99805643,2.60,T&S UK - Public Transport
BEIS,UKRI - UKRI,15/09/2022,T&S UK - Public Transport,UKRI - Digital Data and Technology BAU Costs,Corporate Travel Management (North) Ltd,99805643,175.20,T&S UK - Public Transport
BEIS,UKRI - UKRI,15/09/2022,T&S UK - Public Transport,UKRI - Digital Data and Technology BAU Costs,Corporate Travel Management (North) Ltd,99805643,0.25,T&S UK - Public Transport
BEIS,UKRI - UKRI,15/09/2022,T&S UK - Public Transport,UKRI - Executive Group,Corporate Travel Management (North) Ltd,99805643,0.25,T&S UK - Public Transport
BEIS,UKRI - UKRI,15/09/2022,T&S UK - Public Transport,UKRI - Executive Group,Corporate Travel Management (North) Ltd,99805643,6.30,T&S UK - Public Transport
BEIS,UKRI - UKRI,15/09/2022,T&S UK - Public Transport,UKRI - Executive Group,Corporate Travel Management (North) Ltd,99805643,83.40,T&S UK - Public Transport
BEIS,UKRI - UKRI,15/09/2022,T&S UK - Public Transport,UKRI - Executive Group,Corporate Travel Management (North) Ltd,99805643,0.25,T&S UK - Public Transport
BEIS,UKRI - UKRI,15/09/2022,T&S UK - Public Transport,UKRI - Executive Group,Corporate Travel Management (North) Ltd,99805643,75.15,T&S UK - Public Transport
BEIS,UKRI - UKRI,15/09/2022,T&S UK - Public Transport,UKRI - Executive Group,Corporate Travel Management (North) Ltd,99805643,0.25,T&S UK - Public Transport
BEIS,UKRI - UKRI,15/09/2022,T&S UK - Public Transport,UKRI - Executive Group,Corporate Travel Management (North) Ltd,99805643,64.30,T&S UK - Public Transport
BEIS,UKRI - UKRI,15/09/2022,T&S UK - Public Transport,UKRI - Executive Group,Corporate Travel Management (North) Ltd,99805643,0.25,T&S UK - Public Transport
BEIS,UKRI - UKRI,15/09/2022,T&S UK - Public Transport,UKRI - Executive Group,Corporate Travel Management (North) Ltd,99805643,0.50,T&S UK - Public Transport
BEIS,UKRI - UKRI,15/09/2022,T&S UK - Public Transport,UKRI - Executive Group,Corporate Travel Management (North) Ltd,99805643,48.60,T&S UK - Public Transport
BEIS,UKRI - UKRI,15/09/2022,T&S UK - Public Transport,UKRI - Executive Group,Corporate Travel Management (North) Ltd,99805643,148.50,T&S UK - Public Transport
BEIS,UKRI - UKRI,15/09/2022,T&S UK - Public Transport,UKRI - Executive Group,Corporate Travel Management (North) Ltd,99805643,0.25,T&S UK - Public Transport
BEIS,UKRI - UKRI,15/09/2022,T&S UK - Public Transport,UKRI - Executive Group,Corporate Travel Management (North) Ltd,99805643,-100.80,T&S UK - Public Transport
BEIS,UKRI - UKRI,15/09/2022,T&S UK - Public Transport,UKRI - Executive Group,Corporate Travel Management (North) Ltd,99805643,5.00,T&S UK - Public Transport
BEIS,UKRI - UKRI,15/09/2022,T&S UK - Public Transport,UKRI - Executive Group,Corporate Travel Management (North) Ltd,99805643,400.00,T&S UK - Public Transport
BEIS,UKRI - UKRI,15/09/2022,T&S UK - Public Transport,UKRI - Executive Group,Corporate Travel Management (North) Ltd,99805643,2.60,T&S UK - Public Transport
BEIS,UKRI - UKRI,15/09/2022,T&S UK - Public Transport,UKRI - Executive Group,Corporate Travel Management (North) Ltd,99805643,0.25,T&S UK - Public Transport
BEIS,UKRI - UKRI,15/09/2022,T&S UK - Public Transport,UKRI - Executive Group,Corporate Travel Management (North) Ltd,99805643,20.15,T&S UK - Public Transport
BEIS,UKRI - UKRI,15/09/2022,T&S UK - Public Transport,UKRI - External Communications,Corporate Travel Management (North) Ltd,99805643,0.25,T&S UK - Public Transport
BEIS,UKRI - UKRI,15/09/2022,T&S UK - Public Transport,UKRI - External Communications,Corporate Travel Management (North) Ltd,99805643,158.70,T&S UK - Public Transport
BEIS,UKRI - UKRI,15/09/2022,T&S UK - Public Transport,UKRI - External Communications,Corporate Travel Management (North) Ltd,99805643,96.10,T&S UK - Public Transport
BEIS,UKRI - UKRI,15/09/2022,T&S UK - Public Transport,UKRI - External Communications,Corporate Travel Management (North) Ltd,99805643,0.25,T&S UK - Public Transport
BEIS,UKRI - UKRI,15/09/2022,T&S UK - Public Transport,UKRI - Financial Accounting,Corporate Travel Management (North) Ltd,99805643,79.00,T&S UK - Public Transport
BEIS,UKRI - UKRI,15/09/2022,T&S UK - Public Transport,UKRI - Financial Accounting,Corporate Travel Management (North) Ltd,99805643,0.50,T&S UK - Public Transport
BEIS,UKRI - UKRI,15/09/2022,T&S UK - Public Transport,UKRI - Financial Accounting,Corporate Travel Management (North) Ltd,99805643,56.00,T&S UK - Public Transport
BEIS,UKRI - UKRI,15/09/2022,T&S UK - Public Transport,UKRI - Funding Assurance,Corporate Travel Management (North) Ltd,99805643,0.25,T&S UK - Public Transport
BEIS,UKRI - UKRI,15/09/2022,T&S UK - Public Transport,UKRI - Funding Assurance,Corporate Travel Management (North) Ltd,99805643,66.20,T&S UK - Public Transport
BEIS,UKRI - UKRI,15/09/2022,T&S UK - Public Transport,UKRI - Funding Service,Corporate Travel Management (North) Ltd,99805643,196.20,T&S UK - Public Transport
BEIS,UKRI - UKRI,15/09/2022,T&S UK - Public Transport,UKRI - Funding Service,Corporate Travel Management (North) Ltd,99805643,0.25,T&S UK - Public Transport
BEIS,UKRI - UKRI,15/09/2022,T&S UK - Public Transport,UKRI - Health and Safety,Corporate Travel Management (North) Ltd,99805643,79.70,T&S UK - Public Transport
BEIS,UKRI - UKRI,15/09/2022,T&S UK - Public Transport,UKRI - Health and Safety,Corporate Travel Management (North) Ltd,99805643,0.25,T&S UK - Public Transport
BEIS,UKRI - UKRI,15/09/2022,T&S UK - Public Transport,UKRI - Health and Safety,Corporate Travel Management (North) Ltd,99805643,115.20,T&S UK - Public Transport
BEIS,UKRI - UKRI,15/09/2022,T&S UK - Public Transport,UKRI - Health and Safety,Corporate Travel Management (North) Ltd,99805643,0.25,T&S UK - Public Transport
BEIS,UKRI - UKRI,15/09/2022,T&S UK - Public Transport,UKRI - International,Corporate Travel Management (North) Ltd,99805643,0.25,T&S UK - Public Transport
BEIS,UKRI - UKRI,15/09/2022,T&S UK - Public Transport,UKRI - International,Corporate Travel Management (North) Ltd,99805643,78.60,T&S UK - Public Transport
BEIS,UKRI - UKRI,15/09/2022,T&S UK - Public Transport,UKRI - International,Corporate Travel Management (North) Ltd,99805643,122.40,T&S UK - Public Transport
BEIS,UKRI - UKRI,15/09/2022,T&S UK - Public Transport,UKRI - International,Corporate Travel Management (North) Ltd,99805643,0.25,T&S UK - Public Transport
BEIS,UKRI - UKRI,15/09/2022,T&S UK - Public Transport,UKRI - International Communications,Corporate Travel Management (North) Ltd,99805643,0.25,T&S UK - Public Transport
BEIS,UKRI - UKRI,15/09/2022,T&S UK - Public Transport,UKRI - International Communications,Corporate Travel Management (North) Ltd,99805643,92.40,T&S UK - Public Transport
BEIS,UKRI - UKRI,15/09/2022,T&S UK - Public Transport,UKRI - International Communications,Corporate Travel Management (North) Ltd,99805643,-62.20,T&S UK - Public Transport
BEIS,UKRI - UKRI,15/09/2022,T&S UK - Public Transport,UKRI - International Communications,Corporate Travel Management (North) Ltd,99805643,5.00,T&S UK - Public Transport
BEIS,UKRI - UKRI,15/09/2022,T&S UK - Public Transport,UKRI - International Communications,Corporate Travel Management (North) Ltd,99805643,5.00,T&S UK - Public Transport
BEIS,UKRI - UKRI,15/09/2022,T&S UK - Public Transport,UKRI - International Communications,Corporate Travel Management (North) Ltd,99805643,-41.20,T&S UK - Public Transport
BEIS,UKRI - UKRI,15/09/2022,T&S UK - Public Transport,UKRI - Management Reporting,Corporate Travel Management (North) Ltd,99805643,52.60,T&S UK - Public Transport
BEIS,UKRI - UKRI,15/09/2022,T&S UK - Public Transport,UKRI - Management Reporting,Corporate Travel Management (North) Ltd,99805643,2.60,T&S UK - Public Transport
BEIS,UKRI - UKRI,15/09/2022,T&S UK - Public Transport,UKRI - Management Reporting,Corporate Travel Management (North) Ltd,99805643,62.30,T&S UK - Public Transport
BEIS,UKRI - UKRI,15/09/2022,T&S UK - Public Transport,UKRI - Management Reporting,Corporate Travel Management (North) Ltd,99805643,0.25,T&S UK - Public Transport
BEIS,UKRI - UKRI,15/09/2022,T&S UK - Public Transport,UKRI - Management Reporting,Corporate Travel Management (North) Ltd,99805643,149.30,T&S UK - Public Transport
BEIS,UKRI - UKRI,15/09/2022,T&S UK - Public Transport,UKRI - Management Reporting,Corporate Travel Management (North) Ltd,99805643,0.25,T&S UK - Public Transport
BEIS,UKRI - UKRI,15/09/2022,T&S UK - Public Transport,UKRI - Management Reporting,Corporate Travel Management (North) Ltd,99805643,0.25,T&S UK - Public Transport
BEIS,UKRI - UKRI,15/09/2022,T&S UK - Public Transport,UKRI - Management Reporting,Corporate Travel Management (North) Ltd,99805643,73.65,T&S UK - Public Transport
BEIS,UKRI - UKRI,15/09/2022,T&S UK - Public Transport,UKRI - Overseas Office India,Corporate Travel Management (North) Ltd,99805643,-22.60,T&S UK - Public Transport
BEIS,UKRI - UKRI,15/09/2022,T&S UK - Public Transport,UKRI - Overseas Office India,Corporate Travel Management (North) Ltd,99805643,42.40,T&S UK - Public Transport
BEIS,UKRI - UKRI,15/09/2022,T&S UK - Public Transport,UKRI - Overseas Office India,Corporate Travel Management (North) Ltd,99805643,2.60,T&S UK - Public Transport
BEIS,UKRI - UKRI,15/09/2022,T&S UK - Public Transport,UKRI - Overseas Office USA,Corporate Travel Management (North) Ltd,99805643,0.25,T&S UK - Public Transport
BEIS,UKRI - UKRI,15/09/2022,T&S UK - Public Transport,UKRI - Overseas Office USA,Corporate Travel Management (North) Ltd,99805643,114.60,T&S UK - Public Transport
BEIS,UKRI - UKRI,15/09/2022,T&S UK - Public Transport,UKRI - Private Office,Corporate Travel Management (North) Ltd,99805643,120.50,T&S UK - Public Transport
BEIS,UKRI - UKRI,15/09/2022,T&S UK - Public Transport,UKRI - Private Office,Corporate Travel Management (North) Ltd,99805643,63.30,T&S UK - Public Transport
BEIS,UKRI - UKRI,15/09/2022,T&S UK - Public Transport,UKRI - Private Office,Corporate Travel Management (North) Ltd,99805643,0.50,T&S UK - Public Transport
BEIS,UKRI - UKRI,15/09/2022,T&S UK - Public Transport,UKRI - Private Office,Corporate Travel Management (North) Ltd,99805643,-178.80,T&S UK - Public Transport
BEIS,UKRI - UKRI,15/09/2022,T&S UK - Public Transport,UKRI - Private Office,Corporate Travel Management (North) Ltd,99805643,10.00,T&S UK - Public Transport
BEIS,UKRI - UKRI,15/09/2022,T&S UK - Public Transport,UKRI - Private Office,Corporate Travel Management (North) Ltd,99805643,-178.80,T&S UK - Public Transport
BEIS,UKRI - UKRI,15/09/2022,T&S UK - Public Transport,UKRI - Private Office,Corporate Travel Management (North) Ltd,99805643,10.00,T&S UK - Public Transport
BEIS,UKRI - UKRI,15/09/2022,T&S UK - Public Transport,UKRI - Private Office,Corporate Travel Management (North) Ltd,99805643,63.30,T&S UK - Public Transport
BEIS,UKRI - UKRI,15/09/2022,T&S UK - Public Transport,UKRI - Private Office,Corporate Travel Management (North) Ltd,99805643,0.25,T&S UK - Public Transport
BEIS,UKRI - UKRI,15/09/2022,T&S UK - Public Transport,UKRI - Project Management Office,Corporate Travel Management (North) Ltd,99805643,5.00,T&S UK - Public Transport
BEIS,UKRI - UKRI,15/09/2022,T&S UK - Public Transport,UKRI - Project Management Office,Corporate Travel Management (North) Ltd,99805643,-152.20,T&S UK - Public Transport
BEIS,UKRI - UKRI,15/09/2022,T&S UK - Public Transport,UKRI - Public Engagement,Corporate Travel Management (North) Ltd,99805643,57.80,T&S UK - Public Transport
BEIS,UKRI - UKRI,15/09/2022,T&S UK - Public Transport,UKRI - Public Engagement,Corporate Travel Management (North) Ltd,99805643,0.25,T&S UK - Public Transport
BEIS,UKRI - UKRI,15/09/2022,T&S UK - Public Transport,UKRI - Secretariat,Corporate Travel Management (North) Ltd,99805643,22.80,T&S UK - Public Transport
BEIS,UKRI - UKRI,15/09/2022,T&S UK - Public Transport,UKRI - Secretariat,Corporate Travel Management (North) Ltd,99805643,77.50,T&S UK - Public Transport
BEIS,UKRI - UKRI,15/09/2022,T&S UK - Public Transport,UKRI - Secretariat,Corporate Travel Management (North) Ltd,99805643,0.37,T&S UK - Public Transport
BEIS,UKRI - UKRI,15/09/2022,T&S UK - Public Transport,UKRI - Secretariat,Corporate Travel Management (North) Ltd,99805643,0.25,T&S UK - Public Transport
BEIS,UKRI - UKRI,15/09/2022,T&S UK - Public Transport,UKRI - Secretariat,Corporate Travel Management (North) Ltd,99805643,90.50,T&S UK - Public Transport
BEIS,UKRI - UKRI,15/09/2022,T&S UK - Public Transport,UKRI - Secretariat,Corporate Travel Management (North) Ltd,99805643,29.70,T&S UK - Public Transport
BEIS,UKRI - UKRI,15/09/2022,T&S UK - Public Transport,UKRI - Secretariat,Corporate Travel Management (North) Ltd,99805643,0.12,T&S UK - Public Transport
BEIS,UKRI - UKRI,15/09/2022,T&S UK - Public Transport,UKRI - Secretariat,Corporate Travel Management (North) Ltd,99805643,141.10,T&S UK - Public Transport
BEIS,UKRI - UKRI,15/09/2022,T&S UK - Public Transport,UKRI - Secretariat,Corporate Travel Management (North) Ltd,99805643,0.25,T&S UK - Public Transport
BEIS,UKRI - UKRI,15/09/2022,T&S UK - Public Transport,UKRI - Secretariat,Corporate Travel Management (North) Ltd,99805643,57.75,T&S UK - Public Transport
BEIS,UKRI - UKRI,15/09/2022,T&S UK - Public Transport,UKRI - Secretariat,Corporate Travel Management (North) Ltd,99805643,0.25,T&S UK - Public Transport
BEIS,UKRI - UKRI,15/09/2022,T&S UK - Public Transport,UKRI - Secretariat,Corporate Travel Management (North) Ltd,99805643,0.25,T&S UK - Public Transport
BEIS,UKRI - UKRI,15/09/2022,T&S UK - Public Transport,UKRI - Secretariat,Corporate Travel Management (North) Ltd,99805643,79.70,T&S UK - Public Transport
BEIS,UKRI - UKRI,15/09/2022,T&S UK - Public Transport,UKRI - Security,Corporate Travel Management (North) Ltd,99805643,260.00,T&S UK - Public Transport
BEIS,UKRI - UKRI,15/09/2022,T&S UK - Public Transport,UKRI - Security,Corporate Travel Management (North) Ltd,99805643,2.60,T&S UK - Public Transport
BEIS,UKRI - UKRI,15/09/2022,T&S UK - Public Transport,UKRI - Security,Corporate Travel Management (North) Ltd,99805643,0.25,T&S UK - Public Transport
BEIS,UKRI - UKRI,15/09/2022,T&S UK - Public Transport,UKRI - Security,Corporate Travel Management (North) Ltd,99805643,112.80,T&S UK - Public Transport
BEIS,UKRI - UKRI,15/09/2022,T&S UK - Public Transport,UKRI - Strategic Finance Business Partners,Corporate Travel Management (North) Ltd,99805643,0.25,T&S UK - Public Transport
BEIS,UKRI - UKRI,15/09/2022,T&S UK - Public Transport,UKRI - Strategic Finance Business Partners,Corporate Travel Management (North) Ltd,99805643,26.20,T&S UK - Public Transport
BEIS,UKRI - UKRI,15/09/2022,T&S UK - Public Transport,UKRI - Strategic Finance Business Partners,Corporate Travel Management (North) Ltd,99805643,0.25,T&S UK - Public Transport
BEIS,UKRI - UKRI,15/09/2022,T&S UK - Public Transport,UKRI - Strategic Finance Business Partners,Corporate Travel Management (North) Ltd,99805643,26.20,T&S UK - Public Transport
BEIS,UKRI - UKRI,15/09/2022,T&S UK - Public Transport,UKRI - Strategic Finance Business Partners,Corporate Travel Management (North) Ltd,99805643,0.25,T&S UK - Public Transport
BEIS,UKRI - UKRI,15/09/2022,T&S UK - Public Transport,UKRI - Strategic Finance Business Partners,Corporate Travel Management (North) Ltd,99805643,26.20,T&S UK - Public Transport
BEIS,UKRI - UKRI,15/09/2022,T&S UK - Public Transport,UKRI - Strategic Finance Business Partners,Corporate Travel Management (North) Ltd,99805643,14.80,T&S UK - Public Transport
BEIS,UKRI - UKRI,15/09/2022,T&S UK - Public Transport,UKRI - Strategic Finance Business Partners,Corporate Travel Management (North) Ltd,99805643,2.60,T&S UK - Public Transport
BEIS,UKRI - UKRI,15/09/2022,T&S UK - Public Transport,UKRI - Strategic Finance Business Partners,Corporate Travel Management (North) Ltd,99805643,0.25,T&S UK - Public Transport
BEIS,UKRI - UKRI,15/09/2022,T&S UK - Public Transport,UKRI - Strategic Finance Business Partners,Corporate Travel Management (North) Ltd,99805643,26.20,T&S UK - Public Transport
BEIS,UKRI - UKRI,15/09/2022,T&S UK - Public Transport,UKRI - Strategy,Corporate Travel Management (North) Ltd,99805643,0.25,T&S UK - Public Transport
BEIS,UKRI - UKRI,15/09/2022,T&S UK - Public Transport,UKRI - Strategy,Corporate Travel Management (North) Ltd,99805643,80.80,T&S UK - Public Transport
BEIS,UKRI - UKRI,15/09/2022,T&S UK - Public Transport,UKRI - Strategy,Corporate Travel Management (North) Ltd,99805643,0.25,T&S UK - Public Transport
BEIS,UKRI - UKRI,15/09/2022,T&S UK - Public Transport,UKRI - Strategy,Corporate Travel Management (North) Ltd,99805643,157.20,T&S UK - Public Transport
BEIS,UKRI - UKRI,15/09/2022,T&S UK - Public Transport,UKRI - Strategy,Corporate Travel Management (North) Ltd,99805643,0.25,T&S UK - Public Transport
BEIS,UKRI - UKRI,15/09/2022,T&S UK - Public Transport,UKRI - Strategy,Corporate Travel Management (North) Ltd,99805643,103.75,T&S UK - Public Transport
BEIS,UKRI - UKRI,15/09/2022,T&S UK - Public Transport,UKRI - Strategy,Corporate Travel Management (North) Ltd,99805643,0.25,T&S UK - Public Transport
BEIS,UKRI - UKRI,15/09/2022,T&S UK - Public Transport,UKRI - Strategy,Corporate Travel Management (North) Ltd,99805643,158.70,T&S UK - Public Transport
BEIS,UKRI - UKRI,15/09/2022,T&S UK - Public Transport,UKRI - Strategy,Corporate Travel Management (North) Ltd,99805643,0.25,T&S UK - Public Transport
BEIS,UKRI - UKRI,15/09/2022,T&S UK - Public Transport,UKRI - Strategy,Corporate Travel Management (North) Ltd,99805643,53.50,T&S UK - Public Transport
BEIS,UKRI - UKRI,15/09/2022,T&S UK - Public Transport,UKRI - Strategy,Corporate Travel Management (North) Ltd,99805643,0.25,T&S UK - Public Transport
BEIS,UKRI - UKRI,15/09/2022,T&S UK - Public Transport,UKRI - Strategy,Corporate Travel Management (North) Ltd,99805643,113.20,T&S UK - Public Transport
BEIS,UKRI - UKRI,15/09/2022,T&S UK - Public Transport,UKRI - Strategy,Corporate Travel Management (North) Ltd,99805643,138.60,T&S UK - Public Transport
BEIS,UKRI - UKRI,15/09/2022,T&S UK - Public Transport,UKRI - Strategy,Corporate Travel Management (North) Ltd,99805643,0.25,T&S UK - Public Transport
BEIS,UKRI - UKRI,15/09/2022,T&S UK - Public Transport,UKRI - Strategy,Corporate Travel Management (North) Ltd,99805643,0.25,T&S UK - Public Transport
BEIS,UKRI - UKRI,15/09/2022,T&S UK - Public Transport,UKRI - Strategy,Corporate Travel Management (North) Ltd,99805643,103.70,T&S UK - Public Transport
BEIS,UKRI - UKRI,15/09/2022,T&S UK - Public Transport,UKRI - Strategy,Corporate Travel Management (North) Ltd,99805643,0.25,T&S UK - Public Transport
BEIS,UKRI - UKRI,15/09/2022,T&S UK - Public Transport,UKRI - Strategy,Corporate Travel Management (North) Ltd,99805643,157.20,T&S UK - Public Transport
BEIS,UKRI - UKRI,15/09/2022,T&S UK - Public Transport,UKRI - Strategy,Corporate Travel Management (North) Ltd,99805643,78.50,T&S UK - Public Transport
BEIS,UKRI - UKRI,15/09/2022,T&S UK - Public Transport,UKRI - Strategy,Corporate Travel Management (North) Ltd,99805643,0.25,T&S UK - Public Transport
BEIS,UKRI - UKRI,15/09/2022,T&S UK - Public Transport,UKRI - Strategy,Corporate Travel Management (North) Ltd,99805643,80.50,T&S UK - Public Transport
BEIS,UKRI - UKRI,15/09/2022,T&S UK - Public Transport,UKRI - Strategy,Corporate Travel Management (North) Ltd,99805643,0.25,T&S UK - Public Transport
BEIS,UKRI - UKRI,15/09/2022,T&S UK - Public Transport,"UKRI People, Policies and Management",Corporate Travel Management (North) Ltd,99805643,56.00,T&S UK - Public Transport
BEIS,UKRI - UKRI,15/09/2022,T&S UK - Public Transport,"UKRI People, Policies and Management",Corporate Travel Management (North) Ltd,99805643,0.25,T&S UK - Public Transport
BEIS,UKRI - UKRI,15/09/2022,T&S UK - Public Transport,"UKRI People, Policies and Management",Corporate Travel Management (North) Ltd,99805643,56.00,T&S UK - Public Transport
BEIS,UKRI - UKRI,15/09/2022,T&S UK - Public Transport,"UKRI People, Policies and Management",Corporate Travel Management (North) Ltd,99805643,0.25,T&S UK - Public Transport
BEIS,UKRI - UKRI,15/09/2022,T&S UK - Public Transport,"UKRI People, Policies and Management",Corporate Travel Management (North) Ltd,99805643,0.25,T&S UK - Public Transport
BEIS,UKRI - UKRI,15/09/2022,T&S UK - Public Transport,"UKRI People, Policies and Management",Corporate Travel Management (North) Ltd,99805643,125.30,T&S UK - Public Transport
BEIS,UKRI - UKRI,15/09/2022,T&S UK - Public Transport,"UKRI People, Policies and Management",Corporate Travel Management (North) Ltd,99805643,0.25,T&S UK - Public Transport
BEIS,UKRI - UKRI,15/09/2022,T&S UK - Public Transport,"UKRI People, Policies and Management",Corporate Travel Management (North) Ltd,99805643,125.60,T&S UK - Public Transport
BEIS,UKRI - UKRI,15/09/2022,T&S UK - Public Transport,"UKRI People, Policies and Management",Corporate Travel Management (North) Ltd,99805643,56.00,T&S UK - Public Transport
BEIS,UKRI - UKRI,15/09/2022,T&S UK - Public Transport,"UKRI People, Policies and Management",Corporate Travel Management (North) Ltd,99805643,0.25,T&S UK - Public Transport
BEIS,UKRI - UKRI,15/09/2022,Unspecified,UKRI - Digital Data and Technology Recharges,Unspecified,99805644,-24850.04,Networking Maintenance
BEIS,UKRI - UKRI,15/09/2022,Other Staff Benefits,UKRI - UKRO,Unspecified,99805679,286.20,Other Staff Benefits
BEIS,UKRI - UKRI,15/09/2022,Unspecified,UKRI - Digital Data and Technology Project Costs,Precision Resource Group Ltd T/A iO,99806007,11604.00,Contract Staff
BEIS,UKRI - UKRI,15/09/2022,Postage & Courier Services,UKRI - JBOS,Unspecified,99806100,3031.85,Postage & Courier Services
BEIS,UKRI - UKRI,15/09/2022,Unspecified,UKRI - Digital Data and Technology Project Costs,Sanderson Government and Defence Ltd,99806240,24801.90,Contract Staff
BEIS,UKRI - UKRI,15/09/2022,General Building Maintenance,UKRI - JBOS,ISS Mediclean Ltd,99806249,89258.16,General Building Maintenance
BEIS,UKRI - UKRI,15/09/2022,T&S UK - Other Charges,UKRI - Management Reporting,Pulham and Sons (Coaches) Ltd,99806259,500.00,T&S UK - Other Charges
BEIS,UKRI - UKRI,15/09/2022,Health & Safety (inc. Medicals & Opticians),UKRI - Health and Safety,Posturite Ltd,99806263,521.27,Health & Safety (inc. Medicals & Opticians)
BEIS,UKRI - UKRI,15/09/2022,Design services,UKRI - JRS,Winwood Haines Ltd,99806264,800.00,Design services
BEIS,UKRI - UKRI,15/09/2022,Non-staff travel and subsistance,UKRI - Culture Leadership and Learning,Corporate Travel Management (North) Ltd,99806271,0.25,Non-staff travel and subsistance
BEIS,UKRI - UKRI,15/09/2022,Non-staff travel and subsistance,UKRI - Culture Leadership and Learning,Corporate Travel Management (North) Ltd,99806271,107.20,Non-staff travel and subsistance
BEIS,UKRI - UKRI,15/09/2022,T&S Overseas - Flights,UKRI - International,Corporate Travel Management (North) Ltd,99806271,2.50,T&S Overseas - Flights
BEIS,UKRI - UKRI,15/09/2022,T&S Overseas - Flights,UKRI - International,Corporate Travel Management (North) Ltd,99806271,285.77,T&S Overseas - Flights
BEIS,UKRI - UKRI,15/09/2022,T&S UK - Accommodation,Public Engagement Programmes,Corporate Travel Management (North) Ltd,99806271,0.80,T&S UK - Accommodation
BEIS,UKRI - UKRI,15/09/2022,T&S UK - Accommodation,Public Engagement Programmes,Corporate Travel Management (North) Ltd,99806271,110.00,T&S UK - Accommodation
BEIS,UKRI - UKRI,15/09/2022,T&S UK - Accommodation,Public Engagement Programmes,Corporate Travel Management (North) Ltd,99806271,0.16,T&S UK - Accommodation
BEIS,UKRI - UKRI,15/09/2022,T&S UK - Accommodation,UKRI - Information Governance,Corporate Travel Management (North) Ltd,99806271,0.80,T&S UK - Accommodation
BEIS,UKRI - UKRI,15/09/2022,T&S UK - Accommodation,UKRI - Information Governance,Corporate Travel Management (North) Ltd,99806271,67.00,T&S UK - Accommodation
BEIS,UKRI - UKRI,15/09/2022,T&S UK - Accommodation,UKRI - Information Governance,Corporate Travel Management (North) Ltd,99806271,0.16,T&S UK - Accommodation
BEIS,UKRI - UKRI,15/09/2022,T&S UK - Accommodation,UKRI - Risk and Counter Fraud,Corporate Travel Management (North) Ltd,99806271,0.80,T&S UK - Accommodation
BEIS,UKRI - UKRI,15/09/2022,T&S UK - Accommodation,UKRI - Risk and Counter Fraud,Corporate Travel Management (North) Ltd,99806271,75.00,T&S UK - Accommodation
BEIS,UKRI - UKRI,15/09/2022,T&S UK - Accommodation,UKRI - Risk and Counter Fraud,Corporate Travel Management (North) Ltd,99806271,0.80,T&S UK - Accommodation
BEIS,UKRI - UKRI,15/09/2022,T&S UK - Accommodation,UKRI - Risk and Counter Fraud,Corporate Travel Management (North) Ltd,99806271,0.80,T&S UK - Accommodation
BEIS,UKRI - UKRI,15/09/2022,T&S UK - Accommodation,UKRI - Risk and Counter Fraud,Corporate Travel Management (North) Ltd,99806271,0.80,T&S UK - Accommodation
BEIS,UKRI - UKRI,15/09/2022,T&S UK - Accommodation,UKRI - Risk and Counter Fraud,Corporate Travel Management (North) Ltd,99806271,0.64,T&S UK - Accommodation
BEIS,UKRI - UKRI,15/09/2022,T&S UK - Accommodation,UKRI - Communication and Engagement,Corporate Travel Management (North) Ltd,99806271,0.80,T&S UK - Accommodation
BEIS,UKRI - UKRI,15/09/2022,T&S UK - Accommodation,UKRI - Communication and Engagement,Corporate Travel Management (North) Ltd,99806271,77.50,T&S UK - Accommodation
BEIS,UKRI - UKRI,15/09/2022,T&S UK - Accommodation,UKRI - Communication and Engagement,Corporate Travel Management (North) Ltd,99806271,0.16,T&S UK - Accommodation
BEIS,UKRI - UKRI,15/09/2022,T&S UK - Accommodation,UKRI - Communications Business Partners,Corporate Travel Management (North) Ltd,99806271,0.80,T&S UK - Accommodation
BEIS,UKRI - UKRI,15/09/2022,T&S UK - Accommodation,UKRI - Communications Business Partners,Corporate Travel Management (North) Ltd,99806271,119.00,T&S UK - Accommodation
BEIS,UKRI - UKRI,15/09/2022,T&S UK - Accommodation,UKRI - Communications Business Partners,Corporate Travel Management (North) Ltd,99806271,0.16,T&S UK - Accommodation
BEIS,UKRI - UKRI,15/09/2022,T&S UK - Accommodation,UKRI - Communications External Affairs,Corporate Travel Management (North) Ltd,99806271,0.67,T&S UK - Accommodation
BEIS,UKRI - UKRI,15/09/2022,T&S UK - Accommodation,UKRI - Communications External Affairs,Corporate Travel Management (North) Ltd,99806271,248.40,T&S UK - Accommodation
BEIS,UKRI - UKRI,15/09/2022,T&S UK - Accommodation,UKRI - Communications External Affairs,Corporate Travel Management (North) Ltd,99806271,0.67,T&S UK - Accommodation
BEIS,UKRI - UKRI,15/09/2022,T&S UK - Accommodation,UKRI - Communications External Affairs,Corporate Travel Management (North) Ltd,99806271,124.20,T&S UK - Accommodation
BEIS,UKRI - UKRI,15/09/2022,T&S UK - Accommodation,UKRI - Communications External Affairs,Corporate Travel Management (North) Ltd,99806271,0.67,T&S UK - Accommodation
BEIS,UKRI - UKRI,15/09/2022,T&S UK - Accommodation,UKRI - Communications External Affairs,Corporate Travel Management (North) Ltd,99806271,248.40,T&S UK - Accommodation
BEIS,UKRI - UKRI,15/09/2022,T&S UK - Accommodation,UKRI - Communications External Affairs,Corporate Travel Management (North) Ltd,99806271,0.67,T&S UK - Accommodation
BEIS,UKRI - UKRI,15/09/2022,T&S UK - Accommodation,UKRI - Communications External Affairs,Corporate Travel Management (North) Ltd,99806271,124.20,T&S UK - Accommodation
BEIS,UKRI - UKRI,15/09/2022,T&S UK - Accommodation,UKRI - Communications External Affairs,Corporate Travel Management (North) Ltd,99806271,0.67,T&S UK - Accommodation
BEIS,UKRI - UKRI,15/09/2022,T&S UK - Accommodation,UKRI - Communications External Affairs,Corporate Travel Management (North) Ltd,99806271,124.20,T&S UK - Accommodation
BEIS,UKRI - UKRI,15/09/2022,T&S UK - Accommodation,UKRI - Communications External Affairs,Corporate Travel Management (North) Ltd,99806271,0.67,T&S UK - Accommodation
BEIS,UKRI - UKRI,15/09/2022,T&S UK - Accommodation,UKRI - Communications External Affairs,Corporate Travel Management (North) Ltd,99806271,0.78,T&S UK - Accommodation
BEIS,UKRI - UKRI,15/09/2022,T&S UK - Accommodation,UKRI - Communications Themes and Partnerships,Corporate Travel Management (North) Ltd,99806271,0.80,T&S UK - Accommodation
BEIS,UKRI - UKRI,15/09/2022,T&S UK - Accommodation,UKRI - Communications Themes and Partnerships,Corporate Travel Management (North) Ltd,99806271,0.80,T&S UK - Accommodation
BEIS,UKRI - UKRI,15/09/2022,T&S UK - Accommodation,UKRI - Communications Themes and Partnerships,Corporate Travel Management (North) Ltd,99806271,70.00,T&S UK - Accommodation
BEIS,UKRI - UKRI,15/09/2022,T&S UK - Accommodation,UKRI - Communications Themes and Partnerships,Corporate Travel Management (North) Ltd,99806271,0.32,T&S UK - Accommodation
BEIS,UKRI - UKRI,15/09/2022,T&S UK - Accommodation,UKRI - Council Partnership and Performance,Corporate Travel Management (North) Ltd,99806271,0.80,T&S UK - Accommodation
BEIS,UKRI - UKRI,15/09/2022,T&S UK - Accommodation,UKRI - Council Partnership and Performance,Corporate Travel Management (North) Ltd,99806271,75.00,T&S UK - Accommodation
BEIS,UKRI - UKRI,15/09/2022,T&S UK - Accommodation,UKRI - Council Partnership and Performance,Corporate Travel Management (North) Ltd,99806271,0.16,T&S UK - Accommodation
BEIS,UKRI - UKRI,15/09/2022,T&S UK - Accommodation,UKRI - Counter Fraud,Corporate Travel Management (North) Ltd,99806271,0.40,T&S UK - Accommodation
BEIS,UKRI - UKRI,15/09/2022,T&S UK - Accommodation,UKRI - Counter Fraud,Corporate Travel Management (North) Ltd,99806271,495.10,T&S UK - Accommodation
BEIS,UKRI - UKRI,15/09/2022,T&S UK - Accommodation,UKRI - Counter Fraud,Corporate Travel Management (North) Ltd,99806271,0.40,T&S UK - Accommodation
BEIS,UKRI - UKRI,15/09/2022,T&S UK - Accommodation,UKRI - Counter Fraud,Corporate Travel Management (North) Ltd,99806271,495.10,T&S UK - Accommodation
BEIS,UKRI - UKRI,15/09/2022,T&S UK - Accommodation,UKRI - Counter Fraud,Corporate Travel Management (North) Ltd,99806271,0.16,T&S UK - Accommodation
BEIS,UKRI - UKRI,15/09/2022,T&S UK - Accommodation,UKRI - Culture Leadership and Learning,Corporate Travel Management (North) Ltd,99806271,2.00,T&S UK - Accommodation
BEIS,UKRI - UKRI,15/09/2022,T&S UK - Accommodation,UKRI - Culture Leadership and Learning,Corporate Travel Management (North) Ltd,99806271,70.55,T&S UK - Accommodation
BEIS,UKRI - UKRI,15/09/2022,T&S UK - Accommodation,UKRI - Culture Leadership and Learning,Corporate Travel Management (North) Ltd,99806271,0.80,T&S UK - Accommodation
BEIS,UKRI - UKRI,15/09/2022,T&S UK - Accommodation,UKRI - Culture Leadership and Learning,Corporate Travel Management (North) Ltd,99806271,640.00,T&S UK - Accommodation
BEIS,UKRI - UKRI,15/09/2022,T&S UK - Accommodation,UKRI - Culture Leadership and Learning,Corporate Travel Management (North) Ltd,99806271,0.80,T&S UK - Accommodation
BEIS,UKRI - UKRI,15/09/2022,T&S UK - Accommodation,UKRI - Culture Leadership and Learning,Corporate Travel Management (North) Ltd,99806271,320.00,T&S UK - Accommodation
BEIS,UKRI - UKRI,15/09/2022,T&S UK - Accommodation,UKRI - Culture Leadership and Learning,Corporate Travel Management (North) Ltd,99806271,0.80,T&S UK - Accommodation
BEIS,UKRI - UKRI,15/09/2022,T&S UK - Accommodation,UKRI - Culture Leadership and Learning,Corporate Travel Management (North) Ltd,99806271,320.00,T&S UK - Accommodation
BEIS,UKRI - UKRI,15/09/2022,T&S UK - Accommodation,UKRI - Culture Leadership and Learning,Corporate Travel Management (North) Ltd,99806271,0.80,T&S UK - Accommodation
BEIS,UKRI - UKRI,15/09/2022,T&S UK - Accommodation,UKRI - Culture Leadership and Learning,Corporate Travel Management (North) Ltd,99806271,0.80,T&S UK - Accommodation
BEIS,UKRI - UKRI,15/09/2022,T&S UK - Accommodation,UKRI - Culture Leadership and Learning,Corporate Travel Management (North) Ltd,99806271,249.00,T&S UK - Accommodation
BEIS,UKRI - UKRI,15/09/2022,T&S UK - Accommodation,UKRI - Culture Leadership and Learning,Corporate Travel Management (North) Ltd,99806271,0.80,T&S UK - Accommodation
BEIS,UKRI - UKRI,15/09/2022,T&S UK - Accommodation,UKRI - Culture Leadership and Learning,Corporate Travel Management (North) Ltd,99806271,2.80,T&S UK - Accommodation
BEIS,UKRI - UKRI,15/09/2022,T&S UK - Accommodation,UKRI - Culture Leadership and Learning,Corporate Travel Management (North) Ltd,99806271,202.00,T&S UK - Accommodation
BEIS,UKRI - UKRI,15/09/2022,T&S UK - Accommodation,UKRI - Culture Leadership and Learning,Corporate Travel Management (North) Ltd,99806271,0.80,T&S UK - Accommodation
BEIS,UKRI - UKRI,15/09/2022,T&S UK - Accommodation,UKRI - Culture Leadership and Learning,Corporate Travel Management (North) Ltd,99806271,150.00,T&S UK - Accommodation
BEIS,UKRI - UKRI,15/09/2022,T&S UK - Accommodation,UKRI - Culture Leadership and Learning,Corporate Travel Management (North) Ltd,99806271,0.80,T&S UK - Accommodation
BEIS,UKRI - UKRI,15/09/2022,T&S UK - Accommodation,UKRI - Culture Leadership and Learning,Corporate Travel Management (North) Ltd,99806271,343.50,T&S UK - Accommodation
BEIS,UKRI - UKRI,15/09/2022,T&S UK - Accommodation,UKRI - Culture Leadership and Learning,Corporate Travel Management (North) Ltd,99806271,2.24,T&S UK - Accommodation
BEIS,UKRI - UKRI,15/09/2022,T&S UK - Accommodation,UKRI - Digital Data and Technology BAU Costs,Corporate Travel Management (North) Ltd,99806271,0.80,T&S UK - Accommodation
BEIS,UKRI - UKRI,15/09/2022,T&S UK - Accommodation,UKRI - Digital Data and Technology BAU Costs,Corporate Travel Management (North) Ltd,99806271,75.00,T&S UK - Accommodation
BEIS,UKRI - UKRI,15/09/2022,T&S UK - Accommodation,UKRI - Digital Data and Technology BAU Costs,Corporate Travel Management (North) Ltd,99806271,0.80,T&S UK - Accommodation
BEIS,UKRI - UKRI,15/09/2022,T&S UK - Accommodation,UKRI - Digital Data and Technology BAU Costs,Corporate Travel Management (North) Ltd,99806271,269.00,T&S UK - Accommodation
BEIS,UKRI - UKRI,15/09/2022,T&S UK - Accommodation,UKRI - Digital Data and Technology BAU Costs,Corporate Travel Management (North) Ltd,99806271,0.80,T&S UK - Accommodation
BEIS,UKRI - UKRI,15/09/2022,T&S UK - Accommodation,UKRI - Digital Data and Technology BAU Costs,Corporate Travel Management (North) Ltd,99806271,65.00,T&S UK - Accommodation
BEIS,UKRI - UKRI,15/09/2022,T&S UK - Accommodation,UKRI - Digital Data and Technology BAU Costs,Corporate Travel Management (North) Ltd,99806271,0.80,T&S UK - Accommodation
BEIS,UKRI - UKRI,15/09/2022,T&S UK - Accommodation,UKRI - Digital Data and Technology BAU Costs,Corporate Travel Management (North) Ltd,99806271,120.98,T&S UK - Accommodation
BEIS,UKRI - UKRI,15/09/2022,T&S UK - Accommodation,UKRI - Digital Data and Technology BAU Costs,Corporate Travel Management (North) Ltd,99806271,0.20,T&S UK - Accommodation
BEIS,UKRI - UKRI,15/09/2022,T&S UK - Accommodation,UKRI - Digital Data and Technology BAU Costs,Corporate Travel Management (North) Ltd,99806271,58.14,T&S UK - Accommodation
BEIS,UKRI - UKRI,15/09/2022,T&S UK - Accommodation,UKRI - Digital Data and Technology BAU Costs,Corporate Travel Management (North) Ltd,99806271,0.80,T&S UK - Accommodation
BEIS,UKRI - UKRI,15/09/2022,T&S UK - Accommodation,UKRI - Digital Data and Technology BAU Costs,Corporate Travel Management (North) Ltd,99806271,55.00,T&S UK - Accommodation
BEIS,UKRI - UKRI,15/09/2022,T&S UK - Accommodation,UKRI - Digital Data and Technology BAU Costs,Corporate Travel Management (North) Ltd,99806271,0.80,T&S UK - Accommodation
BEIS,UKRI - UKRI,15/09/2022,T&S UK - Accommodation,UKRI - Digital Data and Technology BAU Costs,Corporate Travel Management (North) Ltd,99806271,95.00,T&S UK - Accommodation
BEIS,UKRI - UKRI,15/09/2022,T&S UK - Accommodation,UKRI - Digital Data and Technology BAU Costs,Corporate Travel Management (North) Ltd,99806271,0.80,T&S UK - Accommodation
BEIS,UKRI - UKRI,15/09/2022,T&S UK - Accommodation,UKRI - Digital Data and Technology BAU Costs,Corporate Travel Management (North) Ltd,99806271,44.10,T&S UK - Accommodation
BEIS,UKRI - UKRI,15/09/2022,T&S UK - Accommodation,UKRI - Digital Data and Technology BAU Costs,Corporate Travel Management (North) Ltd,99806271,1.16,T&S UK - Accommodation
BEIS,UKRI - UKRI,15/09/2022,T&S UK - Accommodation,UKRI - Executive Group,Corporate Travel Management (North) Ltd,99806271,0.40,T&S UK - Accommodation
BEIS,UKRI - UKRI,15/09/2022,T&S UK - Accommodation,UKRI - Executive Group,Corporate Travel Management (North) Ltd,99806271,132.20,T&S UK - Accommodation
BEIS,UKRI - UKRI,15/09/2022,T&S UK - Accommodation,UKRI - Executive Group,Corporate Travel Management (North) Ltd,99806271,0.40,T&S UK - Accommodation
BEIS,UKRI - UKRI,15/09/2022,T&S UK - Accommodation,UKRI - Executive Group,Corporate Travel Management (North) Ltd,99806271,132.20,T&S UK - Accommodation
BEIS,UKRI - UKRI,15/09/2022,T&S UK - Accommodation,UKRI - Executive Group,Corporate Travel Management (North) Ltd,99806271,0.80,T&S UK - Accommodation
BEIS,UKRI - UKRI,15/09/2022,T&S UK - Accommodation,UKRI - Executive Group,Corporate Travel Management (North) Ltd,99806271,91.50,T&S UK - Accommodation
BEIS,UKRI - UKRI,15/09/2022,T&S UK - Accommodation,UKRI - Executive Group,Corporate Travel Management (North) Ltd,99806271,0.32,T&S UK - Accommodation
BEIS,UKRI - UKRI,15/09/2022,T&S UK - Accommodation,UKRI - International Communications,Corporate Travel Management (North) Ltd,99806271,0.80,T&S UK - Accommodation
BEIS,UKRI - UKRI,15/09/2022,T&S UK - Accommodation,UKRI - International Communications,Corporate Travel Management (North) Ltd,99806271,255.55,T&S UK - Accommodation
BEIS,UKRI - UKRI,15/09/2022,T&S UK - Accommodation,UKRI - International Communications,Corporate Travel Management (North) Ltd,99806271,0.16,T&S UK - Accommodation
BEIS,UKRI - UKRI,15/09/2022,T&S UK - Accommodation,UKRI - Legal,Corporate Travel Management (North) Ltd,99806271,0.80,T&S UK - Accommodation
BEIS,UKRI - UKRI,15/09/2022,T&S UK - Accommodation,UKRI - Legal,Corporate Travel Management (North) Ltd,99806271,199.20,T&S UK - Accommodation
BEIS,UKRI - UKRI,15/09/2022,T&S UK - Accommodation,UKRI - Legal,Corporate Travel Management (North) Ltd,99806271,0.16,T&S UK - Accommodation
BEIS,UKRI - UKRI,15/09/2022,T&S UK - Accommodation,UKRI - Management Reporting,Corporate Travel Management (North) Ltd,99806271,0.40,T&S UK - Accommodation
BEIS,UKRI - UKRI,15/09/2022,T&S UK - Accommodation,UKRI - Management Reporting,Corporate Travel Management (North) Ltd,99806271,125.50,T&S UK - Accommodation
BEIS,UKRI - UKRI,15/09/2022,T&S UK - Accommodation,UKRI - Management Reporting,Corporate Travel Management (North) Ltd,99806271,0.40,T&S UK - Accommodation
BEIS,UKRI - UKRI,15/09/2022,T&S UK - Accommodation,UKRI - Management Reporting,Corporate Travel Management (North) Ltd,99806271,125.50,T&S UK - Accommodation
BEIS,UKRI - UKRI,15/09/2022,T&S UK - Accommodation,UKRI - Management Reporting,Corporate Travel Management (North) Ltd,99806271,0.80,T&S UK - Accommodation
BEIS,UKRI - UKRI,15/09/2022,T&S UK - Accommodation,UKRI - Management Reporting,Corporate Travel Management (North) Ltd,99806271,0.80,T&S UK - Accommodation
BEIS,UKRI - UKRI,15/09/2022,T&S UK - Accommodation,UKRI - Management Reporting,Corporate Travel Management (North) Ltd,99806271,0.80,T&S UK - Accommodation
BEIS,UKRI - UKRI,15/09/2022,T&S UK - Accommodation,UKRI - Management Reporting,Corporate Travel Management (North) Ltd,99806271,113.50,T&S UK - Accommodation
BEIS,UKRI - UKRI,15/09/2022,T&S UK - Accommodation,UKRI - Management Reporting,Corporate Travel Management (North) Ltd,99806271,0.27,T&S UK - Accommodation
BEIS,UKRI - UKRI,15/09/2022,T&S UK - Accommodation,UKRI - Management Reporting,Corporate Travel Management (North) Ltd,99806271,120.49,T&S UK - Accommodation
BEIS,UKRI - UKRI,15/09/2022,T&S UK - Accommodation,UKRI - Management Reporting,Corporate Travel Management (North) Ltd,99806271,0.80,T&S UK - Accommodation
BEIS,UKRI - UKRI,15/09/2022,T&S UK - Accommodation,UKRI - Management Reporting,Corporate Travel Management (North) Ltd,99806271,121.49,T&S UK - Accommodation
BEIS,UKRI - UKRI,15/09/2022,T&S UK - Accommodation,UKRI - Management Reporting,Corporate Travel Management (North) Ltd,99806271,0.27,T&S UK - Accommodation
BEIS,UKRI - UKRI,15/09/2022,T&S UK - Accommodation,UKRI - Management Reporting,Corporate Travel Management (North) Ltd,99806271,120.49,T&S UK - Accommodation
BEIS,UKRI - UKRI,15/09/2022,T&S UK - Accommodation,UKRI - Management Reporting,Corporate Travel Management (North) Ltd,99806271,0.90,T&S UK - Accommodation
BEIS,UKRI - UKRI,15/09/2022,T&S UK - Accommodation,UKRI - Procurement and Commercial,Corporate Travel Management (North) Ltd,99806271,0.80,T&S UK - Accommodation
BEIS,UKRI - UKRI,15/09/2022,T&S UK - Accommodation,UKRI - Procurement and Commercial,Corporate Travel Management (North) Ltd,99806271,88.00,T&S UK - Accommodation
BEIS,UKRI - UKRI,15/09/2022,T&S UK - Accommodation,UKRI - Procurement and Commercial,Corporate Travel Management (North) Ltd,99806271,0.16,T&S UK - Accommodation
BEIS,UKRI - UKRI,15/09/2022,T&S UK - Accommodation,UKRI - Public Engagement,Corporate Travel Management (North) Ltd,99806271,0.80,T&S UK - Accommodation
BEIS,UKRI - UKRI,15/09/2022,T&S UK - Accommodation,UKRI - Public Engagement,Corporate Travel Management (North) Ltd,99806271,101.15,T&S UK - Accommodation
BEIS,UKRI - UKRI,15/09/2022,T&S UK - Accommodation,UKRI - Public Engagement,Corporate Travel Management (North) Ltd,99806271,0.16,T&S UK - Accommodation
BEIS,UKRI - UKRI,15/09/2022,T&S UK - Accommodation,UKRI - Research Funding Support,Corporate Travel Management (North) Ltd,99806271,0.50,T&S UK - Accommodation
BEIS,UKRI - UKRI,15/09/2022,T&S UK - Accommodation,UKRI - Research Funding Support,Corporate Travel Management (North) Ltd,99806271,75.00,T&S UK - Accommodation
BEIS,UKRI - UKRI,15/09/2022,T&S UK - Accommodation,UKRI - Research Funding Support,Corporate Travel Management (North) Ltd,99806271,0.67,T&S UK - Accommodation
BEIS,UKRI - UKRI,15/09/2022,T&S UK - Accommodation,UKRI - Research Funding Support,Corporate Travel Management (North) Ltd,99806271,75.00,T&S UK - Accommodation
BEIS,UKRI - UKRI,15/09/2022,T&S UK - Accommodation,UKRI - Research Funding Support,Corporate Travel Management (North) Ltd,99806271,0.50,T&S UK - Accommodation
BEIS,UKRI - UKRI,15/09/2022,T&S UK - Accommodation,UKRI - Research Funding Support,Corporate Travel Management (North) Ltd,99806271,75.00,T&S UK - Accommodation
BEIS,UKRI - UKRI,15/09/2022,T&S UK - Accommodation,UKRI - Research Funding Support,Corporate Travel Management (North) Ltd,99806271,0.50,T&S UK - Accommodation
BEIS,UKRI - UKRI,15/09/2022,T&S UK - Accommodation,UKRI - Research Funding Support,Corporate Travel Management (North) Ltd,99806271,75.00,T&S UK - Accommodation
BEIS,UKRI - UKRI,15/09/2022,T&S UK - Accommodation,UKRI - Research Funding Support,Corporate Travel Management (North) Ltd,99806271,0.67,T&S UK - Accommodation
BEIS,UKRI - UKRI,15/09/2022,T&S UK - Accommodation,UKRI - Research Funding Support,Corporate Travel Management (North) Ltd,99806271,75.00,T&S UK - Accommodation
BEIS,UKRI - UKRI,15/09/2022,T&S UK - Accommodation,UKRI - Research Funding Support,Corporate Travel Management (North) Ltd,99806271,0.67,T&S UK - Accommodation
BEIS,UKRI - UKRI,15/09/2022,T&S UK - Accommodation,UKRI - Research Funding Support,Corporate Travel Management (North) Ltd,99806271,75.00,T&S UK - Accommodation
BEIS,UKRI - UKRI,15/09/2022,T&S UK - Accommodation,UKRI - Research Funding Support,Corporate Travel Management (North) Ltd,99806271,0.50,T&S UK - Accommodation
BEIS,UKRI - UKRI,15/09/2022,T&S UK - Accommodation,UKRI - Research Funding Support,Corporate Travel Management (North) Ltd,99806271,75.00,T&S UK - Accommodation
BEIS,UKRI - UKRI,15/09/2022,T&S UK - Accommodation,UKRI - Research Funding Support,Corporate Travel Management (North) Ltd,99806271,0.79,T&S UK - Accommodation
BEIS,UKRI - UKRI,15/09/2022,T&S UK - Accommodation,UKRI - Secretariat,Corporate Travel Management (North) Ltd,99806271,0.27,T&S UK - Accommodation
BEIS,UKRI - UKRI,15/09/2022,T&S UK - Accommodation,UKRI - Secretariat,Corporate Travel Management (North) Ltd,99806271,320.00,T&S UK - Accommodation
BEIS,UKRI - UKRI,15/09/2022,T&S UK - Accommodation,UKRI - Secretariat,Corporate Travel Management (North) Ltd,99806271,0.27,T&S UK - Accommodation
BEIS,UKRI - UKRI,15/09/2022,T&S UK - Accommodation,UKRI - Secretariat,Corporate Travel Management (North) Ltd,99806271,320.00,T&S UK - Accommodation
BEIS,UKRI - UKRI,15/09/2022,T&S UK - Accommodation,UKRI - Secretariat,Corporate Travel Management (North) Ltd,99806271,0.27,T&S UK - Accommodation
BEIS,UKRI - UKRI,15/09/2022,T&S UK - Accommodation,UKRI - Secretariat,Corporate Travel Management (North) Ltd,99806271,320.00,T&S UK - Accommodation
BEIS,UKRI - UKRI,15/09/2022,T&S UK - Accommodation,UKRI - Secretariat,Corporate Travel Management (North) Ltd,99806271,0.15,T&S UK - Accommodation
BEIS,UKRI - UKRI,15/09/2022,T&S UK - Accommodation,UKRI - Strategic Finance Business Partners,Corporate Travel Management (North) Ltd,99806271,0.80,T&S UK - Accommodation
BEIS,UKRI - UKRI,15/09/2022,T&S UK - Accommodation,UKRI - Strategic Finance Business Partners,Corporate Travel Management (North) Ltd,99806271,231.00,T&S UK - Accommodation
BEIS,UKRI - UKRI,15/09/2022,T&S UK - Accommodation,UKRI - Strategic Finance Business Partners,Corporate Travel Management (North) Ltd,99806271,0.80,T&S UK - Accommodation
BEIS,UKRI - UKRI,15/09/2022,T&S UK - Accommodation,UKRI - Strategic Finance Business Partners,Corporate Travel Management (North) Ltd,99806271,117.50,T&S UK - Accommodation
BEIS,UKRI - UKRI,15/09/2022,T&S UK - Accommodation,UKRI - Strategic Finance Business Partners,Corporate Travel Management (North) Ltd,99806271,2.00,T&S UK - Accommodation
BEIS,UKRI - UKRI,15/09/2022,T&S UK - Accommodation,UKRI - Strategic Finance Business Partners,Corporate Travel Management (North) Ltd,99806271,250.00,T&S UK - Accommodation
BEIS,UKRI - UKRI,15/09/2022,T&S UK - Accommodation,UKRI - Strategic Finance Business Partners,Corporate Travel Management (North) Ltd,99806271,0.72,T&S UK - Accommodation
BEIS,UKRI - UKRI,15/09/2022,T&S UK - Accommodation,UKRI - Strategy,Corporate Travel Management (North) Ltd,99806271,0.80,T&S UK - Accommodation
BEIS,UKRI - UKRI,15/09/2022,T&S UK - Accommodation,UKRI - Strategy,Corporate Travel Management (North) Ltd,99806271,89.00,T&S UK - Accommodation
BEIS,UKRI - UKRI,15/09/2022,T&S UK - Accommodation,UKRI - Strategy,Corporate Travel Management (North) Ltd,99806271,0.80,T&S UK - Accommodation
BEIS,UKRI - UKRI,15/09/2022,T&S UK - Accommodation,UKRI - Strategy,Corporate Travel Management (North) Ltd,99806271,54.20,T&S UK - Accommodation
BEIS,UKRI - UKRI,15/09/2022,T&S UK - Accommodation,UKRI - Strategy,Corporate Travel Management (North) Ltd,99806271,0.32,T&S UK - Accommodation
BEIS,UKRI - UKRI,15/09/2022,T&S UK - Accommodation,"UKRI People, Policies and Management",Corporate Travel Management (North) Ltd,99806271,0.80,T&S UK - Accommodation
BEIS,UKRI - UKRI,15/09/2022,T&S UK - Accommodation,"UKRI People, Policies and Management",Corporate Travel Management (North) Ltd,99806271,152.10,T&S UK - Accommodation
BEIS,UKRI - UKRI,15/09/2022,T&S UK - Accommodation,"UKRI People, Policies and Management",Corporate Travel Management (North) Ltd,99806271,0.80,T&S UK - Accommodation
BEIS,UKRI - UKRI,15/09/2022,T&S UK - Accommodation,"UKRI People, Policies and Management",Corporate Travel Management (North) Ltd,99806271,0.80,T&S UK - Accommodation
BEIS,UKRI - UKRI,15/09/2022,T&S UK - Accommodation,"UKRI People, Policies and Management",Corporate Travel Management (North) Ltd,99806271,0.80,T&S UK - Accommodation
BEIS,UKRI - UKRI,15/09/2022,T&S UK - Accommodation,"UKRI People, Policies and Management",Corporate Travel Management (North) Ltd,99806271,0.64,T&S UK - Accommodation
BEIS,UKRI - UKRI,15/09/2022,T&S UK - Accommodation,UKRI Strategic HR Business Partners,Corporate Travel Management (North) Ltd,99806271,0.80,T&S UK - Accommodation
BEIS,UKRI - UKRI,15/09/2022,T&S UK - Accommodation,UKRI Strategic HR Business Partners,Corporate Travel Management (North) Ltd,99806271,98.00,T&S UK - Accommodation
BEIS,UKRI - UKRI,15/09/2022,T&S UK - Accommodation,UKRI Strategic HR Business Partners,Corporate Travel Management (North) Ltd,99806271,1.60,T&S UK - Accommodation
BEIS,UKRI - UKRI,15/09/2022,T&S UK - Accommodation,UKRI Strategic HR Business Partners,Corporate Travel Management (North) Ltd,99806271,0.80,T&S UK - Accommodation
BEIS,UKRI - UKRI,15/09/2022,T&S UK - Accommodation,UKRI Strategic HR Business Partners,Corporate Travel Management (North) Ltd,99806271,88.00,T&S UK - Accommodation
BEIS,UKRI - UKRI,15/09/2022,T&S UK - Accommodation,UKRI Strategic HR Business Partners,Corporate Travel Management (North) Ltd,99806271,0.80,T&S UK - Accommodation
BEIS,UKRI - UKRI,15/09/2022,T&S UK - Accommodation,UKRI Strategic HR Business Partners,Corporate Travel Management (North) Ltd,99806271,88.00,T&S UK - Accommodation
BEIS,UKRI - UKRI,15/09/2022,T&S UK - Accommodation,UKRI Strategic HR Business Partners,Corporate Travel Management (North) Ltd,99806271,1.07,T&S UK - Accommodation
BEIS,UKRI - UKRI,15/09/2022,T&S UK - Accommodation,UKRI Strategic HR Business Partners,Corporate Travel Management (North) Ltd,99806271,99.75,T&S UK - Accommodation
BEIS,UKRI - UKRI,15/09/2022,T&S UK - Accommodation,UKRI Strategic HR Business Partners,Corporate Travel Management (North) Ltd,99806271,1.07,T&S UK - Accommodation
BEIS,UKRI - UKRI,15/09/2022,T&S UK - Accommodation,UKRI Strategic HR Business Partners,Corporate Travel Management (North) Ltd,99806271,99.75,T&S UK - Accommodation
BEIS,UKRI - UKRI,15/09/2022,T&S UK - Accommodation,UKRI Strategic HR Business Partners,Corporate Travel Management (North) Ltd,99806271,2.00,T&S UK - Accommodation
BEIS,UKRI - UKRI,15/09/2022,T&S UK - Accommodation,UKRI Strategic HR Business Partners,Corporate Travel Management (North) Ltd,99806271,99.75,T&S UK - Accommodation
BEIS,UKRI - UKRI,15/09/2022,T&S UK - Accommodation,UKRI Strategic HR Business Partners,Corporate Travel Management (North) Ltd,99806271,1.62,T&S UK - Accommodation
BEIS,UKRI - UKRI,15/09/2022,T&S UK - Flights,UKRI - Culture Leadership and Learning,Corporate Travel Management (North) Ltd,99806271,2.50,T&S UK - Flights
BEIS,UKRI - UKRI,15/09/2022,T&S UK - Flights,UKRI - Culture Leadership and Learning,Corporate Travel Management (North) Ltd,99806271,270.46,T&S UK - Flights
BEIS,UKRI - UKRI,15/09/2022,T&S UK - Flights,UKRI - International Communications,Corporate Travel Management (North) Ltd,99806271,4.50,T&S UK - Flights
BEIS,UKRI - UKRI,15/09/2022,T&S UK - Flights,UKRI - International Communications,Corporate Travel Management (North) Ltd,99806271,97.50,T&S UK - Flights
BEIS,UKRI - UKRI,15/09/2022,T&S UK - Flights,UKRI - International Communications,Corporate Travel Management (North) Ltd,99806271,4.50,T&S UK - Flights
BEIS,UKRI - UKRI,15/09/2022,T&S UK - Flights,UKRI - International Communications,Corporate Travel Management (North) Ltd,99806271,112.18,T&S UK - Flights
BEIS,UKRI - UKRI,15/09/2022,T&S UK - Flights,UKRI - Strategic Finance Business Partners,Corporate Travel Management (North) Ltd,99806271,2.50,T&S UK - Flights
BEIS,UKRI - UKRI,15/09/2022,T&S UK - Flights,UKRI - Strategic Finance Business Partners,Corporate Travel Management (North) Ltd,99806271,119.98,T&S UK - Flights
BEIS,UKRI - UKRI,15/09/2022,T&S UK - Parking Tolls Congestion Charges,Public Engagement Programmes,Corporate Travel Management (North) Ltd,99806271,4.50,T&S UK - Parking Tolls Congestion Charges
BEIS,UKRI - UKRI,15/09/2022,T&S UK - Parking Tolls Congestion Charges,Public Engagement Programmes,Corporate Travel Management (North) Ltd,99806271,74.99,T&S UK - Parking Tolls Congestion Charges
BEIS,UKRI - UKRI,15/09/2022,T&S UK - Parking Tolls Congestion Charges,Public Engagement Programmes,Corporate Travel Management (North) Ltd,99806271,0.90,T&S UK - Parking Tolls Congestion Charges
BEIS,UKRI - UKRI,15/09/2022,T&S UK - Public Transport,EDI,Corporate Travel Management (North) Ltd,99806271,0.25,T&S UK - Public Transport
BEIS,UKRI - UKRI,15/09/2022,T&S UK - Public Transport,EDI,Corporate Travel Management (North) Ltd,99806271,282.00,T&S UK - Public Transport
BEIS,UKRI - UKRI,15/09/2022,T&S UK - Public Transport,Public Engagement Programmes,Corporate Travel Management (North) Ltd,99806271,0.25,T&S UK - Public Transport
BEIS,UKRI - UKRI,15/09/2022,T&S UK - Public Transport,Public Engagement Programmes,Corporate Travel Management (North) Ltd,99806271,110.00,T&S UK - Public Transport
BEIS,UKRI - UKRI,15/09/2022,T&S UK - Public Transport,Public Engagement Programmes,Corporate Travel Management (North) Ltd,99806271,0.25,T&S UK - Public Transport
BEIS,UKRI - UKRI,15/09/2022,T&S UK - Public Transport,Public Engagement Programmes,Corporate Travel Management (North) Ltd,99806271,80.50,T&S UK - Public Transport
BEIS,UKRI - UKRI,15/09/2022,T&S UK - Public Transport,Reforming Our Business,Corporate Travel Management (North) Ltd,99806271,10.00,T&S UK - Public Transport
BEIS,UKRI - UKRI,15/09/2022,T&S UK - Public Transport,Reforming Our Business,Corporate Travel Management (North) Ltd,99806271,-114.80,T&S UK - Public Transport
BEIS,UKRI - UKRI,15/09/2022,T&S UK - Public Transport,Research Integrity Support Team OpEx,Corporate Travel Management (North) Ltd,99806271,0.50,T&S UK - Public Transport
BEIS,UKRI - UKRI,15/09/2022,T&S UK - Public Transport,Research Integrity Support Team OpEx,Corporate Travel Management (North) Ltd,99806271,73.35,T&S UK - Public Transport
BEIS,UKRI - UKRI,15/09/2022,T&S UK - Public Transport,Research Integrity Support Team OpEx,Corporate Travel Management (North) Ltd,99806271,51.85,T&S UK - Public Transport
BEIS,UKRI - UKRI,15/09/2022,T&S UK - Public Transport,Research Integrity Support Team OpEx,Corporate Travel Management (North) Ltd,99806271,0.25,T&S UK - Public Transport
BEIS,UKRI - UKRI,15/09/2022,T&S UK - Public Transport,Research Integrity Support Team OpEx,Corporate Travel Management (North) Ltd,99806271,158.70,T&S UK - Public Transport
BEIS,UKRI - UKRI,15/09/2022,T&S UK - Public Transport,Sciencewise,Corporate Travel Management (North) Ltd,99806271,0.25,T&S UK - Public Transport
BEIS,UKRI - UKRI,15/09/2022,T&S UK - Public Transport,Sciencewise,Corporate Travel Management (North) Ltd,99806271,162.20,T&S UK - Public Transport
BEIS,UKRI - UKRI,15/09/2022,T&S UK - Public Transport,UKRI - Risk and Counter Fraud,Corporate Travel Management (North) Ltd,99806271,0.25,T&S UK - Public Transport
BEIS,UKRI - UKRI,15/09/2022,T&S UK - Public Transport,UKRI - Risk and Counter Fraud,Corporate Travel Management (North) Ltd,99806271,131.40,T&S UK - Public Transport
BEIS,UKRI - UKRI,15/09/2022,T&S UK - Public Transport,UKRI - Communication and Engagement,Corporate Travel Management (North) Ltd,99806271,0.25,T&S UK - Public Transport
BEIS,UKRI - UKRI,15/09/2022,T&S UK - Public Transport,UKRI - Communication and Engagement,Corporate Travel Management (North) Ltd,99806271,80.00,T&S UK - Public Transport
BEIS,UKRI - UKRI,15/09/2022,T&S UK - Public Transport,UKRI - Communication and Engagement,Corporate Travel Management (North) Ltd,99806271,0.25,T&S UK - Public Transport
BEIS,UKRI - UKRI,15/09/2022,T&S UK - Public Transport,UKRI - Communication and Engagement,Corporate Travel Management (North) Ltd,99806271,79.00,T&S UK - Public Transport
BEIS,UKRI - UKRI,15/09/2022,T&S UK - Public Transport,UKRI - Communications Content,Corporate Travel Management (North) Ltd,99806271,0.25,T&S UK - Public Transport
BEIS,UKRI - UKRI,15/09/2022,T&S UK - Public Transport,UKRI - Communications Content,Corporate Travel Management (North) Ltd,99806271,150.35,T&S UK - Public Transport
BEIS,UKRI - UKRI,15/09/2022,T&S UK - Public Transport,UKRI - Communications External Affairs,Corporate Travel Management (North) Ltd,99806271,0.25,T&S UK - Public Transport
BEIS,UKRI - UKRI,15/09/2022,T&S UK - Public Transport,UKRI - Communications External Affairs,Corporate Travel Management (North) Ltd,99806271,52.00,T&S UK - Public Transport
BEIS,UKRI - UKRI,15/09/2022,T&S UK - Public Transport,UKRI - Communications External Affairs,Corporate Travel Management (North) Ltd,99806271,0.25,T&S UK - Public Transport
BEIS,UKRI - UKRI,15/09/2022,T&S UK - Public Transport,UKRI - Communications External Affairs,Corporate Travel Management (North) Ltd,99806271,74.30,T&S UK - Public Transport
BEIS,UKRI - UKRI,15/09/2022,T&S UK - Public Transport,UKRI - Communications External Affairs,Corporate Travel Management (North) Ltd,99806271,0.25,T&S UK - Public Transport
BEIS,UKRI - UKRI,15/09/2022,T&S UK - Public Transport,UKRI - Communications External Affairs,Corporate Travel Management (North) Ltd,99806271,64.80,T&S UK - Public Transport
BEIS,UKRI - UKRI,15/09/2022,T&S UK - Public Transport,UKRI - Communications External Affairs,Corporate Travel Management (North) Ltd,99806271,0.75,T&S UK - Public Transport
BEIS,UKRI - UKRI,15/09/2022,T&S UK - Public Transport,UKRI - Communications External Affairs,Corporate Travel Management (North) Ltd,99806271,9.30,T&S UK - Public Transport
BEIS,UKRI - UKRI,15/09/2022,T&S UK - Public Transport,UKRI - Communications External Affairs,Corporate Travel Management (North) Ltd,99806271,17.10,T&S UK - Public Transport
BEIS,UKRI - UKRI,15/09/2022,T&S UK - Public Transport,UKRI - Communications External Affairs,Corporate Travel Management (North) Ltd,99806271,30.85,T&S UK - Public Transport
BEIS,UKRI - UKRI,15/09/2022,T&S UK - Public Transport,UKRI - Communications External Affairs,Corporate Travel Management (North) Ltd,99806271,0.25,T&S UK - Public Transport
BEIS,UKRI - UKRI,15/09/2022,T&S UK - Public Transport,UKRI - Communications External Affairs,Corporate Travel Management (North) Ltd,99806271,138.10,T&S UK - Public Transport
BEIS,UKRI - UKRI,15/09/2022,T&S UK - Public Transport,UKRI - Communications Web and Intranet Service,Corporate Travel Management (North) Ltd,99806271,0.25,T&S UK - Public Transport
BEIS,UKRI - UKRI,15/09/2022,T&S UK - Public Transport,UKRI - Communications Web and Intranet Service,Corporate Travel Management (North) Ltd,99806271,14.40,T&S UK - Public Transport
BEIS,UKRI - UKRI,15/09/2022,T&S UK - Public Transport,UKRI - Communications Web and Intranet Service,Corporate Travel Management (North) Ltd,99806271,0.75,T&S UK - Public Transport
BEIS,UKRI - UKRI,15/09/2022,T&S UK - Public Transport,UKRI - Communications Web and Intranet Service,Corporate Travel Management (North) Ltd,99806271,43.40,T&S UK - Public Transport
BEIS,UKRI - UKRI,15/09/2022,T&S UK - Public Transport,UKRI - Communications Web and Intranet Service,Corporate Travel Management (North) Ltd,99806271,79.90,T&S UK - Public Transport
BEIS,UKRI - UKRI,15/09/2022,T&S UK - Public Transport,UKRI - Communications Web and Intranet Service,Corporate Travel Management (North) Ltd,99806271,14.40,T&S UK - Public Transport
